Body Name,Body,Service Area Catergorisation,Service Division Catergorisation,Responsible Unit,Expenses Type,Detailed Expenses Type,Expenses Code,Date,Transaction Number,Amount,Capital / Revenue,Supplier Name,Supplier ID
NORTH EAST LINCOLNSHIRE COUNCIL,http://statistics.data.gov.uk/id/local-authority/00FC,Cap People And Communities,Cap Childrens Hlth & Fam Supp,Capital Fund - For Two Yr Olds,Cap Grants To O/Side Sources,Cap Grants To O/Side Sources,YJ101,05/08/2014,278727,33771.4,CAPITAL,ST PETERS CHILDRENS CENTRE,114746
NORTH EAST LINCOLNSHIRE COUNCIL,http://statistics.data.gov.uk/id/local-authority/00FC,Cap People And Communities,Cap Childrens Hlth & Fam Supp,Capital Fund - For Two Yr Olds,Cap Grants To O/Side Sources,Cap Grants To O/Side Sources,YJ101,05/12/2014,278719,8458,CAPITAL,IMMINGHAM DAY CARE,122312
NORTH EAST LINCOLNSHIRE COUNCIL,http://statistics.data.gov.uk/id/local-authority/00FC,Cap Resources,Cap Commission & Inform System,Education Mgmt Sys Capita One,Cap Veh Plt Eqp-Prof Fees,Cap Veh Plt Eqp-Prof Fees,YB103,05/08/2014,278418,7000,CAPITAL,CAPITA BUSINESS SERVICES LTD,102314
NORTH EAST LINCOLNSHIRE COUNCIL,http://statistics.data.gov.uk/id/local-authority/00FC,Cap Resources,Cap Commission & Inform System,Education Mgmt Sys Capita One,Cap Intangible Assets,Cap Intangible Assets,YH101,5/27/2014,281971,1300,CAPITAL,CAPITA BUSINESS SERVICES LTD,102314
NORTH EAST LINCOLNSHIRE COUNCIL,http://statistics.data.gov.uk/id/local-authority/00FC,Cap Resources,Cap Commission & Inform System,Ict Design Fwk &I Ct Strategy,Cap Intangible Assets,Cap Intangible Assets,YH101,05/01/2014,276627,6375,CAPITAL,VISIONWARE LTD,103028
NORTH EAST LINCOLNSHIRE COUNCIL,http://statistics.data.gov.uk/id/local-authority/00FC,Cap Resources,Cap Commission & Inform System,Ict Design Fwk &I Ct Strategy,Cap Intangible Assets,Cap Intangible Assets,YH101,5/13/2014,276780,847.13,CAPITAL,VISIONWARE LTD,103028
NORTH EAST LINCOLNSHIRE COUNCIL,http://statistics.data.gov.uk/id/local-authority/00FC,Cap Economy Env And Housing,Cap Neighbourhood Services,Fleet,Cap Veh Plt Eqp-Purchase,Cap Veh Plt Eqp-Purchase,YB101,05/08/2014,278292,1800,CAPITAL,VISION TECHNIQUES ( UK) LTD,108488
NORTH EAST LINCOLNSHIRE COUNCIL,http://statistics.data.gov.uk/id/local-authority/00FC,Cap Economy Env And Housing,Cap Neighbourhood Services,Fleet,Cap Veh Plt Eqp-Purchase,Cap Veh Plt Eqp-Purchase,YB101,5/19/2014,279544,1800,CAPITAL,VISION TECHNIQUES ( UK) LTD,108488
NORTH EAST LINCOLNSHIRE COUNCIL,http://statistics.data.gov.uk/id/local-authority/00FC,Cap Economy Env And Housing,Cap Neighbourhood Services,Fleet,Cap Veh Plt Eqp-Purchase,Cap Veh Plt Eqp-Purchase,YB101,05/12/2014,276715,72551.75,CAPITAL,ECON ENGINEERING LTD,103943
NORTH EAST LINCOLNSHIRE COUNCIL,http://statistics.data.gov.uk/id/local-authority/00FC,Cap Economy Env And Housing,Cap Neighbourhood Services,Fleet,Cap Veh Plt Eqp-Purchase,Cap Veh Plt Eqp-Purchase,YB101,5/23/2014,280213,19994.8,CAPITAL,F G ADAMSON & SON,100752
NORTH EAST LINCOLNSHIRE COUNCIL,http://statistics.data.gov.uk/id/local-authority/00FC,Cap Economy Env And Housing,Cap Neighbourhood Services,Waste Obc (Rev B),Cap Land/Build-Build Enh Wrk,Cap Land/Build-Build Enh Wrk,YA102,5/22/2014,281502,11921,CAPITAL,EGBERT H TAYLOR & CO LTD,100625
NORTH EAST LINCOLNSHIRE COUNCIL,http://statistics.data.gov.uk/id/local-authority/00FC,Cap Economy Env And Housing,Cap Neighbourhood Services,Scartho Cemetry Road Scheme,Cap Land/Build-Build Enh Wrk,Cap Land/Build-Build Enh Wrk,YA102,05/01/2014,276850,468,CAPITAL,C & G ENGINEERING SERVICES,100637
NORTH EAST LINCOLNSHIRE COUNCIL,http://statistics.data.gov.uk/id/local-authority/00FC,Cap Economy Env And Housing,Cap Development,Hps-Disabled Fac. Grants,Cap Grants To O/Side Sources,Cap Grants To O/Side Sources,YJ101,5/19/2014,280828,5311,CAPITAL,HANDICARE ACCESSIIBILITY LTD,102647
NORTH EAST LINCOLNSHIRE COUNCIL,http://statistics.data.gov.uk/id/local-authority/00FC,Cap Economy Env And Housing,Cap Development,Hps-Disabled Fac. Grants,Cap Grants To O/Side Sources,Cap Grants To O/Side Sources,YJ101,05/06/2014,270964,251.37,CAPITAL,CLEVELAND JOINERY,102580
NORTH EAST LINCOLNSHIRE COUNCIL,http://statistics.data.gov.uk/id/local-authority/00FC,Cap Economy Env And Housing,Cap Development,Hps-Disabled Fac. Grants,Cap Grants To O/Side Sources,Cap Grants To O/Side Sources,YJ101,5/23/2014,280886,4830,CAPITAL,HANDICARE ACCESSIIBILITY LTD,102647
NORTH EAST LINCOLNSHIRE COUNCIL,http://statistics.data.gov.uk/id/local-authority/00FC,Cap Economy Env And Housing,Cap Development,Hps-Disabled Fac. Grants,Cap Grants To O/Side Sources,Cap Grants To O/Side Sources,YJ101,5/15/2014,279832,1635.6,CAPITAL,DOLPHIN MOBILITY EAST MIDLANDS LTD,101317
NORTH EAST LINCOLNSHIRE COUNCIL,http://statistics.data.gov.uk/id/local-authority/00FC,Cap Economy Env And Housing,Cap Development,Hps-Disabled Fac. Grants,Cap Grants To O/Side Sources,Cap Grants To O/Side Sources,YJ101,5/20/2014,280364,4421.62,CAPITAL,E J PARMENTER,100924
NORTH EAST LINCOLNSHIRE COUNCIL,http://statistics.data.gov.uk/id/local-authority/00FC,Cap Economy Env And Housing,Cap Development,Hps-Disabled Fac. Grants,Cap Grants To O/Side Sources,Cap Grants To O/Side Sources,YJ101,5/13/2014,278842,7165.64,CAPITAL,MEARS LTD,102433
NORTH EAST LINCOLNSHIRE COUNCIL,http://statistics.data.gov.uk/id/local-authority/00FC,Cap Economy Env And Housing,Cap Development,Hps-Disabled Fac. Grants,Cap Grants To O/Side Sources,Cap Grants To O/Side Sources,YJ101,05/12/2014,278523,6190,CAPITAL,MARK BENNETT,101838
NORTH EAST LINCOLNSHIRE COUNCIL,http://statistics.data.gov.uk/id/local-authority/00FC,Cap Economy Env And Housing,Cap Development,Hps-Disabled Fac. Grants,Cap Grants To O/Side Sources,Cap Grants To O/Side Sources,YJ101,5/19/2014,280375,2296,CAPITAL,STANNAH LIFT SERVICES LTD,100622
NORTH EAST LINCOLNSHIRE COUNCIL,http://statistics.data.gov.uk/id/local-authority/00FC,Cap Economy Env And Housing,Cap Development,Local Transport Plan,Cap Land/Build-Build Enh Wrk,Cap Land/Build-Build Enh Wrk,YA102,5/13/2014,279334,460.34,CAPITAL,NORTHERN POWERGRID (YORKSHIRE) PLC,108328
NORTH EAST LINCOLNSHIRE COUNCIL,http://statistics.data.gov.uk/id/local-authority/00FC,Cap Economy Env And Housing,Cap Development,Local Transport Plan,Cap Land/Build-Build Enh Wrk,Cap Land/Build-Build Enh Wrk,YA102,5/19/2014,279333,593.86,CAPITAL,NORTHERN POWERGRID (YORKSHIRE) PLC,108328
NORTH EAST LINCOLNSHIRE COUNCIL,http://statistics.data.gov.uk/id/local-authority/00FC,Cap Economy Env And Housing,Cap Development,Local Transport Plan,Cap Land/Build-Build Enh Wrk,Cap Land/Build-Build Enh Wrk,YA102,5/23/2014,282301,91599.85,CAPITAL,BUTTON PLANT & CONSTRUCTION LTD,100710
NORTH EAST LINCOLNSHIRE COUNCIL,http://statistics.data.gov.uk/id/local-authority/00FC,Cap Economy Env And Housing,Cap Development,Local Transport Plan,Cap Land/Build-Build Enh Wrk,Cap Land/Build-Build Enh Wrk,YA102,5/19/2014,275752,1474.2,CAPITAL,J MCCANN & CO LTD,100841
NORTH EAST LINCOLNSHIRE COUNCIL,http://statistics.data.gov.uk/id/local-authority/00FC,Cap Economy Env And Housing,Cap Development,Local Transport Plan,Cap Land/Build-Build Enh Wrk,Cap Land/Build-Build Enh Wrk,YA102,5/19/2014,275752,390,CAPITAL,J MCCANN & CO LTD,100841
NORTH EAST LINCOLNSHIRE COUNCIL,http://statistics.data.gov.uk/id/local-authority/00FC,Cap Economy Env And Housing,Cap Development,Local Transport Plan,Cap Land/Build-Build Enh Wrk,Cap Land/Build-Build Enh Wrk,YA102,5/13/2014,279264,13515,CAPITAL,J MCCANN & CO LTD,100841
NORTH EAST LINCOLNSHIRE COUNCIL,http://statistics.data.gov.uk/id/local-authority/00FC,Cap Economy Env And Housing,Cap Development,Local Transport Plan,Cap Infrastr-Build Enh Wrk,Cap Infrastr-Build Enh Wrk,YC102,5/19/2014,280317,21258.75,CAPITAL,PELL AND BALDWIN FABRICATIONS LTD,118853
NORTH EAST LINCOLNSHIRE COUNCIL,http://statistics.data.gov.uk/id/local-authority/00FC,Cap Economy Env And Housing,Cap Development,Local Transport Plan,Cap Land/Build-Build Enh Wrk,Cap Land/Build-Build Enh Wrk,YA102,5/13/2014,279332,336.1,CAPITAL,NORTHERN POWERGRID (YORKSHIRE) PLC,108328
NORTH EAST LINCOLNSHIRE COUNCIL,http://statistics.data.gov.uk/id/local-authority/00FC,Cap Economy Env And Housing,Cap Development,Local Transport Plan,Cap Land/Build-Build Enh Wrk,Cap Land/Build-Build Enh Wrk,YA102,5/13/2014,279331,336.1,CAPITAL,NORTHERN POWERGRID (YORKSHIRE) PLC,108328
NORTH EAST LINCOLNSHIRE COUNCIL,http://statistics.data.gov.uk/id/local-authority/00FC,Cap Economy Env And Housing,Cap Development,Local Transport Plan,Cap Land/Build-Build Enh Wrk,Cap Land/Build-Build Enh Wrk,YA102,5/13/2014,279326,672.2,CAPITAL,NORTHERN POWERGRID (YORKSHIRE) PLC,108328
NORTH EAST LINCOLNSHIRE COUNCIL,http://statistics.data.gov.uk/id/local-authority/00FC,Cap Economy Env And Housing,Cap Development,Local Transport Plan,Cap Land/Build-Build Enh Wrk,Cap Land/Build-Build Enh Wrk,YA102,5/15/2014,279322,1392.84,CAPITAL,NORTHERN POWERGRID (YORKSHIRE) PLC,108328
NORTH EAST LINCOLNSHIRE COUNCIL,http://statistics.data.gov.uk/id/local-authority/00FC,Cap Economy Env And Housing,Cap Development,Local Transport Plan,Cap Land/Build-Build Enh Wrk,Cap Land/Build-Build Enh Wrk,YA102,5/13/2014,279308,1079.98,CAPITAL,NORTHERN POWERGRID (YORKSHIRE) PLC,108328
NORTH EAST LINCOLNSHIRE COUNCIL,http://statistics.data.gov.uk/id/local-authority/00FC,Cap Economy Env And Housing,Cap Development,Local Transport Plan,Cap Land/Build-Build Enh Wrk,Cap Land/Build-Build Enh Wrk,YA102,5/15/2014,279323,696.42,CAPITAL,NORTHERN POWERGRID (YORKSHIRE) PLC,108328
NORTH EAST LINCOLNSHIRE COUNCIL,http://statistics.data.gov.uk/id/local-authority/00FC,Cap Economy Env And Housing,Cap Development,Local Transport Plan,Cap Land/Build-Build Enh Wrk,Cap Land/Build-Build Enh Wrk,YA102,5/13/2014,279320,3133.89,CAPITAL,NORTHERN POWERGRID (YORKSHIRE) PLC,108328
NORTH EAST LINCOLNSHIRE COUNCIL,http://statistics.data.gov.uk/id/local-authority/00FC,Cap Economy Env And Housing,Cap Development,Local Transport Plan,Cap Land/Build-Build Enh Wrk,Cap Land/Build-Build Enh Wrk,YA102,5/13/2014,279328,1008.3,CAPITAL,NORTHERN POWERGRID (YORKSHIRE) PLC,108328
NORTH EAST LINCOLNSHIRE COUNCIL,http://statistics.data.gov.uk/id/local-authority/00FC,Cap Economy Env And Housing,Cap Development,Local Transport Plan,Cap Land/Build-Build Enh Wrk,Cap Land/Build-Build Enh Wrk,YA102,5/13/2014,279306,348.21,CAPITAL,NORTHERN POWERGRID (YORKSHIRE) PLC,108328
NORTH EAST LINCOLNSHIRE COUNCIL,http://statistics.data.gov.uk/id/local-authority/00FC,Cap Economy Env And Housing,Cap Development,Local Transport Plan,Cap Land/Build-Build Enh Wrk,Cap Land/Build-Build Enh Wrk,YA102,5/13/2014,279330,1741.05,CAPITAL,NORTHERN POWERGRID (YORKSHIRE) PLC,108328
NORTH EAST LINCOLNSHIRE COUNCIL,http://statistics.data.gov.uk/id/local-authority/00FC,Cap Economy Env And Housing,Cap Development,Local Transport Plan,Cap Land/Build-Build Enh Wrk,Cap Land/Build-Build Enh Wrk,YA102,5/13/2014,279315,1741.05,CAPITAL,NORTHERN POWERGRID (YORKSHIRE) PLC,108328
NORTH EAST LINCOLNSHIRE COUNCIL,http://statistics.data.gov.uk/id/local-authority/00FC,Cap Economy Env And Housing,Cap Development,Local Transport Plan,Cap Land/Build-Build Enh Wrk,Cap Land/Build-Build Enh Wrk,YA102,5/13/2014,279327,1008.3,CAPITAL,NORTHERN POWERGRID (YORKSHIRE) PLC,108328
NORTH EAST LINCOLNSHIRE COUNCIL,http://statistics.data.gov.uk/id/local-authority/00FC,Cap Economy Env And Housing,Cap Development,Local Transport Plan,Cap Land/Build-Build Enh Wrk,Cap Land/Build-Build Enh Wrk,YA102,5/13/2014,279305,1044.63,CAPITAL,NORTHERN POWERGRID (YORKSHIRE) PLC,108328
NORTH EAST LINCOLNSHIRE COUNCIL,http://statistics.data.gov.uk/id/local-authority/00FC,Cap Economy Env And Housing,Cap Development,Local Transport Plan,Cap Land/Build-Build Enh Wrk,Cap Land/Build-Build Enh Wrk,YA102,5/19/2014,279309,1236.41,CAPITAL,NORTHERN POWERGRID (YORKSHIRE) PLC,108328
NORTH EAST LINCOLNSHIRE COUNCIL,http://statistics.data.gov.uk/id/local-authority/00FC,Cap Economy Env And Housing,Cap Development,Local Transport Plan,Cap Land/Build-Build Enh Wrk,Cap Land/Build-Build Enh Wrk,YA102,5/19/2014,279318,1968.18,CAPITAL,NORTHERN POWERGRID (YORKSHIRE) PLC,108328
NORTH EAST LINCOLNSHIRE COUNCIL,http://statistics.data.gov.uk/id/local-authority/00FC,Cap Economy Env And Housing,Cap Development,Local Transport Plan,Cap Land/Build-Build Enh Wrk,Cap Land/Build-Build Enh Wrk,YA102,5/19/2014,279321,348.21,CAPITAL,NORTHERN POWERGRID (YORKSHIRE) PLC,108328
NORTH EAST LINCOLNSHIRE COUNCIL,http://statistics.data.gov.uk/id/local-authority/00FC,Cap Economy Env And Housing,Cap Development,Local Transport Plan,Cap Land/Build-Build Enh Wrk,Cap Land/Build-Build Enh Wrk,YA102,5/19/2014,279313,696.42,CAPITAL,NORTHERN POWERGRID (YORKSHIRE) PLC,108328
NORTH EAST LINCOLNSHIRE COUNCIL,http://statistics.data.gov.uk/id/local-authority/00FC,Cap Economy Env And Housing,Cap Development,Local Transport Plan,Cap Land/Build-Build Enh Wrk,Cap Land/Build-Build Enh Wrk,YA102,5/15/2014,279329,966.6,CAPITAL,NORTHERN POWERGRID (YORKSHIRE) PLC,108328
NORTH EAST LINCOLNSHIRE COUNCIL,http://statistics.data.gov.uk/id/local-authority/00FC,Cap Economy Env And Housing,Cap Development,Local Transport Plan,Cap Land/Build-Build Enh Wrk,Cap Land/Build-Build Enh Wrk,YA102,5/19/2014,279303,1392.84,CAPITAL,NORTHERN POWERGRID (YORKSHIRE) PLC,108328
NORTH EAST LINCOLNSHIRE COUNCIL,http://statistics.data.gov.uk/id/local-authority/00FC,Cap Economy Env And Housing,Cap Development,Local Transport Plan,Cap Land/Build-Build Enh Wrk,Cap Land/Build-Build Enh Wrk,YA102,5/13/2014,279307,1044.63,CAPITAL,NORTHERN POWERGRID (YORKSHIRE) PLC,108328
NORTH EAST LINCOLNSHIRE COUNCIL,http://statistics.data.gov.uk/id/local-authority/00FC,Cap Economy Env And Housing,Cap Development,Local Transport Plan,Cap Land/Build-Build Enh Wrk,Cap Land/Build-Build Enh Wrk,YA102,5/15/2014,280344,888.2,CAPITAL,NORTHERN POWERGRID (YORKSHIRE) PLC,108328
NORTH EAST LINCOLNSHIRE COUNCIL,http://statistics.data.gov.uk/id/local-authority/00FC,Cap Economy Env And Housing,Cap Development,Local Transport Plan,Cap Land/Build-Build Enh Wrk,Cap Land/Build-Build Enh Wrk,YA102,5/13/2014,279314,696.42,CAPITAL,NORTHERN POWERGRID (YORKSHIRE) PLC,108328
NORTH EAST LINCOLNSHIRE COUNCIL,http://statistics.data.gov.uk/id/local-authority/00FC,Cap Economy Env And Housing,Cap Development,Local Transport Plan,Cap Land/Build-Build Enh Wrk,Cap Land/Build-Build Enh Wrk,YA102,5/13/2014,279312,696.42,CAPITAL,NORTHERN POWERGRID (YORKSHIRE) PLC,108328
NORTH EAST LINCOLNSHIRE COUNCIL,http://statistics.data.gov.uk/id/local-authority/00FC,Cap Economy Env And Housing,Cap Development,Local Transport Plan,Cap Land/Build-Build Enh Wrk,Cap Land/Build-Build Enh Wrk,YA102,5/13/2014,279319,696.42,CAPITAL,NORTHERN POWERGRID (YORKSHIRE) PLC,108328
NORTH EAST LINCOLNSHIRE COUNCIL,http://statistics.data.gov.uk/id/local-authority/00FC,Cap Economy Env And Housing,Cap Development,Local Transport Plan,Cap Land/Build-Build Enh Wrk,Cap Land/Build-Build Enh Wrk,YA102,5/13/2014,279304,1044.63,CAPITAL,NORTHERN POWERGRID (YORKSHIRE) PLC,108328
NORTH EAST LINCOLNSHIRE COUNCIL,http://statistics.data.gov.uk/id/local-authority/00FC,Cap Economy Env And Housing,Cap Development,Local Transport Plan,Cap Land/Build-Build Enh Wrk,Cap Land/Build-Build Enh Wrk,YA102,5/13/2014,279311,696.42,CAPITAL,NORTHERN POWERGRID (YORKSHIRE) PLC,108328
NORTH EAST LINCOLNSHIRE COUNCIL,http://statistics.data.gov.uk/id/local-authority/00FC,Cap Economy Env And Housing,Cap Development,Local Transport Plan,Cap Land/Build-Build Enh Wrk,Cap Land/Build-Build Enh Wrk,YA102,5/13/2014,279316,696.42,CAPITAL,NORTHERN POWERGRID (YORKSHIRE) PLC,108328
NORTH EAST LINCOLNSHIRE COUNCIL,http://statistics.data.gov.uk/id/local-authority/00FC,Cap Economy Env And Housing,Cap Development,Local Transport Plan,Cap Land/Build-Build Enh Wrk,Cap Land/Build-Build Enh Wrk,YA102,5/15/2014,280217,11580,CAPITAL,BLENDWORTH TYRES LTD,124901
NORTH EAST LINCOLNSHIRE COUNCIL,http://statistics.data.gov.uk/id/local-authority/00FC,Cap Economy Env And Housing,Cap Development,Local Transport Plan,Cap Infrastr-Purchase,Cap Infrastr-Purchase,YC101,5/20/2014,279793,8300,CAPITAL,NOTTINGHAMSHIRE COUNTY COUNCIL,100930
NORTH EAST LINCOLNSHIRE COUNCIL,http://statistics.data.gov.uk/id/local-authority/00FC,Cap Economy Env And Housing,Cap Development,Freeman Street Regeneration,Cap Invest Prop-Build Enh Wrk,Cap Invest Prop-Build Enh Wrk,YE102,05/08/2014,278429,2500,CAPITAL,NAZIR AHMED ELIAS,125559
NORTH EAST LINCOLNSHIRE COUNCIL,http://statistics.data.gov.uk/id/local-authority/00FC,Cap Economy Env And Housing,Cap Development,Freeman Street Regeneration,Cap Invest Prop-Build Enh Wrk,Cap Invest Prop-Build Enh Wrk,YE102,05/12/2014,278776,2357.98,CAPITAL,STEPHEN C SILLITOE,125633
NORTH EAST LINCOLNSHIRE COUNCIL,http://statistics.data.gov.uk/id/local-authority/00FC,Cap Economy Env And Housing,Cap Development,Freeman Street Regeneration,Cap Invest Prop-Build Enh Wrk,Cap Invest Prop-Build Enh Wrk,YE102,5/29/2014,281879,2500,CAPITAL,CITY CHURCH (GRIMSBY & NE LINCS) WIZ-KIDZ NUR,125813
NORTH EAST LINCOLNSHIRE COUNCIL,http://statistics.data.gov.uk/id/local-authority/00FC,Cap Economy Env And Housing,Cap Development,Housing Assistance,Cap Grants To O/Side Sources,Cap Grants To O/Side Sources,YJ101,05/01/2014,276786,5304,CAPITAL,VIC HANSEN BUILDING & JOINERY LTD,103981
NORTH EAST LINCOLNSHIRE COUNCIL,http://statistics.data.gov.uk/id/local-authority/00FC,Cap Economy Env And Housing,Cap Development,Housing Assistance,Cap Grants To O/Side Sources,Cap Grants To O/Side Sources,YJ101,05/12/2014,278777,4736.4,CAPITAL,D THORPE PLUMBING & HEATING SERVICES,118800
NORTH EAST LINCOLNSHIRE COUNCIL,http://statistics.data.gov.uk/id/local-authority/00FC,Cap Economy Env And Housing,Cap Development,Housing Assistance,Cap Grants To O/Side Sources,Cap Grants To O/Side Sources,YJ101,05/08/2014,277920,1277.5,CAPITAL,ROSS DAVY LIMITED,101055
NORTH EAST LINCOLNSHIRE COUNCIL,http://statistics.data.gov.uk/id/local-authority/00FC,Cap Economy Env And Housing,Cap Development,Housing Assistance,Cap Grants To O/Side Sources,Cap Grants To O/Side Sources,YJ101,5/19/2014,280897,17550,CAPITAL,M J QUICKFALL,102499
NORTH EAST LINCOLNSHIRE COUNCIL,http://statistics.data.gov.uk/id/local-authority/00FC,Cap Economy Env And Housing,Cap Development,Derelict Land & Comm Prop,Cap Grants To O/Side Sources,Cap Grants To O/Side Sources,YJ101,05/06/2014,277919,450,CAPITAL,TURNER EVANS STEVENS,124666
NORTH EAST LINCOLNSHIRE COUNCIL,http://statistics.data.gov.uk/id/local-authority/00FC,Cap Economy Env And Housing,Cap Development,Local Sustainable Trans Fund,Cap Land/Build-Build Enh Wrk,Cap Land/Build-Build Enh Wrk,YA102,05/08/2014,278109,6200,CAPITAL,CSH INTERIORS,109682
NORTH EAST LINCOLNSHIRE COUNCIL,http://statistics.data.gov.uk/id/local-authority/00FC,Cap Economy Env And Housing,Cap Development,Local Sustainable Trans Fund,Cap Infrastr-Build Enh Wrk,Cap Infrastr-Build Enh Wrk,YC102,5/13/2014,278656,1144,CAPITAL,WESSEX ARCHAEOLOGY,124933
NORTH EAST LINCOLNSHIRE COUNCIL,http://statistics.data.gov.uk/id/local-authority/00FC,Cap Economy Env And Housing,Cap Development,Local Sustainable Trans Fund,Cap Infrastr-Build Enh Wrk,Cap Infrastr-Build Enh Wrk,YC102,5/15/2014,272921,215093.13,CAPITAL,BIRSE CIVILS LTD,121547
NORTH EAST LINCOLNSHIRE COUNCIL,http://statistics.data.gov.uk/id/local-authority/00FC,Cap Economy Env And Housing,Cap Development,Local Sustainable Trans Fund,Cap Infrastr-Build Enh Wrk,Cap Infrastr-Build Enh Wrk,YC102,5/19/2014,279325,947.79,CAPITAL,NORTHERN POWERGRID (YORKSHIRE) PLC,108328
NORTH EAST LINCOLNSHIRE COUNCIL,http://statistics.data.gov.uk/id/local-authority/00FC,Cap Economy Env And Housing,Cap Development,Energy Sol - Street Light Lant,Cap Land/Build-Build Enh Wrk,Cap Land/Build-Build Enh Wrk,YA102,5/29/2014,282280,78058.1,CAPITAL,COFELY WORKPLACE LIMITED,123983
NORTH EAST LINCOLNSHIRE COUNCIL,http://statistics.data.gov.uk/id/local-authority/00FC,Cap Economy Env And Housing,Cap Development,Energy Sol - Street Light Lant,Cap Land/Build-Build Enh Wrk,Cap Land/Build-Build Enh Wrk,YA102,5/29/2014,282281,54136.52,CAPITAL,COFELY WORKPLACE LIMITED,123983
NORTH EAST LINCOLNSHIRE COUNCIL,http://statistics.data.gov.uk/id/local-authority/00FC,Cap Economy Env And Housing,Cap Development,Energy Sol - Street Light Lant,Cap Land/Build-Build Enh Wrk,Cap Land/Build-Build Enh Wrk,YA102,5/19/2014,281088,40926.5,CAPITAL,COFELY WORKPLACE LIMITED,123983
NORTH EAST LINCOLNSHIRE COUNCIL,http://statistics.data.gov.uk/id/local-authority/00FC,Cap Economy Env And Housing,Cap Culture Leisure And Sport,Cleethorpes Leis Cent Refurb,Cap Land/Build-Build Enh Wrk,Cap Land/Build-Build Enh Wrk,YA102,05/01/2014,277165,495,CAPITAL,SAFE STEP (UK) LTD,125682
NORTH EAST LINCOLNSHIRE COUNCIL,http://statistics.data.gov.uk/id/local-authority/00FC,Cap Economy Env And Housing,Cap Eeh Assets,Backlog Maintenance,Cap Land/Build-Build Enh Wrk,Cap Land/Build-Build Enh Wrk,YA102,05/06/2014,277909,500,CAPITAL,DAVE MOSS PHOTOGRAPHY LTD,106462
NORTH EAST LINCOLNSHIRE COUNCIL,http://statistics.data.gov.uk/id/local-authority/00FC,Cap Economy Env And Housing,Cap Eeh Assets,Backlog Maintenance,Cap Land/Build-Build Enh Wrk,Cap Land/Build-Build Enh Wrk,YA102,05/06/2014,277477,539,CAPITAL,LINCS ELECTRICAL SERVICES LTD,102044
NORTH EAST LINCOLNSHIRE COUNCIL,http://statistics.data.gov.uk/id/local-authority/00FC,Cap Economy Env And Housing,Cap Eeh Assets,Backlog Maintenance,Cap Land/Build-Build Enh Wrk,Cap Land/Build-Build Enh Wrk,YA102,05/01/2014,276738,4460,CAPITAL,HIRST CONSERVATION,108145
NORTH EAST LINCOLNSHIRE COUNCIL,http://statistics.data.gov.uk/id/local-authority/00FC,Cap Economy Env And Housing,Cap Eeh Assets,Backlog Maintenance,Cap Land/Build-Build Enh Wrk,Cap Land/Build-Build Enh Wrk,YA102,05/01/2014,276863,1318,CAPITAL,EAST KIRKBY ENGINEERING CO LTD,122478
NORTH EAST LINCOLNSHIRE COUNCIL,http://statistics.data.gov.uk/id/local-authority/00FC,Cap Economy Env And Housing,Cap Eeh Assets,Saltings Allotments Developmt,Cap Land/Build-Build Enh Wrk,Cap Land/Build-Build Enh Wrk,YA102,5/15/2014,279212,21495,CAPITAL,HODSON & KAUSS,100620
NORTH EAST LINCOLNSHIRE COUNCIL,http://statistics.data.gov.uk/id/local-authority/00FC,Cap Economy Env And Housing,Cap Eeh Assets,Property Rationalisation,Cap Land/Build-Build Enh Wrk,Cap Land/Build-Build Enh Wrk,YA102,5/29/2014,281852,3068.83,CAPITAL,KES BUILDING MAINTENANCE LIMITED,100786
NORTH EAST LINCOLNSHIRE COUNCIL,http://statistics.data.gov.uk/id/local-authority/00FC,Cap Economy Env And Housing,Cap Eeh Assets,Property Rationalisation,Cap Infrastr-Purchase,Cap Infrastr-Purchase,YC101,05/06/2014,277447,1300,CAPITAL,BADENOCH & CLARK,101427
NORTH EAST LINCOLNSHIRE COUNCIL,http://statistics.data.gov.uk/id/local-authority/00FC,Cap Economy Env And Housing,Cap Eeh Assets,Property Rationalisation,Cap Infrastr-Purchase,Cap Infrastr-Purchase,YC101,05/12/2014,279286,1170,CAPITAL,BADENOCH & CLARK,101427
NORTH EAST LINCOLNSHIRE COUNCIL,http://statistics.data.gov.uk/id/local-authority/00FC,Cap Economy Env And Housing,Cap Eeh Assets,Property Rationalisation,Cap Infrastr-Purchase,Cap Infrastr-Purchase,YC101,5/13/2014,278783,780,CAPITAL,BADENOCH & CLARK,101427
NORTH EAST LINCOLNSHIRE COUNCIL,http://statistics.data.gov.uk/id/local-authority/00FC,Cap Economy Env And Housing,Cap Eeh Assets,Property Rationalisation,Cap Infrastr-Purchase,Cap Infrastr-Purchase,YC101,5/15/2014,280289,1300,CAPITAL,BADENOCH & CLARK,101427
NORTH EAST LINCOLNSHIRE COUNCIL,http://statistics.data.gov.uk/id/local-authority/00FC,Cap Economy Env And Housing,Cap Eeh Assets,Property Rationalisation,Cap Infrastr-Purchase,Cap Infrastr-Purchase,YC101,5/22/2014,280389,4547.1,CAPITAL,SPECIALIST COMPUTER CENTRES PLC,110715
NORTH EAST LINCOLNSHIRE COUNCIL,http://statistics.data.gov.uk/id/local-authority/00FC,Cap Economy Env And Housing,Cap Eeh Assets,Property Rationalisation,Cap Infrastr-Purchase,Cap Infrastr-Purchase,YC101,05/01/2014,276942,2214.01,CAPITAL,MATRIX SCM LTD,108117
NORTH EAST LINCOLNSHIRE COUNCIL,http://statistics.data.gov.uk/id/local-authority/00FC,Cap Economy Env And Housing,Cap Eeh Assets,Property Rationalisation,Cap Infrastr-Purchase,Cap Infrastr-Purchase,YC101,05/01/2014,276944,965.55,CAPITAL,MATRIX SCM LTD,108117
NORTH EAST LINCOLNSHIRE COUNCIL,http://statistics.data.gov.uk/id/local-authority/00FC,Cap Economy Env And Housing,Cap Eeh Assets,Property Rationalisation,Cap Infrastr-Prof Fees,Cap Infrastr-Prof Fees,YC103,05/01/2014,276734,510,CAPITAL,W R CULLUM,100811
NORTH EAST LINCOLNSHIRE COUNCIL,http://statistics.data.gov.uk/id/local-authority/00FC,Cap Economy Env And Housing,Cap Eeh Assets,Property Rationalisation,Cap Infrastr-Prof Fees,Cap Infrastr-Prof Fees,YC103,05/01/2014,276731,369,CAPITAL,W R CULLUM,100811
NORTH EAST LINCOLNSHIRE COUNCIL,http://statistics.data.gov.uk/id/local-authority/00FC,Cap Economy Env And Housing,Cap Eeh Assets,Property Rationalisation,Cap Infrastr-Purchase,Cap Infrastr-Purchase,YC101,5/22/2014,280391,1364.13,CAPITAL,SPECIALIST COMPUTER CENTRES PLC,110715
NORTH EAST LINCOLNSHIRE COUNCIL,http://statistics.data.gov.uk/id/local-authority/00FC,Cap Economy Env And Housing,Cap Eeh Assets,Property Rationalisation,Cap Infrastr-Purchase,Cap Infrastr-Purchase,YC101,5/22/2014,280396,3182.97,CAPITAL,SPECIALIST COMPUTER CENTRES PLC,110715
NORTH EAST LINCOLNSHIRE COUNCIL,http://statistics.data.gov.uk/id/local-authority/00FC,Cap Economy Env And Housing,Cap Eeh Assets,Property Rationalisation,Cap Land/Build-Build Enh Wrk,Cap Land/Build-Build Enh Wrk,YA102,05/01/2014,276735,1519,CAPITAL,W R CULLUM,100811
NORTH EAST LINCOLNSHIRE COUNCIL,http://statistics.data.gov.uk/id/local-authority/00FC,Cap Economy Env And Housing,Cap Eeh Assets,Property Rationalisation,Cap Land/Build-Build Enh Wrk,Cap Land/Build-Build Enh Wrk,YA102,05/01/2014,276736,1598,CAPITAL,W R CULLUM,100811
NORTH EAST LINCOLNSHIRE COUNCIL,http://statistics.data.gov.uk/id/local-authority/00FC,Cap Economy Env And Housing,Cap Eeh Assets,Property Rationalisation,Cap Land/Build-Build Enh Wrk,Cap Land/Build-Build Enh Wrk,YA102,05/01/2014,276737,555,CAPITAL,W R CULLUM,100811
NORTH EAST LINCOLNSHIRE COUNCIL,http://statistics.data.gov.uk/id/local-authority/00FC,Cap Economy Env And Housing,Cap Eeh Assets,Property Rationalisation,Cap Infrastr-Purchase,Cap Infrastr-Purchase,YC101,5/22/2014,279202,690.48,CAPITAL,INSIGHT DIRECT (UK) LTD,101011
NORTH EAST LINCOLNSHIRE COUNCIL,http://statistics.data.gov.uk/id/local-authority/00FC,Cap Economy Env And Housing,Cap Eeh Assets,Property Rationalisation,Cap Infrastr-Purchase,Cap Infrastr-Purchase,YC101,5/22/2014,280424,17278.98,CAPITAL,SPECIALIST COMPUTER CENTRES PLC,110715
NORTH EAST LINCOLNSHIRE COUNCIL,http://statistics.data.gov.uk/id/local-authority/00FC,Cap Economy Env And Housing,Cap Eeh Assets,Property Rationalisation,Cap Infrastr-Purchase,Cap Infrastr-Purchase,YC101,5/22/2014,279203,853.86,CAPITAL,INSIGHT DIRECT (UK) LTD,101011
NORTH EAST LINCOLNSHIRE COUNCIL,http://statistics.data.gov.uk/id/local-authority/00FC,Cap Economy Env And Housing,Cap Eeh Assets,Property Rationalisation,Cap Infrastr-Build Enh Wrk,Cap Infrastr-Build Enh Wrk,YC102,5/19/2014,280846,1525.87,CAPITAL,W R CULLUM,100811
NORTH EAST LINCOLNSHIRE COUNCIL,http://statistics.data.gov.uk/id/local-authority/00FC,Cap Economy Env And Housing,Cap Eeh Assets,Property Rationalisation,Cap Infrastr-Purchase,Cap Infrastr-Purchase,YC101,5/22/2014,279256,295.92,CAPITAL,INSIGHT DIRECT (UK) LTD,101011
NORTH EAST LINCOLNSHIRE COUNCIL,http://statistics.data.gov.uk/id/local-authority/00FC,Cap Economy Env And Housing,Cap Eeh Assets,Property Rationalisation,Cap Infrastr-Purchase,Cap Infrastr-Purchase,YC101,5/22/2014,280438,7730.07,CAPITAL,SPECIALIST COMPUTER CENTRES PLC,110715
NORTH EAST LINCOLNSHIRE COUNCIL,http://statistics.data.gov.uk/id/local-authority/00FC,Cap Economy Env And Housing,Cap Eeh Assets,Property Rationalisation,Cap Infrastr-Purchase,Cap Infrastr-Purchase,YC101,5/22/2014,279253,404.46,CAPITAL,INSIGHT DIRECT (UK) LTD,101011
NORTH EAST LINCOLNSHIRE COUNCIL,http://statistics.data.gov.uk/id/local-authority/00FC,Cap Economy Env And Housing,Cap Eeh Assets,Depot Investment,Cap Land/Build-Build Enh Wrk,Cap Land/Build-Build Enh Wrk,YA102,5/22/2014,281402,4082.5,CAPITAL,FUTURE CLEANING SERVICES LTD,102557
NORTH EAST LINCOLNSHIRE COUNCIL,http://statistics.data.gov.uk/id/local-authority/00FC,Public Health,Public Health,Director Public Health,Equip / Furniture / Materials,Promotions,LA124,05/08/2014,277564,21591.59,REVENUE,SECOND AVENUE RESOURCE CENTRE LIMITED,100648
NORTH EAST LINCOLNSHIRE COUNCIL,http://statistics.data.gov.uk/id/local-authority/00FC,Public Health,Public Health,Director Public Health,Equip / Furniture / Materials,Promotions,LA124,05/01/2014,276724,35528.67,REVENUE,ST HUGHS COMMUNITY CENTRE,103637
NORTH EAST LINCOLNSHIRE COUNCIL,http://statistics.data.gov.uk/id/local-authority/00FC,Public Health,Public Health,Director Public Health,Equip / Furniture / Materials,Promotions,LA124,5/29/2014,282620,2355.02,REVENUE,WOMENS AID,100326
NORTH EAST LINCOLNSHIRE COUNCIL,http://statistics.data.gov.uk/id/local-authority/00FC,Public Health,Public Health,Director Public Health,Contributions To Provisions,Contributions - Third Sector,LK102,5/21/2014,281776,-6500,REVENUE,TERTIA TRUST HUMBERSTON,114719
NORTH EAST LINCOLNSHIRE COUNCIL,http://statistics.data.gov.uk/id/local-authority/00FC,Public Health,Public Health,Director Public Health,Contributions To Provisions,Contributions - Third Sector,LK102,5/15/2014,280182,36000,REVENUE,TERTIA TRUST HUMBERSTON,114719
NORTH EAST LINCOLNSHIRE COUNCIL,http://statistics.data.gov.uk/id/local-authority/00FC,Public Health,Public Health,Sexual Health,Private Contractors,Third Party Prov - Private,PH101,5/23/2014,280804,255,REVENUE,EA BROADBURN DISPENSING CHEMIST,101135
NORTH EAST LINCOLNSHIRE COUNCIL,http://statistics.data.gov.uk/id/local-authority/00FC,Public Health,Public Health,Sexual Health,Other Agencies,Contract Plus,PJ135,5/30/2014,282759,583.2,REVENUE,PASANTE HEALTHCARE LTD,103011
NORTH EAST LINCOLNSHIRE COUNCIL,http://statistics.data.gov.uk/id/local-authority/00FC,Public Health,Public Health,Sexual Health,Other Agencies,Health Charges,PJ131,5/13/2014,278229,REDACTED COMMERCIALLY SENSITIVE,REVENUE,VIRGIN CARE SERVICES LTD,120538
NORTH EAST LINCOLNSHIRE COUNCIL,http://statistics.data.gov.uk/id/local-authority/00FC,Public Health,Public Health,Sexual Health,Other Agencies,Other,PJ121,05/08/2014,278424,5040,REVENUE,PELHAM MEDICAL GROUP,104350
NORTH EAST LINCOLNSHIRE COUNCIL,http://statistics.data.gov.uk/id/local-authority/00FC,Public Health,Public Health,Sexual Health,Other Agencies,Other,PJ121,05/08/2014,277993,640,REVENUE,HUMBERVIEW SURGERY,120098
NORTH EAST LINCOLNSHIRE COUNCIL,http://statistics.data.gov.uk/id/local-authority/00FC,Public Health,Public Health,Sexual Health,Other Agencies,Other,PJ121,05/12/2014,277931,10880,REVENUE,DR HOPPER & PARTNERS,103900
NORTH EAST LINCOLNSHIRE COUNCIL,http://statistics.data.gov.uk/id/local-authority/00FC,Public Health,Public Health,Sexual Health,Other Agencies,Other,PJ121,5/15/2014,279383,480,REVENUE,DR SINHA & DR G DE,108111
NORTH EAST LINCOLNSHIRE COUNCIL,http://statistics.data.gov.uk/id/local-authority/00FC,Public Health,Public Health,Sexual Health,Other Agencies,Other,PJ121,5/29/2014,282730,960,REVENUE,DR BISWAS & PARTNER,112288
NORTH EAST LINCOLNSHIRE COUNCIL,http://statistics.data.gov.uk/id/local-authority/00FC,Public Health,Public Health,Tobacco,Voluntary Associations,Third Pp - Third Sector,PF101,05/12/2014,279460,500,REVENUE,VOLUNTARY ACTION NORTH EAST LINCOLNSHIRE,103631
NORTH EAST LINCOLNSHIRE COUNCIL,http://statistics.data.gov.uk/id/local-authority/00FC,Other Corporate Budgets,Borrowing Costs,Misc Interest Bank Charges Etc,Other Agencies,Fees Comm Clf Logotech Charges,PJ142,05/12/2014,277969,650,REVENUE,PSLIVE LTD,125043
NORTH EAST LINCOLNSHIRE COUNCIL,http://statistics.data.gov.uk/id/local-authority/00FC,Other Corporate Budgets,Borrowing Costs,Misc Interest Bank Charges Etc,Other Agencies,Fees Comm Clf Logotech Charges,PJ142,5/15/2014,279236,650,REVENUE,PSLIVE LTD,125043
NORTH EAST LINCOLNSHIRE COUNCIL,http://statistics.data.gov.uk/id/local-authority/00FC,Other Corporate Budgets,Other Corporate Budgets,Appropriations,Indirect Employee Expenses,Pension P/Ment Pension Inc Act,EB105,5/15/2014,280221,988.87,REVENUE,LINCOLNSHIRE COUNTY COUNCIL,100389
NORTH EAST LINCOLNSHIRE COUNCIL,http://statistics.data.gov.uk/id/local-authority/00FC,People,Early Intervention,Integrated Youth Services,Private Contractors,Third Party Prov - Private,PH101,5/23/2014,282299,450,REVENUE,REDACTED PERSONAL INFORMATION,REDACTED PERSONAL INFORMATION
NORTH EAST LINCOLNSHIRE COUNCIL,http://statistics.data.gov.uk/id/local-authority/00FC,People,Early Intervention,Integrated Youth Services,Direct Employee Expenses,Agency Staff,EA105,5/19/2014,280372,1284.64,REVENUE,VOLUNTARY ACTION NORTH EAST LINCOLNSHIRE,103631
NORTH EAST LINCOLNSHIRE COUNCIL,http://statistics.data.gov.uk/id/local-authority/00FC,People,Early Intervention,Integrated Youth Services,Miscellaneous Expenses,Activities - Service Users,LL114,05/01/2014,277612,280,REVENUE,GRIT TRACK AND TRAIL,105666
NORTH EAST LINCOLNSHIRE COUNCIL,http://statistics.data.gov.uk/id/local-authority/00FC,People,Early Intervention,Childrens Health Provision,Rents,Rent,GC101,05/06/2014,264198,715,REVENUE,GRIMSBY CENTRAL HALL TRUST,100882
NORTH EAST LINCOLNSHIRE COUNCIL,http://statistics.data.gov.uk/id/local-authority/00FC,People,Early Intervention,Childrens Health Provision,Rents,Rent,GC101,05/06/2014,272117,715,REVENUE,GRIMSBY CENTRAL HALL TRUST,100882
NORTH EAST LINCOLNSHIRE COUNCIL,http://statistics.data.gov.uk/id/local-authority/00FC,People,Early Intervention,Childrens Health Provision,Indirect Employee Expenses,Staff Training,EB122,5/23/2014,280393,260,REVENUE,FOREFRONT TRAINING LTD,105501
NORTH EAST LINCOLNSHIRE COUNCIL,http://statistics.data.gov.uk/id/local-authority/00FC,People,Early Intervention,Childrens Health Provision,Print Stationery / Gen Off Exp,Printing And Stationery,LD103,05/12/2014,278294,250,REVENUE,LYRECO UK LIMITED,101120
NORTH EAST LINCOLNSHIRE COUNCIL,http://statistics.data.gov.uk/id/local-authority/00FC,People,Early Intervention,Childrens Health Provision,Print Stationery / Gen Off Exp,Printing And Stationery,LD103,5/13/2014,277347,-250,REVENUE,LYRECO UK LIMITED,101120
NORTH EAST LINCOLNSHIRE COUNCIL,http://statistics.data.gov.uk/id/local-authority/00FC,People,Early Intervention,Childrens Health Provision,Print Stationery / Gen Off Exp,Printing And Stationery,LD103,5/13/2014,277347,-5.93,REVENUE,LYRECO UK LIMITED,101120
NORTH EAST LINCOLNSHIRE COUNCIL,http://statistics.data.gov.uk/id/local-authority/00FC,People,Early Intervention,Childrens Health Provision,Communications And Computing,Postage,LF111,05/08/2014,278295,250,REVENUE,LYRECO UK LIMITED,101120
NORTH EAST LINCOLNSHIRE COUNCIL,http://statistics.data.gov.uk/id/local-authority/00FC,People,Early Intervention,Childrens Health Provision,Communications And Computing,Postage,LF111,05/08/2014,278296,250,REVENUE,LYRECO UK LIMITED,101120
NORTH EAST LINCOLNSHIRE COUNCIL,http://statistics.data.gov.uk/id/local-authority/00FC,People,Early Intervention,Childrens Health Provision,Communications And Computing,Postage,LF111,05/12/2014,267659,250,REVENUE,LYRECO UK LIMITED,101120
NORTH EAST LINCOLNSHIRE COUNCIL,http://statistics.data.gov.uk/id/local-authority/00FC,People,Early Intervention,Childrens Health Provision,Communications And Computing,Postage,LF111,05/12/2014,278298,250,REVENUE,LYRECO UK LIMITED,101120
NORTH EAST LINCOLNSHIRE COUNCIL,http://statistics.data.gov.uk/id/local-authority/00FC,People,Early Intervention,Childrens Centre Development,Rep Alterations Maint Building,Buildings - Repairs And Maint,GA102,5/22/2014,280838,745,REVENUE,ETON-LINCS LIMITED,101510
NORTH EAST LINCOLNSHIRE COUNCIL,http://statistics.data.gov.uk/id/local-authority/00FC,People,Early Intervention,Childrens Centre Development,Rep Alterations Maint Building,Buildings - Repairs And Maint,GA102,05/12/2014,278764,400,REVENUE,IT SERVICES (GRIMSBY) LTD,101060
NORTH EAST LINCOLNSHIRE COUNCIL,http://statistics.data.gov.uk/id/local-authority/00FC,People,Early Intervention,Childrens Centre Development,Energy Costs,Gas,GB101,5/22/2014,281570,969.59,REVENUE,BRITISH GAS TRADING LTD,101507
NORTH EAST LINCOLNSHIRE COUNCIL,http://statistics.data.gov.uk/id/local-authority/00FC,People,Early Intervention,Childrens Centre Development,Cleaning And Domestic Supplies,Cleaning - Services,GH102,5/22/2014,280279,529,REVENUE,FUTURE CLEANING SERVICES LTD,102557
NORTH EAST LINCOLNSHIRE COUNCIL,http://statistics.data.gov.uk/id/local-authority/00FC,People,Early Intervention,Childrens Centre Development,Other Agencies,Child Care Payments,PJ104,5/20/2014,280784,389.29,REVENUE,PRE SCHOOL LEARNING ALLIANCE,101437
NORTH EAST LINCOLNSHIRE COUNCIL,http://statistics.data.gov.uk/id/local-authority/00FC,People,Early Intervention,Childrens Centre Development,Other Agencies,Further Ed Emp & Training,PJ130,5/23/2014,282362,430.25,REVENUE,RAND FARM PARK,101002
NORTH EAST LINCOLNSHIRE COUNCIL,http://statistics.data.gov.uk/id/local-authority/00FC,People,Early Intervention,Childrens Centre Development,Cleaning And Domestic Supplies,Cleaning - Services,GH102,5/15/2014,279439,541,REVENUE,EASY CLEAN MARSHCHAPEL LTD,104531
NORTH EAST LINCOLNSHIRE COUNCIL,http://statistics.data.gov.uk/id/local-authority/00FC,People,Early Intervention,Childrens Centre Development,Equip / Furniture / Materials,Non-Teaching Resources,LA118,5/22/2014,280408,-302,REVENUE,STAPLES BUSINESS ACCOUNT,101412
NORTH EAST LINCOLNSHIRE COUNCIL,http://statistics.data.gov.uk/id/local-authority/00FC,People,Early Intervention,Childrens Centre Development,Private Contractors,Third Party Prov - Private,PH101,5/22/2014,280266,4500,REVENUE,PRE SCHOOL LEARNING ALLIANCE,101437
NORTH EAST LINCOLNSHIRE COUNCIL,http://statistics.data.gov.uk/id/local-authority/00FC,People,Early Intervention,Childrens Centre Development,Private Contractors,Third Party Prov - Private,PH101,5/15/2014,274353,9099,REVENUE,NORTHERN LINCOLNSHIRE AND GOOLE,109594
NORTH EAST LINCOLNSHIRE COUNCIL,http://statistics.data.gov.uk/id/local-authority/00FC,People,Early Intervention,Childrens Centre Development,Private Contractors,Third Party Prov - Private,PH101,5/22/2014,280274,2696.42,REVENUE,PRE SCHOOL LEARNING ALLIANCE,101437
NORTH EAST LINCOLNSHIRE COUNCIL,http://statistics.data.gov.uk/id/local-authority/00FC,People,Early Intervention,Childrens Centre Development,Energy Costs,Electricity,GB102,5/27/2014,282431,501.41,REVENUE,NPOWER LIMITED,101414
NORTH EAST LINCOLNSHIRE COUNCIL,http://statistics.data.gov.uk/id/local-authority/00FC,People,Early Intervention,Childrens Centre Development,Rep Alterations Maint Building,Buildings - Repairs And Maint,GA102,05/01/2014,276667,590.1,REVENUE,HAITH'S HEATING LTD,101342
NORTH EAST LINCOLNSHIRE COUNCIL,http://statistics.data.gov.uk/id/local-authority/00FC,People,Early Intervention,Childrens Centre Development,Energy Costs,Electricity,GB102,5/22/2014,281436,324.9,REVENUE,EDWARD HENEAGE PRIMARY (ACADEMY),111742
NORTH EAST LINCOLNSHIRE COUNCIL,http://statistics.data.gov.uk/id/local-authority/00FC,People,Early Intervention,Childrens Centre Development,Energy Costs,Gas,GB101,05/06/2014,278422,-57.83,REVENUE,OLD CLEE PRIMARY ACADEMY,119822
NORTH EAST LINCOLNSHIRE COUNCIL,http://statistics.data.gov.uk/id/local-authority/00FC,People,Early Intervention,Childrens Centre Development,Cleaning And Domestic Supplies,Cleaning - Services,GH102,5/22/2014,281535,632,REVENUE,FOR UNDER FIVES,101931
NORTH EAST LINCOLNSHIRE COUNCIL,http://statistics.data.gov.uk/id/local-authority/00FC,People,Early Intervention,Childrens Centre Development,Rep Alterations Maint Building,Buildings - Repairs And Maint,GA102,05/01/2014,276719,262,REVENUE,HAITH'S HEATING LTD,101342
NORTH EAST LINCOLNSHIRE COUNCIL,http://statistics.data.gov.uk/id/local-authority/00FC,People,Early Intervention,Childrens Centre Development,Energy Costs,Electricity,GB102,05/12/2014,278674,841.97,REVENUE,NPOWER,101368
NORTH EAST LINCOLNSHIRE COUNCIL,http://statistics.data.gov.uk/id/local-authority/00FC,People,Early Intervention,Childrens Centre Development,Energy Costs,Electricity,GB102,05/08/2014,278421,528.16,REVENUE,NPOWER LIMITED,101414
NORTH EAST LINCOLNSHIRE COUNCIL,http://statistics.data.gov.uk/id/local-authority/00FC,People,Early Intervention,Childrens Centre Development,Energy Costs,Gas,GB101,5/20/2014,280954,251.15,REVENUE,BRITISH GAS TRADING LTD,101507
NORTH EAST LINCOLNSHIRE COUNCIL,http://statistics.data.gov.uk/id/local-authority/00FC,People,Early Intervention,Childrens Centre Development,Rents,Room Hire,GC103,5/29/2014,282516,290,REVENUE,LACEBY ACRES ACADEMY,124644
NORTH EAST LINCOLNSHIRE COUNCIL,http://statistics.data.gov.uk/id/local-authority/00FC,People,Early Intervention,Childrens Centre Development,Water Services,Water,GE101,05/06/2014,277997,508.9,REVENUE,ANGLIAN WATER,100508
NORTH EAST LINCOLNSHIRE COUNCIL,http://statistics.data.gov.uk/id/local-authority/00FC,People,Early Intervention,Childrens Centre Development,Cleaning And Domestic Supplies,Cleaning - Window Cleaning,GH101,05/08/2014,278738,400,REVENUE,SIMON KING WINDOW CLEANING,106706
NORTH EAST LINCOLNSHIRE COUNCIL,http://statistics.data.gov.uk/id/local-authority/00FC,People,Early Intervention,Childrens Centre Development,Equip / Furniture / Materials,Non-Teaching Resources,LA118,5/22/2014,281023,250,REVENUE,NEWBY LEISURE LTD,101227
NORTH EAST LINCOLNSHIRE COUNCIL,http://statistics.data.gov.uk/id/local-authority/00FC,People,Early Intervention,Childrens Centre Development,Other Agencies,Child Care Payments,PJ104,5/20/2014,280402,676.66,REVENUE,PRE SCHOOL LEARNING ALLIANCE,101437
NORTH EAST LINCOLNSHIRE COUNCIL,http://statistics.data.gov.uk/id/local-authority/00FC,People,Early Intervention,Childrens Centre Development,Other Agencies,Child Care Payments,PJ104,5/20/2014,280908,-29.14,REVENUE,PRE SCHOOL LEARNING ALLIANCE,101437
NORTH EAST LINCOLNSHIRE COUNCIL,http://statistics.data.gov.uk/id/local-authority/00FC,People,Early Intervention,Childrens Centre Development,Rep Alterations Maint Building,Buildings - Repairs And Maint,GA102,05/01/2014,276887,1840,REVENUE,HAITH'S HEATING LTD,101342
NORTH EAST LINCOLNSHIRE COUNCIL,http://statistics.data.gov.uk/id/local-authority/00FC,People,Early Intervention,Childrens Centre Development,Energy Costs,Electricity,GB102,5/29/2014,283139,-44.15,REVENUE,NPOWER LIMITED,101414
NORTH EAST LINCOLNSHIRE COUNCIL,http://statistics.data.gov.uk/id/local-authority/00FC,People,Early Intervention,Childrens Centre Development,Energy Costs,Electricity,GB102,05/12/2014,277927,395.41,REVENUE,EASTFIELD PRIMARY ACADEMY,121907
NORTH EAST LINCOLNSHIRE COUNCIL,http://statistics.data.gov.uk/id/local-authority/00FC,People,Early Intervention,Childrens Centre Development,Energy Costs,Heating Fuel,GB103,05/08/2014,277541,1077.16,REVENUE,EASTFIELD PRIMARY ACADEMY,121907
NORTH EAST LINCOLNSHIRE COUNCIL,http://statistics.data.gov.uk/id/local-authority/00FC,People,Early Intervention,Childrens Centre Development,Direct Employee Expenses,Agency Staff,EA105,5/19/2014,280379,375.44,REVENUE,THRUNSCOE PRIMARY AND NURSERY ACADEMY,118749
NORTH EAST LINCOLNSHIRE COUNCIL,http://statistics.data.gov.uk/id/local-authority/00FC,People,Early Intervention,Childrens Centre Development,Direct Employee Expenses,Agency Staff,EA105,5/19/2014,280380,375.44,REVENUE,THRUNSCOE PRIMARY AND NURSERY ACADEMY,118749
NORTH EAST LINCOLNSHIRE COUNCIL,http://statistics.data.gov.uk/id/local-authority/00FC,People,Early Intervention,Childrens Centre Development,Direct Employee Expenses,Agency Staff,EA105,5/19/2014,280380,596.43,REVENUE,THRUNSCOE PRIMARY AND NURSERY ACADEMY,118749
NORTH EAST LINCOLNSHIRE COUNCIL,http://statistics.data.gov.uk/id/local-authority/00FC,People,Early Intervention,Childrens Centre Development,Direct Employee Expenses,Agency Staff,EA105,5/19/2014,280379,614.77,REVENUE,THRUNSCOE PRIMARY AND NURSERY ACADEMY,118749
NORTH EAST LINCOLNSHIRE COUNCIL,http://statistics.data.gov.uk/id/local-authority/00FC,People,Early Intervention,Childrens Centre Development,Energy Costs,Gas,GB101,5/19/2014,280380,413.02,REVENUE,THRUNSCOE PRIMARY AND NURSERY ACADEMY,118749
NORTH EAST LINCOLNSHIRE COUNCIL,http://statistics.data.gov.uk/id/local-authority/00FC,People,Early Intervention,Childrens Centre Development,Energy Costs,Gas,GB101,5/19/2014,280379,310.54,REVENUE,THRUNSCOE PRIMARY AND NURSERY ACADEMY,118749
NORTH EAST LINCOLNSHIRE COUNCIL,http://statistics.data.gov.uk/id/local-authority/00FC,People,Early Intervention,Childrens Centre Development,Energy Costs,Gas,GB101,5/19/2014,280379,405.17,REVENUE,THRUNSCOE PRIMARY AND NURSERY ACADEMY,118749
NORTH EAST LINCOLNSHIRE COUNCIL,http://statistics.data.gov.uk/id/local-authority/00FC,People,Early Intervention,Childrens Centre Development,Water Services,Water,GE101,05/08/2014,278506,331,REVENUE,VENDING ENTERPRISES,100635
NORTH EAST LINCOLNSHIRE COUNCIL,http://statistics.data.gov.uk/id/local-authority/00FC,People,Early Intervention,Childrens Centre Development,Equip / Furniture / Materials,Non-Teaching Resources,LA118,05/12/2014,278671,-2.08,REVENUE,BAKER ROSS LTD,100778
NORTH EAST LINCOLNSHIRE COUNCIL,http://statistics.data.gov.uk/id/local-authority/00FC,People,Early Intervention,Childrens Centre Development,Equip / Furniture / Materials,Non-Teaching Resources,LA118,05/12/2014,278671,-20.83,REVENUE,BAKER ROSS LTD,100778
NORTH EAST LINCOLNSHIRE COUNCIL,http://statistics.data.gov.uk/id/local-authority/00FC,People,Early Intervention,Childrens Centre Development,Equip / Furniture / Materials,Non-Teaching Resources,LA118,05/12/2014,278671,-2.49,REVENUE,BAKER ROSS LTD,100778
NORTH EAST LINCOLNSHIRE COUNCIL,http://statistics.data.gov.uk/id/local-authority/00FC,People,Early Intervention,Childrens Centre Development,Equip / Furniture / Materials,Non-Teaching Resources,LA118,05/12/2014,278671,-2.49,REVENUE,BAKER ROSS LTD,100778
NORTH EAST LINCOLNSHIRE COUNCIL,http://statistics.data.gov.uk/id/local-authority/00FC,People,Early Intervention,Childrens Centre Development,Equip / Furniture / Materials,Non-Teaching Resources,LA118,05/12/2014,278671,-13,REVENUE,BAKER ROSS LTD,100778
NORTH EAST LINCOLNSHIRE COUNCIL,http://statistics.data.gov.uk/id/local-authority/00FC,People,Early Intervention,Childrens Centre Development,Equip / Furniture / Materials,Non-Teaching Resources,LA118,05/12/2014,278671,-2.49,REVENUE,BAKER ROSS LTD,100778
NORTH EAST LINCOLNSHIRE COUNCIL,http://statistics.data.gov.uk/id/local-authority/00FC,People,Early Intervention,Childrens Centre Development,Equip / Furniture / Materials,Non-Teaching Resources,LA118,05/12/2014,278671,-9,REVENUE,BAKER ROSS LTD,100778
NORTH EAST LINCOLNSHIRE COUNCIL,http://statistics.data.gov.uk/id/local-authority/00FC,People,Early Intervention,Childrens Centre Development,Equip / Furniture / Materials,Non-Teaching Resources,LA118,05/12/2014,278671,-10.75,REVENUE,BAKER ROSS LTD,100778
NORTH EAST LINCOLNSHIRE COUNCIL,http://statistics.data.gov.uk/id/local-authority/00FC,People,Early Intervention,Childrens Centre Development,Equip / Furniture / Materials,Non-Teaching Resources,LA118,05/12/2014,278671,-11.6,REVENUE,BAKER ROSS LTD,100778
NORTH EAST LINCOLNSHIRE COUNCIL,http://statistics.data.gov.uk/id/local-authority/00FC,People,Early Intervention,Childrens Centre Development,Equip / Furniture / Materials,Non-Teaching Resources,LA118,05/12/2014,278671,-7.46,REVENUE,BAKER ROSS LTD,100778
NORTH EAST LINCOLNSHIRE COUNCIL,http://statistics.data.gov.uk/id/local-authority/00FC,People,Early Intervention,Childrens Centre Development,Equip / Furniture / Materials,Non-Teaching Resources,LA118,05/12/2014,278671,-6.66,REVENUE,BAKER ROSS LTD,100778
NORTH EAST LINCOLNSHIRE COUNCIL,http://statistics.data.gov.uk/id/local-authority/00FC,People,Early Intervention,Childrens Centre Development,Cleaning And Domestic Supplies,Cleaning - Services,GH102,5/15/2014,280273,690.08,REVENUE,FUTURE CLEANING SERVICES LTD,102557
NORTH EAST LINCOLNSHIRE COUNCIL,http://statistics.data.gov.uk/id/local-authority/00FC,People,Early Intervention,Childrens Centre Development,Energy Costs,Electricity,GB102,5/15/2014,280272,378.5,REVENUE,YARBOROUGH ACADEMY,112852
NORTH EAST LINCOLNSHIRE COUNCIL,http://statistics.data.gov.uk/id/local-authority/00FC,People,Early Intervention,Childrens Centre Development,Cleaning And Domestic Supplies,Cleaning - Services,GH102,5/15/2014,280271,860,REVENUE,FUTURE CLEANING SERVICES LTD,102557
NORTH EAST LINCOLNSHIRE COUNCIL,http://statistics.data.gov.uk/id/local-authority/00FC,People,Early Intervention,Childrens Centre Development,Equip / Furniture / Materials,Equipment - Purchase,LA101,05/12/2014,279563,-16.5,REVENUE,EARLY YEARS RESOURCES,101664
NORTH EAST LINCOLNSHIRE COUNCIL,http://statistics.data.gov.uk/id/local-authority/00FC,People,Early Intervention,Childrens Centre Development,Print Stationery / Gen Off Exp,Printing And Stationery,LD103,5/20/2014,272530,-15.06,REVENUE,LYRECO UK LIMITED,101120
NORTH EAST LINCOLNSHIRE COUNCIL,http://statistics.data.gov.uk/id/local-authority/00FC,People,Early Intervention,Childrens Centre Development,Cleaning And Domestic Supplies,Cleaning - Services,GH102,05/01/2014,277253,934.88,REVENUE,FUTURE CLEANING SERVICES LTD,102557
NORTH EAST LINCOLNSHIRE COUNCIL,http://statistics.data.gov.uk/id/local-authority/00FC,People,Early Intervention,Childrens Centre Development,Energy Costs,Electricity,GB102,05/01/2014,277327,376.15,REVENUE,OLD CLEE PRIMARY ACADEMY,119822
NORTH EAST LINCOLNSHIRE COUNCIL,http://statistics.data.gov.uk/id/local-authority/00FC,People,Early Intervention,Childrens Centre Development,Energy Costs,Electricity,GB102,5/22/2014,281825,-57.83,REVENUE,OLD CLEE PRIMARY ACADEMY,119822
NORTH EAST LINCOLNSHIRE COUNCIL,http://statistics.data.gov.uk/id/local-authority/00FC,People,Early Intervention,Childrens Centre Development,Energy Costs,Gas,GB101,5/22/2014,281808,340.44,REVENUE,OLD CLEE PRIMARY ACADEMY,119822
NORTH EAST LINCOLNSHIRE COUNCIL,http://statistics.data.gov.uk/id/local-authority/00FC,People,Early Intervention,Childrens Centre Development,Energy Costs,Gas,GB101,05/01/2014,277327,525.68,REVENUE,OLD CLEE PRIMARY ACADEMY,119822
NORTH EAST LINCOLNSHIRE COUNCIL,http://statistics.data.gov.uk/id/local-authority/00FC,People,Early Intervention,Childrens Centre Development,Water Services,Water,GE101,5/29/2014,283096,793.67,REVENUE,OLD CLEE PRIMARY ACADEMY,119822
NORTH EAST LINCOLNSHIRE COUNCIL,http://statistics.data.gov.uk/id/local-authority/00FC,People,Early Intervention,Childrens Centre Development,Catering,Provisions,LB101,5/20/2014,280227,-51.69,REVENUE,W M MORRISON SUPERMARKETS PLC,100919
NORTH EAST LINCOLNSHIRE COUNCIL,http://statistics.data.gov.uk/id/local-authority/00FC,People,Early Intervention,Childrens Centre Development,Catering,Provisions,LB101,5/20/2014,280227,-9.07,REVENUE,W M MORRISON SUPERMARKETS PLC,100919
NORTH EAST LINCOLNSHIRE COUNCIL,http://statistics.data.gov.uk/id/local-authority/00FC,People,Early Intervention,Youth Offending Team,Private Contractors,Third Party Prov - Private,PH101,5/22/2014,278486,1000,REVENUE,DKM ASSESSMENT & VERIFICATION LTD,101643
NORTH EAST LINCOLNSHIRE COUNCIL,http://statistics.data.gov.uk/id/local-authority/00FC,People,Early Intervention,Child Protection / Safeguardin,Direct Employee Expenses,Agency Staff,EA105,5/22/2014,280258,1845.56,REVENUE,ESP LTD,101231
NORTH EAST LINCOLNSHIRE COUNCIL,http://statistics.data.gov.uk/id/local-authority/00FC,People,Early Intervention,Child Protection / Safeguardin,Direct Employee Expenses,Agency Staff,EA105,5/15/2014,280257,1839.35,REVENUE,ESP LTD,101231
NORTH EAST LINCOLNSHIRE COUNCIL,http://statistics.data.gov.uk/id/local-authority/00FC,People,Early Intervention,Child Protection / Safeguardin,Direct Employee Expenses,Agency Staff,EA105,5/22/2014,281008,1652.3,REVENUE,ESP LTD,101231
NORTH EAST LINCOLNSHIRE COUNCIL,http://statistics.data.gov.uk/id/local-authority/00FC,People,Early Intervention,Child Protection / Safeguardin,Direct Employee Expenses,Agency Staff,EA105,5/22/2014,281809,2306.95,REVENUE,ESP LTD,101231
NORTH EAST LINCOLNSHIRE COUNCIL,http://statistics.data.gov.uk/id/local-authority/00FC,People,Early Intervention,Child Protection / Safeguardin,Direct Employee Expenses,Agency Staff,EA105,05/06/2014,276858,1870.5,REVENUE,ESP LTD,101231
NORTH EAST LINCOLNSHIRE COUNCIL,http://statistics.data.gov.uk/id/local-authority/00FC,People,Early Intervention,Child Protection / Safeguardin,Rents,Room Hire,GC103,5/15/2014,280210,670,REVENUE,GRIMSBY CENTRAL HALL TRUST,100882
NORTH EAST LINCOLNSHIRE COUNCIL,http://statistics.data.gov.uk/id/local-authority/00FC,People,Early Intervention,Child Protection / Safeguardin,Rents,Room Hire,GC103,5/15/2014,280226,440,REVENUE,GRIMSBY CENTRAL HALL TRUST,100882
NORTH EAST LINCOLNSHIRE COUNCIL,http://statistics.data.gov.uk/id/local-authority/00FC,People,Early Intervention,Child Protection / Safeguardin,Private Contractors,Third Party Prov - Private,PH101,05/08/2014,278544,676.48,REVENUE,HE WORDS,122711
NORTH EAST LINCOLNSHIRE COUNCIL,http://statistics.data.gov.uk/id/local-authority/00FC,People,Early Intervention,Child Protection / Safeguardin,Private Contractors,Third Party Prov - Private,PH101,5/15/2014,279868,1137.55,REVENUE,REDACTED PERSONAL INFORMATION,REDACTED PERSONAL INFORMATION
NORTH EAST LINCOLNSHIRE COUNCIL,http://statistics.data.gov.uk/id/local-authority/00FC,People,Early Intervention,Child Protection / Safeguardin,Private Contractors,Third Party Prov - Private,PH101,05/12/2014,278751,1292.9,REVENUE,REDACTED PERSONAL INFORMATION,REDACTED PERSONAL INFORMATION
NORTH EAST LINCOLNSHIRE COUNCIL,http://statistics.data.gov.uk/id/local-authority/00FC,People,Early Intervention,Head Of Child Hlth - Fam Supp,Indirect Employee Expenses,Staff Training,EB122,5/29/2014,281482,3401,REVENUE,BEVAN ASSOCIATES LTD,125247
NORTH EAST LINCOLNSHIRE COUNCIL,http://statistics.data.gov.uk/id/local-authority/00FC,People,Early Intervention,Head Of Child Hlth - Fam Supp,Rents,Service Charge,GC102,5/13/2014,279342,2899.02,REVENUE,WEELSBY VIEW HEALTH CENTRE,101761
NORTH EAST LINCOLNSHIRE COUNCIL,http://statistics.data.gov.uk/id/local-authority/00FC,People,Early Intervention,Head Of Child Hlth - Fam Supp,Rents,Service Charge,GC102,5/19/2014,280112,6637.5,REVENUE,PHP INVESTMENTS NO. 1 LTD,121299
NORTH EAST LINCOLNSHIRE COUNCIL,http://statistics.data.gov.uk/id/local-authority/00FC,People,Early Intervention,Head Of Child Hlth - Fam Supp,Rents,Service Charge,GC102,05/12/2014,278742,1648.03,REVENUE,THE ROXTON PRACTICE,104395
NORTH EAST LINCOLNSHIRE COUNCIL,http://statistics.data.gov.uk/id/local-authority/00FC,People,Adult Serv & Hlth Improvement,Supporting People,Other Agencies,Third Pp - Block Gross,PJ103,5/22/2014,281937,REDACTED COMMERCIALLY SENSITIVE,REVENUE,ANCHOR TRUST,100327
NORTH EAST LINCOLNSHIRE COUNCIL,http://statistics.data.gov.uk/id/local-authority/00FC,People,Adult Serv & Hlth Improvement,Supporting People,Other Agencies,Third Pp - Block Gross,PJ103,5/22/2014,281932,REDACTED COMMERCIALLY SENSITIVE,REVENUE,CARE LTD,100314
NORTH EAST LINCOLNSHIRE COUNCIL,http://statistics.data.gov.uk/id/local-authority/00FC,People,Adult Serv & Hlth Improvement,Supporting People,Other Agencies,Third Pp - Block Gross,PJ103,5/22/2014,281945,REDACTED COMMERCIALLY SENSITIVE,REVENUE,CARE PLUS GROUP,106467
NORTH EAST LINCOLNSHIRE COUNCIL,http://statistics.data.gov.uk/id/local-authority/00FC,People,Adult Serv & Hlth Improvement,Supporting People,Other Agencies,Third Pp - Block Gross,PJ103,5/22/2014,281946,REDACTED COMMERCIALLY SENSITIVE,REVENUE,CREATIVE SUPPORT LTD,107198
NORTH EAST LINCOLNSHIRE COUNCIL,http://statistics.data.gov.uk/id/local-authority/00FC,People,Adult Serv & Hlth Improvement,Supporting People,Other Agencies,Third Pp - Block Gross,PJ103,5/22/2014,281929,REDACTED COMMERCIALLY SENSITIVE,REVENUE,DOORSTEP,100310
NORTH EAST LINCOLNSHIRE COUNCIL,http://statistics.data.gov.uk/id/local-authority/00FC,People,Adult Serv & Hlth Improvement,Supporting People,Other Agencies,Third Pp - Block Gross,PJ103,5/22/2014,281926,REDACTED COMMERCIALLY SENSITIVE,REVENUE,GRIMSBY CLEETHORPES & HUMBER REGION YMCA,100305
NORTH EAST LINCOLNSHIRE COUNCIL,http://statistics.data.gov.uk/id/local-authority/00FC,People,Adult Serv & Hlth Improvement,Supporting People,Other Agencies,Third Pp - Block Gross,PJ103,5/22/2014,281927,REDACTED COMMERCIALLY SENSITIVE,REVENUE,HANOVER HOUSING ASSOCIATION,100307
NORTH EAST LINCOLNSHIRE COUNCIL,http://statistics.data.gov.uk/id/local-authority/00FC,People,Adult Serv & Hlth Improvement,Supporting People,Other Agencies,Third Pp - Block Gross,PJ103,5/22/2014,281935,REDACTED COMMERCIALLY SENSITIVE,REVENUE,HOUSING & SUPPORT SOLUTIONS,100321
NORTH EAST LINCOLNSHIRE COUNCIL,http://statistics.data.gov.uk/id/local-authority/00FC,People,Adult Serv & Hlth Improvement,Supporting People,Other Agencies,Third Pp - Block Gross,PJ103,5/22/2014,281933,REDACTED COMMERCIALLY SENSITIVE,REVENUE,HICA,100319
NORTH EAST LINCOLNSHIRE COUNCIL,http://statistics.data.gov.uk/id/local-authority/00FC,People,Adult Serv & Hlth Improvement,Supporting People,Other Agencies,Third Pp - Block Gross,PJ103,5/22/2014,281934,REDACTED COMMERCIALLY SENSITIVE,REVENUE,HOUSING 21,100320
NORTH EAST LINCOLNSHIRE COUNCIL,http://statistics.data.gov.uk/id/local-authority/00FC,People,Adult Serv & Hlth Improvement,Supporting People,Other Agencies,Third Pp - Block Gross,PJ103,5/22/2014,281930,REDACTED COMMERCIALLY SENSITIVE,REVENUE,HUMBERCARE LTD,100311
NORTH EAST LINCOLNSHIRE COUNCIL,http://statistics.data.gov.uk/id/local-authority/00FC,People,Adult Serv & Hlth Improvement,Supporting People,Other Agencies,Third Pp - Block Gross,PJ103,5/22/2014,281931,REDACTED COMMERCIALLY SENSITIVE,REVENUE,HUMBERCARE LTD,100311
NORTH EAST LINCOLNSHIRE COUNCIL,http://statistics.data.gov.uk/id/local-authority/00FC,People,Adult Serv & Hlth Improvement,Supporting People,Other Agencies,Third Pp - Block Gross,PJ103,5/22/2014,281940,REDACTED COMMERCIALLY SENSITIVE,REVENUE,LONGHURST AND HAVELOK HOMES LTD,100342
NORTH EAST LINCOLNSHIRE COUNCIL,http://statistics.data.gov.uk/id/local-authority/00FC,People,Adult Serv & Hlth Improvement,Supporting People,Other Agencies,Third Pp - Block Gross,PJ103,5/22/2014,281941,REDACTED COMMERCIALLY SENSITIVE,REVENUE,LONGHURST AND HAVELOK HOMES LTD,100342
NORTH EAST LINCOLNSHIRE COUNCIL,http://statistics.data.gov.uk/id/local-authority/00FC,People,Adult Serv & Hlth Improvement,Supporting People,Other Agencies,Third Pp - Block Gross,PJ103,5/22/2014,281944,REDACTED COMMERCIALLY SENSITIVE,REVENUE,NAVIGO,104262
NORTH EAST LINCOLNSHIRE COUNCIL,http://statistics.data.gov.uk/id/local-authority/00FC,People,Adult Serv & Hlth Improvement,Supporting People,Other Agencies,Third Pp - Block Gross,PJ103,5/22/2014,281942,REDACTED COMMERCIALLY SENSITIVE,REVENUE,OPEN DOOR,103147
NORTH EAST LINCOLNSHIRE COUNCIL,http://statistics.data.gov.uk/id/local-authority/00FC,People,Adult Serv & Hlth Improvement,Supporting People,Other Agencies,Third Pp - Block Gross,PJ103,5/22/2014,281943,REDACTED COMMERCIALLY SENSITIVE,REVENUE,SANCTUARY HOUSING ASSOCIATION,103289
NORTH EAST LINCOLNSHIRE COUNCIL,http://statistics.data.gov.uk/id/local-authority/00FC,People,Adult Serv & Hlth Improvement,Supporting People,Other Agencies,Third Pp - Block Gross,PJ103,5/22/2014,281928,REDACTED COMMERCIALLY SENSITIVE,REVENUE,THE SALVATION ARMY,100309
NORTH EAST LINCOLNSHIRE COUNCIL,http://statistics.data.gov.uk/id/local-authority/00FC,People,Adult Serv & Hlth Improvement,Supporting People,Other Agencies,Third Pp - Block Gross,PJ103,5/22/2014,281936,REDACTED COMMERCIALLY SENSITIVE,REVENUE,WOMENS AID,100326
NORTH EAST LINCOLNSHIRE COUNCIL,http://statistics.data.gov.uk/id/local-authority/00FC,People,Adult Serv & Hlth Improvement,Supporting People,Other Agencies,Third Pp - Block Gross,PJ103,5/22/2014,281939,REDACTED COMMERCIALLY SENSITIVE,REVENUE,YORK HOUSING ASSOCIATION LTD,100341
NORTH EAST LINCOLNSHIRE COUNCIL,http://statistics.data.gov.uk/id/local-authority/00FC,People,Adult Serv & Hlth Improvement,Supporting People,Other Agencies,Third Pp - Block Subsidy,PJ102,5/19/2014,279422,REDACTED COMMERCIALLY SENSITIVE,REVENUE,CARE PLUS GROUP,106467
NORTH EAST LINCOLNSHIRE COUNCIL,http://statistics.data.gov.uk/id/local-authority/00FC,People,Adult Serv & Hlth Improvement,Supporting People,Other Agencies,Third Pp - Block Subsidy,PJ102,5/19/2014,277428,REDACTED COMMERCIALLY SENSITIVE,REVENUE,NHS NORTH EAST LINCOLNSHIRE CCG,121549
NORTH EAST LINCOLNSHIRE COUNCIL,http://statistics.data.gov.uk/id/local-authority/00FC,People,Adult Serv & Hlth Improvement,Supporting People,Other Agencies,Third Pp - Block Subsidy,PJ102,5/19/2014,277429,REDACTED COMMERCIALLY SENSITIVE,REVENUE,NHS NORTH EAST LINCOLNSHIRE CCG,121549
NORTH EAST LINCOLNSHIRE COUNCIL,http://statistics.data.gov.uk/id/local-authority/00FC,People,Adult Serv & Hlth Improvement,Home Options,Private Contractors,Third Party Prov - Private,PH101,5/15/2014,279893,325,REVENUE,ASTON ESTATES LINCS LTD,107831
NORTH EAST LINCOLNSHIRE COUNCIL,http://statistics.data.gov.uk/id/local-authority/00FC,People,Adult Serv & Hlth Improvement,Home Options,Private Contractors,Third Party Prov - Private,PH101,5/19/2014,279241,366.9,REVENUE,THE SALVATION ARMY,100309
NORTH EAST LINCOLNSHIRE COUNCIL,http://statistics.data.gov.uk/id/local-authority/00FC,People,Adult Serv & Hlth Improvement,Home Options,Private Contractors,Third Party Prov - Private,PH101,5/29/2014,282855,435,REVENUE,WILLOW ESTATES,104156
NORTH EAST LINCOLNSHIRE COUNCIL,http://statistics.data.gov.uk/id/local-authority/00FC,People,Adult Serv & Hlth Improvement,Home Options,Private Contractors,Third Party Prov - Private,PH101,05/08/2014,277913,425,REVENUE,GAP PROPERTY,123580
NORTH EAST LINCOLNSHIRE COUNCIL,http://statistics.data.gov.uk/id/local-authority/00FC,People,Adult Serv & Hlth Improvement,Home Options,Private Contractors,Third Party Prov - Private,PH101,5/19/2014,279894,367.03,REVENUE,SHORELINE HOUSING PARTNERSHIP LTD,100139
NORTH EAST LINCOLNSHIRE COUNCIL,http://statistics.data.gov.uk/id/local-authority/00FC,People,Adult Serv & Hlth Improvement,Home Options,Private Contractors,Third Party Prov - Private,PH101,5/15/2014,279888,367.12,REVENUE,SHORELINE HOUSING PARTNERSHIP LTD,100139
NORTH EAST LINCOLNSHIRE COUNCIL,http://statistics.data.gov.uk/id/local-authority/00FC,People,Adult Serv & Hlth Improvement,Home Options,Rents,Rent,GC101,05/08/2014,278539,11073.7,REVENUE,LONGHURST AND HAVELOK HOMES LTD,100342
NORTH EAST LINCOLNSHIRE COUNCIL,http://statistics.data.gov.uk/id/local-authority/00FC,People,Adult Serv & Hlth Improvement,Home Options,Rents,Service Charge,GC102,05/06/2014,277868,937.79,REVENUE,NORTH EAST LINCOLNSHIRE COUNCIL,100894
NORTH EAST LINCOLNSHIRE COUNCIL,http://statistics.data.gov.uk/id/local-authority/00FC,People,Adult Serv & Hlth Improvement,Home Options,Rents,Service Charge,GC102,05/12/2014,279380,1018.73,REVENUE,NORTH EAST LINCOLNSHIRE COUNCIL,100894
NORTH EAST LINCOLNSHIRE COUNCIL,http://statistics.data.gov.uk/id/local-authority/00FC,People,Adult Serv & Hlth Improvement,Home Options,Rents,Service Charge,GC102,5/19/2014,279377,1018.5,REVENUE,NORTH EAST LINCOLNSHIRE COUNCIL,100894
NORTH EAST LINCOLNSHIRE COUNCIL,http://statistics.data.gov.uk/id/local-authority/00FC,People,Adult Serv & Hlth Improvement,Home Options,Rents,Service Charge,GC102,5/13/2014,279353,1018.5,REVENUE,NORTH EAST LINCOLNSHIRE COUNCIL,100894
NORTH EAST LINCOLNSHIRE COUNCIL,http://statistics.data.gov.uk/id/local-authority/00FC,People,Adult Serv & Hlth Improvement,Home Options,Rents,Service Charge,GC102,5/13/2014,279336,1018.5,REVENUE,NORTH EAST LINCOLNSHIRE COUNCIL,100894
NORTH EAST LINCOLNSHIRE COUNCIL,http://statistics.data.gov.uk/id/local-authority/00FC,People,Adult Serv & Hlth Improvement,Home Options,Rents,Service Charge,GC102,5/13/2014,279358,1018.5,REVENUE,NORTH EAST LINCOLNSHIRE COUNCIL,100894
NORTH EAST LINCOLNSHIRE COUNCIL,http://statistics.data.gov.uk/id/local-authority/00FC,People,Adult Serv & Hlth Improvement,Home Options,Rents,Service Charge,GC102,5/13/2014,279359,1136.61,REVENUE,NORTH EAST LINCOLNSHIRE COUNCIL,100894
NORTH EAST LINCOLNSHIRE COUNCIL,http://statistics.data.gov.uk/id/local-authority/00FC,People,Adult Serv & Hlth Improvement,Home Options,Rents,Service Charge,GC102,5/13/2014,279360,1018.5,REVENUE,NORTH EAST LINCOLNSHIRE COUNCIL,100894
NORTH EAST LINCOLNSHIRE COUNCIL,http://statistics.data.gov.uk/id/local-authority/00FC,People,Adult Serv & Hlth Improvement,Home Options,Rents,Service Charge,GC102,5/13/2014,279362,1018.5,REVENUE,NORTH EAST LINCOLNSHIRE COUNCIL,100894
NORTH EAST LINCOLNSHIRE COUNCIL,http://statistics.data.gov.uk/id/local-authority/00FC,People,Adult Serv & Hlth Improvement,Home Options,Rents,Service Charge,GC102,5/15/2014,280203,285.69,REVENUE,ANGLIAN WATER,100508
NORTH EAST LINCOLNSHIRE COUNCIL,http://statistics.data.gov.uk/id/local-authority/00FC,People,Adult Serv & Hlth Improvement,Home Options,Rents,Rent,GC101,5/30/2014,282892,750,REDACTED PERSONAL INFORMATION,REDACTED PERSONAL INFORMATION,REDACTED PERSONAL INFORMATION
NORTH EAST LINCOLNSHIRE COUNCIL,http://statistics.data.gov.uk/id/local-authority/00FC,People,Adult Serv & Hlth Improvement,Home Options,Rents,Rent,GC101,5/30/2014,282893,1050,REDACTED PERSONAL INFORMATION,REDACTED PERSONAL INFORMATION,REDACTED PERSONAL INFORMATION
NORTH EAST LINCOLNSHIRE COUNCIL,http://statistics.data.gov.uk/id/local-authority/00FC,People,Adult Serv & Hlth Improvement,Home Options,Rents,Rent,GC101,5/13/2014,279240,750,REDACTED PERSONAL INFORMATION,REDACTED PERSONAL INFORMATION,REDACTED PERSONAL INFORMATION
NORTH EAST LINCOLNSHIRE COUNCIL,http://statistics.data.gov.uk/id/local-authority/00FC,People,Adult Serv & Hlth Improvement,Home Options,Rents,Rent,GC101,5/19/2014,279248,525,REDACTED PERSONAL INFORMATION,REDACTED PERSONAL INFORMATION,REDACTED PERSONAL INFORMATION
NORTH EAST LINCOLNSHIRE COUNCIL,http://statistics.data.gov.uk/id/local-authority/00FC,People,Adult Serv & Hlth Improvement,Home Options,Rents,Rent,GC101,5/29/2014,282721,408.33,REDACTED PERSONAL INFORMATION,REDACTED PERSONAL INFORMATION,REDACTED PERSONAL INFORMATION
NORTH EAST LINCOLNSHIRE COUNCIL,http://statistics.data.gov.uk/id/local-authority/00FC,People,Adult Serv & Hlth Improvement,Home Options,Rents,Rent,GC101,5/29/2014,282690,525,REDACTED PERSONAL INFORMATION,REDACTED PERSONAL INFORMATION,REDACTED PERSONAL INFORMATION
NORTH EAST LINCOLNSHIRE COUNCIL,http://statistics.data.gov.uk/id/local-authority/00FC,People,Adult Serv & Hlth Improvement,Home Options,Rents,Rent,GC101,5/29/2014,282715,525,REDACTED PERSONAL INFORMATION,REDACTED PERSONAL INFORMATION,REDACTED PERSONAL INFORMATION
NORTH EAST LINCOLNSHIRE COUNCIL,http://statistics.data.gov.uk/id/local-authority/00FC,People,Adult Serv & Hlth Improvement,Home Options,Rents,Rent,GC101,5/30/2014,282691,525,REDACTED PERSONAL INFORMATION,REDACTED PERSONAL INFORMATION,REDACTED PERSONAL INFORMATION
NORTH EAST LINCOLNSHIRE COUNCIL,http://statistics.data.gov.uk/id/local-authority/00FC,People,Adult Serv & Hlth Improvement,Home Options,Rents,Rent,GC101,5/30/2014,282692,525,REDACTED PERSONAL INFORMATION,REDACTED PERSONAL INFORMATION,REDACTED PERSONAL INFORMATION
NORTH EAST LINCOLNSHIRE COUNCIL,http://statistics.data.gov.uk/id/local-authority/00FC,People,Adult Serv & Hlth Improvement,Home Options,Rents,Rent,GC101,5/30/2014,282694,408.33,REDACTED PERSONAL INFORMATION,REDACTED PERSONAL INFORMATION,REDACTED PERSONAL INFORMATION
NORTH EAST LINCOLNSHIRE COUNCIL,http://statistics.data.gov.uk/id/local-authority/00FC,People,Adult Serv & Hlth Improvement,Home Options,Rents,Rent,GC101,5/30/2014,282695,408.33,REDACTED PERSONAL INFORMATION,REDACTED PERSONAL INFORMATION,REDACTED PERSONAL INFORMATION
NORTH EAST LINCOLNSHIRE COUNCIL,http://statistics.data.gov.uk/id/local-authority/00FC,People,Adult Serv & Hlth Improvement,Home Options,Rents,Rent,GC101,5/30/2014,282700,408.33,REDACTED PERSONAL INFORMATION,REDACTED PERSONAL INFORMATION,REDACTED PERSONAL INFORMATION
NORTH EAST LINCOLNSHIRE COUNCIL,http://statistics.data.gov.uk/id/local-authority/00FC,People,Adult Serv & Hlth Improvement,Home Options,Rents,Rent,GC101,5/30/2014,282719,487.5,REDACTED PERSONAL INFORMATION,REDACTED PERSONAL INFORMATION,REDACTED PERSONAL INFORMATION
NORTH EAST LINCOLNSHIRE COUNCIL,http://statistics.data.gov.uk/id/local-authority/00FC,People,Adult Serv & Hlth Improvement,Home Options,Rents,Rent,GC101,5/30/2014,282720,408.33,REDACTED PERSONAL INFORMATION,REDACTED PERSONAL INFORMATION,REDACTED PERSONAL INFORMATION
NORTH EAST LINCOLNSHIRE COUNCIL,http://statistics.data.gov.uk/id/local-authority/00FC,People,Adult Serv & Hlth Improvement,Home Options,Rents,Rent,GC101,5/30/2014,282722,408.33,REDACTED PERSONAL INFORMATION,REDACTED PERSONAL INFORMATION,REDACTED PERSONAL INFORMATION
NORTH EAST LINCOLNSHIRE COUNCIL,http://statistics.data.gov.uk/id/local-authority/00FC,People,Adult Serv & Hlth Improvement,Home Options,Rents,Rent,GC101,5/30/2014,282891,450,REDACTED PERSONAL INFORMATION,REDACTED PERSONAL INFORMATION,REDACTED PERSONAL INFORMATION
NORTH EAST LINCOLNSHIRE COUNCIL,http://statistics.data.gov.uk/id/local-authority/00FC,People,Adult Serv & Hlth Improvement,Home Options,Miscellaneous Income,Misc Income - O/Side Scp Vat 4,VG117,5/15/2014,280178,422.77,REVENUE,NORTH EAST LINCOLNSHIRE COUNCIL,100894
NORTH EAST LINCOLNSHIRE COUNCIL,http://statistics.data.gov.uk/id/local-authority/00FC,People,Adult Serv & Hlth Improvement,Home Options,Miscellaneous Income,Misc Income - Zero Vat 2,VG115,5/15/2014,280181,1709.89,REVENUE,NORTH EAST LINCOLNSHIRE COUNCIL,100894
NORTH EAST LINCOLNSHIRE COUNCIL,http://statistics.data.gov.uk/id/local-authority/00FC,People,Adult Serv & Hlth Improvement,Home Options,Miscellaneous Income,Misc Income - Zero Vat 2,VG115,5/15/2014,280179,325.92,REVENUE,NORTH EAST LINCOLNSHIRE COUNCIL,100894
NORTH EAST LINCOLNSHIRE COUNCIL,http://statistics.data.gov.uk/id/local-authority/00FC,People,Adult Serv & Hlth Improvement,Home Options,Consultancy,Consultancy,PL101,05/12/2014,278304,31895,REVENUE,ABRITAS LTD,102476
NORTH EAST LINCOLNSHIRE COUNCIL,http://statistics.data.gov.uk/id/local-authority/00FC,People,Adult Serv & Hlth Improvement,Improved Health Operational,Equip / Furniture / Materials,Health & Safety Supplies,LA116,5/22/2014,281563,396.8,REVENUE,DRIVE MEDICAL,101627
NORTH EAST LINCOLNSHIRE COUNCIL,http://statistics.data.gov.uk/id/local-authority/00FC,People,Adult Serv & Hlth Improvement,Improved Health Operational,Equip / Furniture / Materials,Health & Safety Supplies,LA116,05/08/2014,277857,375,REVENUE,LINCS ELECTRICAL SERVICES LTD,102044
NORTH EAST LINCOLNSHIRE COUNCIL,http://statistics.data.gov.uk/id/local-authority/00FC,People,Adult Serv & Hlth Improvement,Improved Health Operational,Equip / Furniture / Materials,Health & Safety Supplies,LA116,5/22/2014,281557,265,REVENUE,PRISM MEDICAL UK,119507
NORTH EAST LINCOLNSHIRE COUNCIL,http://statistics.data.gov.uk/id/local-authority/00FC,People,Adult Serv & Hlth Improvement,Improved Health Operational,Equip / Furniture / Materials,Health & Safety Supplies,LA116,5/22/2014,281557,381.2,REVENUE,PRISM MEDICAL UK,119507
NORTH EAST LINCOLNSHIRE COUNCIL,http://statistics.data.gov.uk/id/local-authority/00FC,People,Adult Serv & Hlth Improvement,Improved Health Operational,Equip / Furniture / Materials,Health & Safety Supplies,LA116,5/13/2014,279348,651,REVENUE,BC ELECTRIC LTD,108240
NORTH EAST LINCOLNSHIRE COUNCIL,http://statistics.data.gov.uk/id/local-authority/00FC,People,Adult Serv & Hlth Improvement,Improved Health Operational,Equip / Furniture / Materials,Health & Safety Supplies,LA116,05/12/2014,275578,252,REVENUE,DURASAK LIMITED,103615
NORTH EAST LINCOLNSHIRE COUNCIL,http://statistics.data.gov.uk/id/local-authority/00FC,People,Adult Serv & Hlth Improvement,Improved Health Operational,Equip / Furniture / Materials,Health & Safety Supplies,LA116,05/06/2014,276861,382.4,REVENUE,PATTERSON MEDICAL LTD,104008
NORTH EAST LINCOLNSHIRE COUNCIL,http://statistics.data.gov.uk/id/local-authority/00FC,People,Adult Serv & Hlth Improvement,Improved Health Operational,Equip / Furniture / Materials,Health & Safety Supplies,LA116,5/20/2014,276220,382.4,REVENUE,PATTERSON MEDICAL LTD,104008
NORTH EAST LINCOLNSHIRE COUNCIL,http://statistics.data.gov.uk/id/local-authority/00FC,People,Adult Serv & Hlth Improvement,Improved Health Operational,Equip / Furniture / Materials,Health & Safety Supplies,LA116,5/20/2014,280949,765,REVENUE,PORTARAMP UK LTD,101568
NORTH EAST LINCOLNSHIRE COUNCIL,http://statistics.data.gov.uk/id/local-authority/00FC,People,Adult Serv & Hlth Improvement,Improved Health Operational,Equip / Furniture / Materials,Health & Safety Supplies,LA116,5/20/2014,280949,885,REVENUE,PORTARAMP UK LTD,101568
NORTH EAST LINCOLNSHIRE COUNCIL,http://statistics.data.gov.uk/id/local-authority/00FC,People,Adult Serv & Hlth Improvement,Improved Health Operational,Equip / Furniture / Materials,Health & Safety Supplies,LA116,5/19/2014,279231,628.75,REVENUE,DRIVE MEDICAL,101627
NORTH EAST LINCOLNSHIRE COUNCIL,http://statistics.data.gov.uk/id/local-authority/00FC,People,Adult Serv & Hlth Improvement,Improved Health Operational,Equip / Furniture / Materials,Health & Safety Supplies,LA116,5/20/2014,280946,384,REVENUE,SUNRISE MEDICAL LTD,100990
NORTH EAST LINCOLNSHIRE COUNCIL,http://statistics.data.gov.uk/id/local-authority/00FC,People,Adult Serv & Hlth Improvement,Improved Health Operational,Equip / Furniture / Materials,Health & Safety Supplies,LA116,5/29/2014,281543,465,REVENUE,SUNRISE MEDICAL LTD,100990
NORTH EAST LINCOLNSHIRE COUNCIL,http://statistics.data.gov.uk/id/local-authority/00FC,People,Adult Serv & Hlth Improvement,Improved Health Operational,Equip / Furniture / Materials,Health & Safety Supplies,LA116,5/15/2014,279876,585,REVENUE,AQUAJOY BATHLIFTS LTD,101315
NORTH EAST LINCOLNSHIRE COUNCIL,http://statistics.data.gov.uk/id/local-authority/00FC,People,Adult Serv & Hlth Improvement,Improved Health Operational,Equip / Furniture / Materials,Health & Safety Supplies,LA116,5/23/2014,279875,390,REVENUE,AQUAJOY BATHLIFTS LTD,101315
NORTH EAST LINCOLNSHIRE COUNCIL,http://statistics.data.gov.uk/id/local-authority/00FC,People,Adult Serv & Hlth Improvement,Improved Health Operational,Equip / Furniture / Materials,Health & Safety Supplies,LA116,5/15/2014,279876,1345,REVENUE,AQUAJOY BATHLIFTS LTD,101315
NORTH EAST LINCOLNSHIRE COUNCIL,http://statistics.data.gov.uk/id/local-authority/00FC,People,Adult Serv & Hlth Improvement,Improved Health Operational,Equip / Furniture / Materials,Health & Safety Supplies,LA116,5/23/2014,279875,890,REVENUE,AQUAJOY BATHLIFTS LTD,101315
NORTH EAST LINCOLNSHIRE COUNCIL,http://statistics.data.gov.uk/id/local-authority/00FC,People,Adult Serv & Hlth Improvement,Improved Health Operational,Equip / Furniture / Materials,Health & Safety Supplies,LA116,5/20/2014,280920,296.25,REVENUE,LISCLARE LTD,101785
NORTH EAST LINCOLNSHIRE COUNCIL,http://statistics.data.gov.uk/id/local-authority/00FC,People,Adult Serv & Hlth Improvement,Improved Health Operational,Equip / Furniture / Materials,Health & Safety Supplies,LA116,5/20/2014,280927,296.25,REVENUE,LISCLARE LTD,101785
NORTH EAST LINCOLNSHIRE COUNCIL,http://statistics.data.gov.uk/id/local-authority/00FC,People,Adult Serv & Hlth Improvement,Improved Health Operational,Equip / Furniture / Materials,Health & Safety Supplies,LA116,5/20/2014,280927,2883.75,REVENUE,LISCLARE LTD,101785
NORTH EAST LINCOLNSHIRE COUNCIL,http://statistics.data.gov.uk/id/local-authority/00FC,People,Adult Serv & Hlth Improvement,Improved Health Operational,Equip / Furniture / Materials,Health & Safety Supplies,LA116,5/20/2014,280920,2883.75,REVENUE,LISCLARE LTD,101785
NORTH EAST LINCOLNSHIRE COUNCIL,http://statistics.data.gov.uk/id/local-authority/00FC,People,Adult Serv & Hlth Improvement,Improved Health Operational,Equip / Furniture / Materials,Health & Safety Supplies,LA116,05/12/2014,277848,340,REVENUE,MANGAR INTERNATIONAL,101004
NORTH EAST LINCOLNSHIRE COUNCIL,http://statistics.data.gov.uk/id/local-authority/00FC,People,Adult Serv & Hlth Improvement,Improved Health Operational,Equip / Furniture / Materials,Health & Safety Supplies,LA116,05/12/2014,277848,495,REVENUE,MANGAR INTERNATIONAL,101004
NORTH EAST LINCOLNSHIRE COUNCIL,http://statistics.data.gov.uk/id/local-authority/00FC,People,Adult Serv & Hlth Improvement,Improved Health Operational,Equip / Furniture / Materials,Health & Safety Supplies,LA116,5/20/2014,281648,264.62,REVENUE,BLASER MILLS,125949
NORTH EAST LINCOLNSHIRE COUNCIL,http://statistics.data.gov.uk/id/local-authority/00FC,People,Adult Serv & Hlth Improvement,Improved Health Operational,Equip / Furniture / Materials,Health & Safety Supplies,LA116,5/22/2014,281565,585,REVENUE,NOTTINGHAM REHAB LIMITED,101715
NORTH EAST LINCOLNSHIRE COUNCIL,http://statistics.data.gov.uk/id/local-authority/00FC,People,Adult Serv & Hlth Improvement,Improved Health Operational,Equip / Furniture / Materials,Health & Safety Supplies,LA116,5/19/2014,279231,569,REVENUE,DRIVE MEDICAL,101627
NORTH EAST LINCOLNSHIRE COUNCIL,http://statistics.data.gov.uk/id/local-authority/00FC,People,Adult Serv & Hlth Improvement,Improved Health Operational,Equip / Furniture / Materials,Health & Safety Supplies,LA116,5/22/2014,281544,869.94,REVENUE,DIRECT HEALTHCARE,102678
NORTH EAST LINCOLNSHIRE COUNCIL,http://statistics.data.gov.uk/id/local-authority/00FC,People,Adult Serv & Hlth Improvement,Improved Health Operational,Equip / Furniture / Materials,Health & Safety Supplies,LA116,5/20/2014,281648,450,REVENUE,BLASER MILLS,125949
NORTH EAST LINCOLNSHIRE COUNCIL,http://statistics.data.gov.uk/id/local-authority/00FC,People,Adult Serv & Hlth Improvement,Improved Health Operational,Equip / Furniture / Materials,Health & Safety Supplies,LA116,5/19/2014,280745,991.2,REVENUE,CLARK & PARTNERS LTD,101269
NORTH EAST LINCOLNSHIRE COUNCIL,http://statistics.data.gov.uk/id/local-authority/00FC,People,Adult Serv & Hlth Improvement,Improved Health Operational,Equip / Furniture / Materials,Health & Safety Supplies,LA116,5/20/2014,280942,991.2,REVENUE,CLARK & PARTNERS LTD,101269
NORTH EAST LINCOLNSHIRE COUNCIL,http://statistics.data.gov.uk/id/local-authority/00FC,People,Adult Serv & Hlth Improvement,Improved Health Operational,Equip / Furniture / Materials,Health & Safety Supplies,LA116,5/20/2014,280943,991.2,REVENUE,CLARK & PARTNERS LTD,101269
NORTH EAST LINCOLNSHIRE COUNCIL,http://statistics.data.gov.uk/id/local-authority/00FC,People,Adult Serv & Hlth Improvement,Improved Health Operational,Equip / Furniture / Materials,Health & Safety Supplies,LA116,5/20/2014,280944,991.2,REVENUE,CLARK & PARTNERS LTD,101269
NORTH EAST LINCOLNSHIRE COUNCIL,http://statistics.data.gov.uk/id/local-authority/00FC,People,Adult Serv & Hlth Improvement,Improved Health Operational,Equip / Furniture / Materials,Health & Safety Supplies,LA116,5/22/2014,280981,991.2,REVENUE,CLARK & PARTNERS LTD,101269
NORTH EAST LINCOLNSHIRE COUNCIL,http://statistics.data.gov.uk/id/local-authority/00FC,People,Adult Serv & Hlth Improvement,Improved Health Operational,Equip / Furniture / Materials,Health & Safety Supplies,LA116,05/12/2014,278450,1631.26,REVENUE,PRISM MEDICAL UK,119507
NORTH EAST LINCOLNSHIRE COUNCIL,http://statistics.data.gov.uk/id/local-authority/00FC,People,Adult Serv & Hlth Improvement,Improved Health Operational,Equip / Furniture / Materials,Health & Safety Supplies,LA116,5/22/2014,281571,2995,REVENUE,GREEN OF LINCOLN,100533
NORTH EAST LINCOLNSHIRE COUNCIL,http://statistics.data.gov.uk/id/local-authority/00FC,People,Adult Serv & Hlth Improvement,Improved Health Operational,Equip / Furniture / Materials,Health & Safety Supplies,LA116,5/20/2014,280749,2215,REVENUE,GREEN OF LINCOLN,100533
NORTH EAST LINCOLNSHIRE COUNCIL,http://statistics.data.gov.uk/id/local-authority/00FC,People,Adult Serv & Hlth Improvement,Improved Health Operational,Equip / Furniture / Materials,Health & Safety Supplies,LA116,05/01/2014,277334,955,REVENUE,THE HELPING HAND COMPANY (LEDBURY) LTD,101134
NORTH EAST LINCOLNSHIRE COUNCIL,http://statistics.data.gov.uk/id/local-authority/00FC,People,Adult Serv & Hlth Improvement,Improved Health Operational,Equip / Furniture / Materials,Health & Safety Supplies,LA116,5/19/2014,280220,1673,REVENUE,THE HELPING HAND COMPANY (LEDBURY) LTD,101134
NORTH EAST LINCOLNSHIRE COUNCIL,http://statistics.data.gov.uk/id/local-authority/00FC,People,Adult Serv & Hlth Improvement,Improved Health Operational,Equip / Furniture / Materials,Health & Safety Supplies,LA116,05/01/2014,277238,315,REVENUE,MOUNTWAY LTD,101232
NORTH EAST LINCOLNSHIRE COUNCIL,http://statistics.data.gov.uk/id/local-authority/00FC,People,Adult Serv & Hlth Improvement,Improved Health Operational,Equip / Furniture / Materials,Health & Safety Supplies,LA116,05/01/2014,277238,285,REVENUE,MOUNTWAY LTD,101232
NORTH EAST LINCOLNSHIRE COUNCIL,http://statistics.data.gov.uk/id/local-authority/00FC,People,Adult Serv & Hlth Improvement,Improved Health Operational,Equip / Furniture / Materials,Health & Safety Supplies,LA116,05/12/2014,275464,-3.23,REVENUE,PICKERINGS EUROPE LIMITED,100897
NORTH EAST LINCOLNSHIRE COUNCIL,http://statistics.data.gov.uk/id/local-authority/00FC,People,Adult Serv & Hlth Improvement,Improved Health Operational,Equip / Furniture / Materials,Health & Safety Supplies,LA116,5/13/2014,275827,360.34,REVENUE,PICKERINGS EUROPE LIMITED,100897
NORTH EAST LINCOLNSHIRE COUNCIL,http://statistics.data.gov.uk/id/local-authority/00FC,People,Adult Serv & Hlth Improvement,Improved Health Operational,Equip / Furniture / Materials,Health & Safety Supplies,LA116,5/13/2014,275829,395.49,REVENUE,PICKERINGS EUROPE LIMITED,100897
NORTH EAST LINCOLNSHIRE COUNCIL,http://statistics.data.gov.uk/id/local-authority/00FC,People,Adult Serv & Hlth Improvement,Improved Health Operational,Equip / Furniture / Materials,Health & Safety Supplies,LA116,05/12/2014,275498,434.42,REVENUE,PICKERINGS EUROPE LIMITED,100897
NORTH EAST LINCOLNSHIRE COUNCIL,http://statistics.data.gov.uk/id/local-authority/00FC,People,Adult Serv & Hlth Improvement,Improved Health Operational,Equip / Furniture / Materials,Health & Safety Supplies,LA116,05/12/2014,275499,262,REVENUE,PICKERINGS EUROPE LIMITED,100897
NORTH EAST LINCOLNSHIRE COUNCIL,http://statistics.data.gov.uk/id/local-authority/00FC,People,Adult Serv & Hlth Improvement,Improved Health Operational,Equip / Furniture / Materials,Health & Safety Supplies,LA116,05/01/2014,277242,293.94,REVENUE,DRIVE MEDICAL,101627
NORTH EAST LINCOLNSHIRE COUNCIL,http://statistics.data.gov.uk/id/local-authority/00FC,People,Adult Serv & Hlth Improvement,Improved Health Operational,Equip / Furniture / Materials,Health & Safety Supplies,LA116,5/23/2014,280783,254.66,REVENUE,PICKERINGS EUROPE LIMITED,100897
NORTH EAST LINCOLNSHIRE COUNCIL,http://statistics.data.gov.uk/id/local-authority/00FC,People,Adult Serv & Hlth Improvement,Improved Health Operational,Equip / Furniture / Materials,Health & Safety Supplies,LA116,5/23/2014,280909,-28.86,REVENUE,PICKERINGS EUROPE LIMITED,100897
NORTH EAST LINCOLNSHIRE COUNCIL,http://statistics.data.gov.uk/id/local-authority/00FC,People,Adult Serv & Hlth Improvement,Improved Health Operational,Equip / Furniture / Materials,Health & Safety Supplies,LA116,5/29/2014,281538,254.66,REVENUE,PICKERINGS EUROPE LIMITED,100897
NORTH EAST LINCOLNSHIRE COUNCIL,http://statistics.data.gov.uk/id/local-authority/00FC,People,Adult Serv & Hlth Improvement,Improved Health Operational,Equip / Furniture / Materials,Health & Safety Supplies,LA116,5/23/2014,276224,285,REVENUE,SIDHIL LTD,101166
NORTH EAST LINCOLNSHIRE COUNCIL,http://statistics.data.gov.uk/id/local-authority/00FC,People,Adult Serv & Hlth Improvement,Improved Health Operational,Equip / Furniture / Materials,Health & Safety Supplies,LA116,5/23/2014,280907,-285,REVENUE,SIDHIL LTD,101166
NORTH EAST LINCOLNSHIRE COUNCIL,http://statistics.data.gov.uk/id/local-authority/00FC,People,Adult Serv & Hlth Improvement,Improved Health Operational,Equip / Furniture / Materials,Health & Safety Supplies,LA116,05/06/2014,277241,522.15,REVENUE,DRIVE MEDICAL,101627
NORTH EAST LINCOLNSHIRE COUNCIL,http://statistics.data.gov.uk/id/local-authority/00FC,People,Adult Serv & Hlth Improvement,Improved Health Operational,Equip / Furniture / Materials,Health & Safety Supplies,LA116,5/19/2014,279808,840,REVENUE,ULTIMATE CARE GROUP LTD,103469
NORTH EAST LINCOLNSHIRE COUNCIL,http://statistics.data.gov.uk/id/local-authority/00FC,People,Adult Serv & Hlth Improvement,Improved Health Operational,Equip / Furniture / Materials,Health & Safety Supplies,LA116,05/01/2014,277243,278.48,REVENUE,DRIVE MEDICAL,101627
NORTH EAST LINCOLNSHIRE COUNCIL,http://statistics.data.gov.uk/id/local-authority/00FC,People,Adult Serv & Hlth Improvement,Improved Health Operational,Equip / Furniture / Materials,Health & Safety Supplies,LA116,5/19/2014,279231,573.45,REVENUE,DRIVE MEDICAL,101627
NORTH EAST LINCOLNSHIRE COUNCIL,http://statistics.data.gov.uk/id/local-authority/00FC,People,Adult Serv & Hlth Improvement,Improved Health Operational,Equip / Furniture / Materials,Health & Safety Supplies,LA116,5/19/2014,279808,720,REVENUE,ULTIMATE CARE GROUP LTD,103469
NORTH EAST LINCOLNSHIRE COUNCIL,http://statistics.data.gov.uk/id/local-authority/00FC,People,Adult Serv & Hlth Improvement,Improved Health Operational,Equip / Furniture / Materials,Health & Safety Supplies,LA116,5/13/2014,275597,380.28,REVENUE,NORTHGATE VEHICLE HIRE LTD,109432
NORTH EAST LINCOLNSHIRE COUNCIL,http://statistics.data.gov.uk/id/local-authority/00FC,People,Adult Serv & Hlth Improvement,Improved Health Operational,Equip / Furniture / Materials,Health & Safety Supplies,LA116,5/13/2014,275601,399.23,REVENUE,NORTHGATE VEHICLE HIRE LTD,109432
NORTH EAST LINCOLNSHIRE COUNCIL,http://statistics.data.gov.uk/id/local-authority/00FC,People,Adult Serv & Hlth Improvement,Improved Health Operational,Equip / Furniture / Materials,Health & Safety Supplies,LA116,5/22/2014,280780,468.37,REVENUE,NORTHGATE VEHICLE HIRE LTD,109432
NORTH EAST LINCOLNSHIRE COUNCIL,http://statistics.data.gov.uk/id/local-authority/00FC,People,Adult Serv & Hlth Improvement,Improved Health Operational,Car Allowances,Travel - Employees,JF101,5/29/2014,283071,-28.9,REVENUE,NYS CORPORATE,102444
NORTH EAST LINCOLNSHIRE COUNCIL,http://statistics.data.gov.uk/id/local-authority/00FC,People,Adult Serv & Hlth Improvement,Improved Health Operational,Consultancy,Consultancy,PL101,5/15/2014,279455,2265,REVENUE,GILLIAN CONNOLLY CONSULTING,111595
NORTH EAST LINCOLNSHIRE COUNCIL,http://statistics.data.gov.uk/id/local-authority/00FC,People,Adult Serv & Hlth Improvement,Improved Health Operational,Consultancy,Consultancy,PL101,5/15/2014,279232,5272.05,REVENUE,WILKIN CHAPMAN SOLICITORS,100948
NORTH EAST LINCOLNSHIRE COUNCIL,http://statistics.data.gov.uk/id/local-authority/00FC,People,Adult Serv & Hlth Improvement,Prevention And Wellbeing,Private Contractors,Third Party Prov - Private,PH101,5/22/2014,281812,1256.38,REVENUE,MP CONSULTING (UK) LTD,123037
NORTH EAST LINCOLNSHIRE COUNCIL,http://statistics.data.gov.uk/id/local-authority/00FC,People,Adult Serv & Hlth Improvement,Lifestyle Services Team,Rents,Room Hire,GC103,5/29/2014,282634,319,REVENUE,ST JAMES CHURCHWARDENS MAIN ACCOUNT,106502
NORTH EAST LINCOLNSHIRE COUNCIL,http://statistics.data.gov.uk/id/local-authority/00FC,People,Adult Serv & Hlth Improvement,Lifestyle Services Team,Miscellaneous Expenses,Medical Supplies And Services,LL109,5/15/2014,280333,263.22,REVENUE,SAINSBURY PHARMACY,103909
NORTH EAST LINCOLNSHIRE COUNCIL,http://statistics.data.gov.uk/id/local-authority/00FC,People,Adult Serv & Hlth Improvement,Lifestyle Services Team,Miscellaneous Expenses,Medical Supplies And Services,LL109,5/15/2014,280338,265.65,REVENUE,COTTINGHAM PHARMACY,104020
NORTH EAST LINCOLNSHIRE COUNCIL,http://statistics.data.gov.uk/id/local-authority/00FC,People,Adult Serv & Hlth Improvement,Lifestyle Services Team,Indirect Employee Expenses,Staff Training,EB122,05/08/2014,278095,500,REVENUE,NHS SOUTH YORKSHIRE & BASSETLAW CSU,125771
NORTH EAST LINCOLNSHIRE COUNCIL,http://statistics.data.gov.uk/id/local-authority/00FC,People,Adult Serv & Hlth Improvement,Lifestyle Services Team,Private Contractors,Third Party Prov - Private,PH101,5/19/2014,280842,979.66,REVENUE,VOLUNTARY ACTION NORTH EAST LINCOLNSHIRE,103631
NORTH EAST LINCOLNSHIRE COUNCIL,http://statistics.data.gov.uk/id/local-authority/00FC,People,Childrens Services,School Access Governor Student,Grants And Subscriptions,Subscriptions,LJ101,5/22/2014,281479,545,REVENUE,LEXISNEXIS UK,101447
NORTH EAST LINCOLNSHIRE COUNCIL,http://statistics.data.gov.uk/id/local-authority/00FC,People,Childrens Services,School Access Governor Student,Contract Hire-Operating Leases,Vehicles - Contract Hire,JC101,5/19/2014,280440,REDACTED COMMERCIALLY SENSITIVE,REVENUE,LINKS TAXIS,100546
NORTH EAST LINCOLNSHIRE COUNCIL,http://statistics.data.gov.uk/id/local-authority/00FC,People,Childrens Services,School Access Governor Student,Contract Hire-Operating Leases,Vehicles - Contract Hire,JC101,5/20/2014,280439,REDACTED COMMERCIALLY SENSITIVE,REVENUE,LINKS TAXIS,100546
NORTH EAST LINCOLNSHIRE COUNCIL,http://statistics.data.gov.uk/id/local-authority/00FC,People,Childrens Services,School Access Governor Student,Contract Hire-Operating Leases,Vehicles - Contract Hire,JC101,5/20/2014,280426,REDACTED COMMERCIALLY SENSITIVE,REVENUE,LINKS TAXIS,100546
NORTH EAST LINCOLNSHIRE COUNCIL,http://statistics.data.gov.uk/id/local-authority/00FC,People,Childrens Services,School Access Governor Student,Contract Hire-Operating Leases,Vehicles - Contract Hire,JC101,5/22/2014,280972,REDACTED COMMERCIALLY SENSITIVE,REVENUE,REVELLS TAXIS (ED/SOC SERV),100559
NORTH EAST LINCOLNSHIRE COUNCIL,http://statistics.data.gov.uk/id/local-authority/00FC,People,Childrens Services,School Access Governor Student,Contract Hire-Operating Leases,Vehicles - Contract Hire,JC101,5/22/2014,280992,REDACTED COMMERCIALLY SENSITIVE,REVENUE,COUNTRY CABS,101999
NORTH EAST LINCOLNSHIRE COUNCIL,http://statistics.data.gov.uk/id/local-authority/00FC,People,Childrens Services,School Access Governor Student,Contract Hire-Operating Leases,Vehicles - Contract Hire,JC101,5/13/2014,278805,REDACTED COMMERCIALLY SENSITIVE,REVENUE,COXONS CARS LIMITED,100578
NORTH EAST LINCOLNSHIRE COUNCIL,http://statistics.data.gov.uk/id/local-authority/00FC,People,Childrens Services,School Access Governor Student,Contract Hire-Operating Leases,Vehicles - Contract Hire,JC101,5/20/2014,280434,REDACTED COMMERCIALLY SENSITIVE,REVENUE,LINKS TAXIS,100546
NORTH EAST LINCOLNSHIRE COUNCIL,http://statistics.data.gov.uk/id/local-authority/00FC,People,Childrens Services,School Access Governor Student,Contract Hire-Operating Leases,Vehicles - Contract Hire,JC101,5/22/2014,280975,REDACTED COMMERCIALLY SENSITIVE,REVENUE,REVELLS TAXIS (ED/SOC SERV),100559
NORTH EAST LINCOLNSHIRE COUNCIL,http://statistics.data.gov.uk/id/local-authority/00FC,People,Childrens Services,School Access Governor Student,Contract Hire-Operating Leases,Vehicles - Contract Hire,JC101,5/19/2014,280435,REDACTED COMMERCIALLY SENSITIVE,REVENUE,LINKS TAXIS,100546
NORTH EAST LINCOLNSHIRE COUNCIL,http://statistics.data.gov.uk/id/local-authority/00FC,People,Childrens Services,School Access Governor Student,Contract Hire-Operating Leases,Vehicles - Contract Hire,JC101,5/22/2014,280973,REDACTED COMMERCIALLY SENSITIVE,REVENUE,COXONS CARS LIMITED,100578
NORTH EAST LINCOLNSHIRE COUNCIL,http://statistics.data.gov.uk/id/local-authority/00FC,People,Childrens Services,School Access Governor Student,Private Contractors,Concessionary Fares,PH104,05/12/2014,277941,REDACTED COMMERCIALLY SENSITIVE,REVENUE,STAGECOACH SERVICES,101404
NORTH EAST LINCOLNSHIRE COUNCIL,http://statistics.data.gov.uk/id/local-authority/00FC,People,Childrens Services,School Access Governor Student,Contract Hire-Operating Leases,Vehicles - Contract Hire,JC101,5/13/2014,279404,REDACTED COMMERCIALLY SENSITIVE,REVENUE,AA RADIO CARS LTD,101222
NORTH EAST LINCOLNSHIRE COUNCIL,http://statistics.data.gov.uk/id/local-authority/00FC,People,Childrens Services,School Access Governor Student,Contract Hire-Operating Leases,Vehicles - Contract Hire,JC101,5/13/2014,279408,REDACTED COMMERCIALLY SENSITIVE,REVENUE,MINICABS CLEETHORPES (LINCS) LTD,102124
NORTH EAST LINCOLNSHIRE COUNCIL,http://statistics.data.gov.uk/id/local-authority/00FC,People,Childrens Services,School Access Governor Student,Contract Hire-Operating Leases,Vehicles - Contract Hire,JC101,5/19/2014,279413,REDACTED COMMERCIALLY SENSITIVE,REVENUE,MINICABS CLEETHORPES (LINCS) LTD,102124
NORTH EAST LINCOLNSHIRE COUNCIL,http://statistics.data.gov.uk/id/local-authority/00FC,People,Childrens Services,School Access Governor Student,Contract Hire-Operating Leases,Vehicles - Contract Hire,JC101,5/15/2014,278791,REDACTED COMMERCIALLY SENSITIVE,REVENUE,AMVALE LIMITED,101030
NORTH EAST LINCOLNSHIRE COUNCIL,http://statistics.data.gov.uk/id/local-authority/00FC,People,Childrens Services,School Access Governor Student,Contract Hire-Operating Leases,Vehicles - Contract Hire,JC101,5/15/2014,278790,REDACTED COMMERCIALLY SENSITIVE,REVENUE,AMVALE LIMITED,101030
NORTH EAST LINCOLNSHIRE COUNCIL,http://statistics.data.gov.uk/id/local-authority/00FC,People,Childrens Services,School Access Governor Student,Contract Hire-Operating Leases,Vehicles - Contract Hire,JC101,5/15/2014,278789,REDACTED COMMERCIALLY SENSITIVE,REVENUE,AMVALE LIMITED,101030
NORTH EAST LINCOLNSHIRE COUNCIL,http://statistics.data.gov.uk/id/local-authority/00FC,People,Childrens Services,School Access Governor Student,Contract Hire-Operating Leases,Vehicles - Contract Hire,JC101,05/12/2014,277911,REDACTED COMMERCIALLY SENSITIVE,REVENUE,REDACTED PERSONAL INFORMATION,REDACTED PERSONAL INFORMATION
NORTH EAST LINCOLNSHIRE COUNCIL,http://statistics.data.gov.uk/id/local-authority/00FC,People,Childrens Services,School Access Governor Student,Contract Hire-Operating Leases,Vehicles - Contract Hire,JC101,05/12/2014,270024,REDACTED COMMERCIALLY SENSITIVE,REVENUE,FISHERS OF GRIMSBY,111965
NORTH EAST LINCOLNSHIRE COUNCIL,http://statistics.data.gov.uk/id/local-authority/00FC,People,Childrens Services,School Access Governor Student,Contract Hire-Operating Leases,Vehicles - Contract Hire,JC101,5/15/2014,279425,REDACTED COMMERCIALLY SENSITIVE,REVENUE,SHERWOOD TRAVEL,100868
NORTH EAST LINCOLNSHIRE COUNCIL,http://statistics.data.gov.uk/id/local-authority/00FC,People,Childrens Services,School Access Governor Student,Contract Hire-Operating Leases,Vehicles - Contract Hire,JC101,5/22/2014,281019,REDACTED COMMERCIALLY SENSITIVE,REVENUE,FISHERS OF GRIMSBY,111965
NORTH EAST LINCOLNSHIRE COUNCIL,http://statistics.data.gov.uk/id/local-authority/00FC,People,Childrens Services,School Access Governor Student,Contract Hire-Operating Leases,Vehicles - Contract Hire,JC101,05/12/2014,278799,REDACTED COMMERCIALLY SENSITIVE,REVENUE,AMVALE LIMITED,101030
NORTH EAST LINCOLNSHIRE COUNCIL,http://statistics.data.gov.uk/id/local-authority/00FC,People,Childrens Services,School Access Governor Student,Contract Hire-Operating Leases,Vehicles - Contract Hire,JC101,5/13/2014,279396,REDACTED COMMERCIALLY SENSITIVE,REVENUE,COOPERS TOURS (LINCS) LTD,111878
NORTH EAST LINCOLNSHIRE COUNCIL,http://statistics.data.gov.uk/id/local-authority/00FC,People,Childrens Services,School Access Governor Student,Contract Hire-Operating Leases,Vehicles - Contract Hire,JC101,5/13/2014,278797,REDACTED COMMERCIALLY SENSITIVE,REVENUE,AMVALE LIMITED,101030
NORTH EAST LINCOLNSHIRE COUNCIL,http://statistics.data.gov.uk/id/local-authority/00FC,People,Childrens Services,School Access Governor Student,Contract Hire-Operating Leases,Vehicles - Contract Hire,JC101,5/15/2014,279411,REDACTED COMMERCIALLY SENSITIVE,REVENUE,LINKS TAXIS,100546
NORTH EAST LINCOLNSHIRE COUNCIL,http://statistics.data.gov.uk/id/local-authority/00FC,People,Childrens Services,School Access Governor Student,Contract Hire-Operating Leases,Vehicles - Contract Hire,JC101,05/08/2014,278419,REDACTED COMMERCIALLY SENSITIVE,REVENUE,REDACTED PERSONAL INFORMATION,REDACTED PERSONAL INFORMATION
NORTH EAST LINCOLNSHIRE COUNCIL,http://statistics.data.gov.uk/id/local-authority/00FC,People,Childrens Services,School Access Governor Student,Contract Hire-Operating Leases,Vehicles - Contract Hire,JC101,05/08/2014,277903,REDACTED COMMERCIALLY SENSITIVE,REVENUE,MILLMAN COACHES,100700
NORTH EAST LINCOLNSHIRE COUNCIL,http://statistics.data.gov.uk/id/local-authority/00FC,People,Childrens Services,School Access Governor Student,Private Contractors,Concessionary Fares,PH104,05/12/2014,277941,REDACTED COMMERCIALLY SENSITIVE,REVENUE,STAGECOACH SERVICES,101404
NORTH EAST LINCOLNSHIRE COUNCIL,http://statistics.data.gov.uk/id/local-authority/00FC,People,Childrens Services,School Access Governor Student,Contract Hire-Operating Leases,Vehicles - Contract Hire,JC101,05/12/2014,278762,REDACTED COMMERCIALLY SENSITIVE,REVENUE,AMVALE LIMITED,101030
NORTH EAST LINCOLNSHIRE COUNCIL,http://statistics.data.gov.uk/id/local-authority/00FC,People,Childrens Services,School Access Governor Student,Contract Hire-Operating Leases,Vehicles - Contract Hire,JC101,5/15/2014,278794,REDACTED COMMERCIALLY SENSITIVE,REVENUE,AMVALE LIMITED,101030
NORTH EAST LINCOLNSHIRE COUNCIL,http://statistics.data.gov.uk/id/local-authority/00FC,People,Childrens Services,School Access Governor Student,Contract Hire-Operating Leases,Vehicles - Contract Hire,JC101,05/12/2014,277939,REDACTED COMMERCIALLY SENSITIVE,REVENUE,AMVALE LIMITED,101030
NORTH EAST LINCOLNSHIRE COUNCIL,http://statistics.data.gov.uk/id/local-authority/00FC,People,Childrens Services,School Access Governor Student,Contract Hire-Operating Leases,Vehicles - Contract Hire,JC101,05/12/2014,277942,REDACTED COMMERCIALLY SENSITIVE,REVENUE,AMVALE LIMITED,101030
NORTH EAST LINCOLNSHIRE COUNCIL,http://statistics.data.gov.uk/id/local-authority/00FC,People,Childrens Services,School Access Governor Student,Contract Hire-Operating Leases,Vehicles - Contract Hire,JC101,5/13/2014,279418,REDACTED COMMERCIALLY SENSITIVE,REVENUE,LINKS TAXIS,100546
NORTH EAST LINCOLNSHIRE COUNCIL,http://statistics.data.gov.uk/id/local-authority/00FC,People,Childrens Services,School Access Governor Student,Contract Hire-Operating Leases,Vehicles - Contract Hire,JC101,5/15/2014,279438,REDACTED COMMERCIALLY SENSITIVE,REVENUE,LINKS TAXIS,100546
NORTH EAST LINCOLNSHIRE COUNCIL,http://statistics.data.gov.uk/id/local-authority/00FC,People,Childrens Services,School Access Governor Student,Contract Hire-Operating Leases,Vehicles - Contract Hire,JC101,5/15/2014,279410,REDACTED COMMERCIALLY SENSITIVE,REVENUE,REDACTED PERSONAL INFORMATION,REDACTED PERSONAL INFORMATION
NORTH EAST LINCOLNSHIRE COUNCIL,http://statistics.data.gov.uk/id/local-authority/00FC,People,Childrens Services,School Access Governor Student,Contract Hire-Operating Leases,Vehicles - Contract Hire,JC101,5/20/2014,280432,REDACTED COMMERCIALLY SENSITIVE,REVENUE,LINKS TAXIS,100546
NORTH EAST LINCOLNSHIRE COUNCIL,http://statistics.data.gov.uk/id/local-authority/00FC,People,Childrens Services,School Access Governor Student,Contract Hire-Operating Leases,Vehicles - Contract Hire,JC101,5/15/2014,279454,REDACTED COMMERCIALLY SENSITIVE,REVENUE,LINKS TAXIS,100546
NORTH EAST LINCOLNSHIRE COUNCIL,http://statistics.data.gov.uk/id/local-authority/00FC,People,Childrens Services,School Access Governor Student,Contract Hire-Operating Leases,Vehicles - Contract Hire,JC101,5/15/2014,279436,REDACTED COMMERCIALLY SENSITIVE,REVENUE,LINKS TAXIS,100546
NORTH EAST LINCOLNSHIRE COUNCIL,http://statistics.data.gov.uk/id/local-authority/00FC,People,Childrens Services,School Access Governor Student,Contract Hire-Operating Leases,Vehicles - Contract Hire,JC101,05/06/2014,277904,REDACTED COMMERCIALLY SENSITIVE,REVENUE,MILLMAN COACHES,100700
NORTH EAST LINCOLNSHIRE COUNCIL,http://statistics.data.gov.uk/id/local-authority/00FC,People,Childrens Services,School Access Governor Student,Contract Hire-Operating Leases,Vehicles - Contract Hire,JC101,05/12/2014,277938,REDACTED COMMERCIALLY SENSITIVE,REVENUE,GRIMSBY MINIBUSES LTD,121524
NORTH EAST LINCOLNSHIRE COUNCIL,http://statistics.data.gov.uk/id/local-authority/00FC,People,Childrens Services,School Access Governor Student,Contract Hire-Operating Leases,Vehicles - Contract Hire,JC101,05/12/2014,277936,REDACTED COMMERCIALLY SENSITIVE,REVENUE,GRIMSBY MINIBUSES LTD,121524
NORTH EAST LINCOLNSHIRE COUNCIL,http://statistics.data.gov.uk/id/local-authority/00FC,People,Childrens Services,School Access Governor Student,Contract Hire-Operating Leases,Vehicles - Contract Hire,JC101,5/22/2014,281021,REDACTED COMMERCIALLY SENSITIVE,REVENUE,REVELLS TAXIS (ED/SOC SERV),100559
NORTH EAST LINCOLNSHIRE COUNCIL,http://statistics.data.gov.uk/id/local-authority/00FC,People,Childrens Services,School Access Governor Student,Contract Hire-Operating Leases,Vehicles - Contract Hire,JC101,5/15/2014,279435,REDACTED COMMERCIALLY SENSITIVE,REVENUE,LINKS TAXIS,100546
NORTH EAST LINCOLNSHIRE COUNCIL,http://statistics.data.gov.uk/id/local-authority/00FC,People,Childrens Services,School Access Governor Student,Contract Hire-Operating Leases,Vehicles - Contract Hire,JC101,5/22/2014,280423,REDACTED COMMERCIALLY SENSITIVE,REVENUE,COXONS CARS LIMITED,100578
NORTH EAST LINCOLNSHIRE COUNCIL,http://statistics.data.gov.uk/id/local-authority/00FC,People,Childrens Services,School Access Governor Student,Contract Hire-Operating Leases,Vehicles - Contract Hire,JC101,5/20/2014,280420,REDACTED COMMERCIALLY SENSITIVE,REVENUE,COXONS CARS LIMITED,100578
NORTH EAST LINCOLNSHIRE COUNCIL,http://statistics.data.gov.uk/id/local-authority/00FC,People,Childrens Services,School Access Governor Student,Contract Hire-Operating Leases,Vehicles - Contract Hire,JC101,5/22/2014,280422,REDACTED COMMERCIALLY SENSITIVE,REVENUE,LINKS TAXIS,100546
NORTH EAST LINCOLNSHIRE COUNCIL,http://statistics.data.gov.uk/id/local-authority/00FC,People,Childrens Services,School Access Governor Student,Contract Hire-Operating Leases,Vehicles - Contract Hire,JC101,5/15/2014,278793,REDACTED COMMERCIALLY SENSITIVE,REVENUE,AMVALE LIMITED,101030
NORTH EAST LINCOLNSHIRE COUNCIL,http://statistics.data.gov.uk/id/local-authority/00FC,People,Childrens Services,School Access Governor Student,Contract Hire-Operating Leases,Vehicles - Contract Hire,JC101,5/15/2014,279848,REDACTED COMMERCIALLY SENSITIVE,REVENUE,HANSONS AIRPORT EXPRESS,111879
NORTH EAST LINCOLNSHIRE COUNCIL,http://statistics.data.gov.uk/id/local-authority/00FC,People,Childrens Services,School Access Governor Student,Contract Hire-Operating Leases,Vehicles - Contract Hire,JC101,05/08/2014,277899,REDACTED COMMERCIALLY SENSITIVE,REVENUE,CABBYCARS,100847
NORTH EAST LINCOLNSHIRE COUNCIL,http://statistics.data.gov.uk/id/local-authority/00FC,People,Childrens Services,School Access Governor Student,Contract Hire-Operating Leases,Vehicles - Contract Hire,JC101,05/08/2014,277910,REDACTED COMMERCIALLY SENSITIVE,REVENUE,GRIMSBY MINIBUSES LTD,121524
NORTH EAST LINCOLNSHIRE COUNCIL,http://statistics.data.gov.uk/id/local-authority/00FC,People,Childrens Services,School Access Governor Student,Contract Hire-Operating Leases,Vehicles - Contract Hire,JC101,5/19/2014,279409,REDACTED COMMERCIALLY SENSITIVE,REVENUE,MINICABS CLEETHORPES (LINCS) LTD,102124
NORTH EAST LINCOLNSHIRE COUNCIL,http://statistics.data.gov.uk/id/local-authority/00FC,People,Childrens Services,School Access Governor Student,Contract Hire-Operating Leases,Vehicles - Contract Hire,JC101,5/30/2014,283482,REDACTED COMMERCIALLY SENSITIVE,REVENUE,AMVALE LIMITED,101030
NORTH EAST LINCOLNSHIRE COUNCIL,http://statistics.data.gov.uk/id/local-authority/00FC,People,Childrens Services,School Access Governor Student,Contract Hire-Operating Leases,Vehicles - Contract Hire,JC101,5/30/2014,283485,REDACTED COMMERCIALLY SENSITIVE,REVENUE,AMVALE LIMITED,101030
NORTH EAST LINCOLNSHIRE COUNCIL,http://statistics.data.gov.uk/id/local-authority/00FC,People,Childrens Services,School Access Governor Student,Contract Hire-Operating Leases,Vehicles - Contract Hire,JC101,05/08/2014,278420,REDACTED COMMERCIALLY SENSITIVE,REVENUE,AMVALE LIMITED,101030
NORTH EAST LINCOLNSHIRE COUNCIL,http://statistics.data.gov.uk/id/local-authority/00FC,People,Childrens Services,School Access Governor Student,Contract Hire-Operating Leases,Vehicles - Contract Hire,JC101,5/30/2014,283483,REDACTED COMMERCIALLY SENSITIVE,REVENUE,AMVALE LIMITED,101030
NORTH EAST LINCOLNSHIRE COUNCIL,http://statistics.data.gov.uk/id/local-authority/00FC,People,Childrens Services,School Access Governor Student,Contract Hire-Operating Leases,Vehicles - Contract Hire,JC101,5/13/2014,279437,REDACTED COMMERCIALLY SENSITIVE,REVENUE,LINKS TAXIS,100546
NORTH EAST LINCOLNSHIRE COUNCIL,http://statistics.data.gov.uk/id/local-authority/00FC,People,Childrens Services,School Access Governor Student,Contract Hire-Operating Leases,Vehicles - Contract Hire,JC101,5/22/2014,280974,REDACTED COMMERCIALLY SENSITIVE,REVENUE,REVELLS TAXIS (ED/SOC SERV),100559
NORTH EAST LINCOLNSHIRE COUNCIL,http://statistics.data.gov.uk/id/local-authority/00FC,People,Childrens Services,School Access Governor Student,Contract Hire-Operating Leases,Vehicles - Contract Hire,JC101,05/12/2014,278758,REDACTED COMMERCIALLY SENSITIVE,REVENUE,WHEELCHAIR FRIENDLY TAXI SERVICE,101915
NORTH EAST LINCOLNSHIRE COUNCIL,http://statistics.data.gov.uk/id/local-authority/00FC,People,Childrens Services,School Access Governor Student,Contract Hire-Operating Leases,Vehicles - Contract Hire,JC101,5/19/2014,279407,REDACTED COMMERCIALLY SENSITIVE,REVENUE,MINICABS CLEETHORPES (LINCS) LTD,102124
NORTH EAST LINCOLNSHIRE COUNCIL,http://statistics.data.gov.uk/id/local-authority/00FC,People,Childrens Services,School Access Governor Student,Contract Hire-Operating Leases,Vehicles - Contract Hire,JC101,5/15/2014,279393,REDACTED COMMERCIALLY SENSITIVE,REVENUE,AA RADIO CARS LTD,101222
NORTH EAST LINCOLNSHIRE COUNCIL,http://statistics.data.gov.uk/id/local-authority/00FC,People,Childrens Services,School Access Governor Student,Contract Hire-Operating Leases,Vehicles - Contract Hire,JC101,5/15/2014,279414,REDACTED COMMERCIALLY SENSITIVE,REVENUE,LINKS TAXIS,100546
NORTH EAST LINCOLNSHIRE COUNCIL,http://statistics.data.gov.uk/id/local-authority/00FC,People,Childrens Services,School Access Governor Student,Contract Hire-Operating Leases,Vehicles - Contract Hire,JC101,5/19/2014,279417,REDACTED COMMERCIALLY SENSITIVE,REVENUE,LINKS TAXIS,100546
NORTH EAST LINCOLNSHIRE COUNCIL,http://statistics.data.gov.uk/id/local-authority/00FC,People,Childrens Services,School Access Governor Student,Contract Hire-Operating Leases,Vehicles - Contract Hire,JC101,5/15/2014,278792,REDACTED COMMERCIALLY SENSITIVE,REVENUE,AMVALE LIMITED,101030
NORTH EAST LINCOLNSHIRE COUNCIL,http://statistics.data.gov.uk/id/local-authority/00FC,People,Childrens Services,School Access Governor Student,Contract Hire-Operating Leases,Vehicles - Contract Hire,JC101,5/19/2014,280416,REDACTED COMMERCIALLY SENSITIVE,REVENUE,LINKS TAXIS,100546
NORTH EAST LINCOLNSHIRE COUNCIL,http://statistics.data.gov.uk/id/local-authority/00FC,People,Childrens Services,School Access Governor Student,Contract Hire-Operating Leases,Vehicles - Contract Hire,JC101,5/27/2014,280436,REDACTED COMMERCIALLY SENSITIVE,REVENUE,LINKS TAXIS,100546
NORTH EAST LINCOLNSHIRE COUNCIL,http://statistics.data.gov.uk/id/local-authority/00FC,People,Childrens Services,School Access Governor Student,Contract Hire-Operating Leases,Vehicles - Contract Hire,JC101,5/22/2014,280429,REDACTED COMMERCIALLY SENSITIVE,REVENUE,LINKS TAXIS,100546
NORTH EAST LINCOLNSHIRE COUNCIL,http://statistics.data.gov.uk/id/local-authority/00FC,People,Childrens Services,School Access Governor Student,Contract Hire-Operating Leases,Vehicles - Contract Hire,JC101,5/19/2014,280447,REDACTED COMMERCIALLY SENSITIVE,REVENUE,LINKS TAXIS,100546
NORTH EAST LINCOLNSHIRE COUNCIL,http://statistics.data.gov.uk/id/local-authority/00FC,People,Childrens Services,School Access Governor Student,Contract Hire-Operating Leases,Vehicles - Contract Hire,JC101,5/22/2014,280987,REDACTED COMMERCIALLY SENSITIVE,REVENUE,REVELLS TAXIS (ED/SOC SERV),100559
NORTH EAST LINCOLNSHIRE COUNCIL,http://statistics.data.gov.uk/id/local-authority/00FC,People,Childrens Services,School Access Governor Student,Contract Hire-Operating Leases,Vehicles - Contract Hire,JC101,5/19/2014,280354,REDACTED COMMERCIALLY SENSITIVE,REVENUE,MINICABS CLEETHORPES (LINCS) LTD,102124
NORTH EAST LINCOLNSHIRE COUNCIL,http://statistics.data.gov.uk/id/local-authority/00FC,People,Childrens Services,School Access Governor Student,Contract Hire-Operating Leases,Vehicles - Contract Hire,JC101,5/22/2014,281018,REDACTED COMMERCIALLY SENSITIVE,REVENUE,MINICABS CLEETHORPES (LINCS) LTD,102124
NORTH EAST LINCOLNSHIRE COUNCIL,http://statistics.data.gov.uk/id/local-authority/00FC,People,Childrens Services,School Access Governor Student,Contract Hire-Operating Leases,Vehicles - Contract Hire,JC101,5/15/2014,279430,REDACTED COMMERCIALLY SENSITIVE,REVENUE,LINKS TAXIS,100546
NORTH EAST LINCOLNSHIRE COUNCIL,http://statistics.data.gov.uk/id/local-authority/00FC,People,Childrens Services,School Access Governor Student,Contract Hire-Operating Leases,Vehicles - Contract Hire,JC101,5/22/2014,281016,REDACTED COMMERCIALLY SENSITIVE,REVENUE,REDACTED PERSONAL INFORMATION,REDACTED PERSONAL INFORMATION
NORTH EAST LINCOLNSHIRE COUNCIL,http://statistics.data.gov.uk/id/local-authority/00FC,People,Childrens Services,School Access Governor Student,Contract Hire-Operating Leases,Vehicles - Contract Hire,JC101,5/15/2014,278788,REDACTED COMMERCIALLY SENSITIVE,REVENUE,AMVALE LIMITED,101030
NORTH EAST LINCOLNSHIRE COUNCIL,http://statistics.data.gov.uk/id/local-authority/00FC,People,Childrens Services,School Access Governor Student,Contract Hire-Operating Leases,Vehicles - Contract Hire,JC101,5/15/2014,278787,REDACTED COMMERCIALLY SENSITIVE,REVENUE,AMVALE LIMITED,101030
NORTH EAST LINCOLNSHIRE COUNCIL,http://statistics.data.gov.uk/id/local-authority/00FC,People,Childrens Services,School Access Governor Student,Contract Hire-Operating Leases,Vehicles - Contract Hire,JC101,5/13/2014,279415,REDACTED COMMERCIALLY SENSITIVE,REVENUE,MINICABS CLEETHORPES (LINCS) LTD,102124
NORTH EAST LINCOLNSHIRE COUNCIL,http://statistics.data.gov.uk/id/local-authority/00FC,People,Childrens Services,School Access Governor Student,Contract Hire-Operating Leases,Vehicles - Contract Hire,JC101,5/13/2014,279440,REDACTED COMMERCIALLY SENSITIVE,REVENUE,MINICABS CLEETHORPES (LINCS) LTD,102124
NORTH EAST LINCOLNSHIRE COUNCIL,http://statistics.data.gov.uk/id/local-authority/00FC,People,Childrens Services,School Access Governor Student,Contract Hire-Operating Leases,Vehicles - Contract Hire,JC101,5/15/2014,278803,REDACTED COMMERCIALLY SENSITIVE,REVENUE,AMVALE LIMITED,101030
NORTH EAST LINCOLNSHIRE COUNCIL,http://statistics.data.gov.uk/id/local-authority/00FC,People,Childrens Services,School Access Governor Student,Contract Hire-Operating Leases,Vehicles - Contract Hire,JC101,5/15/2014,279416,REDACTED COMMERCIALLY SENSITIVE,REVENUE,LINKS TAXIS,100546
NORTH EAST LINCOLNSHIRE COUNCIL,http://statistics.data.gov.uk/id/local-authority/00FC,People,Childrens Services,School Access Governor Student,Contract Hire-Operating Leases,Vehicles - Contract Hire,JC101,5/15/2014,279433,REDACTED COMMERCIALLY SENSITIVE,REVENUE,LINKS TAXIS,100546
NORTH EAST LINCOLNSHIRE COUNCIL,http://statistics.data.gov.uk/id/local-authority/00FC,People,Childrens Services,School Access Governor Student,Contract Hire-Operating Leases,Vehicles - Contract Hire,JC101,05/08/2014,277906,REDACTED COMMERCIALLY SENSITIVE,REVENUE,REDACTED PERSONAL INFORMATION,REDACTED PERSONAL INFORMATION
NORTH EAST LINCOLNSHIRE COUNCIL,http://statistics.data.gov.uk/id/local-authority/00FC,People,Childrens Services,School Access Governor Student,Contract Hire-Operating Leases,Vehicles - Contract Hire,JC101,5/13/2014,278760,REDACTED COMMERCIALLY SENSITIVE,REVENUE,WHEELCHAIR FRIENDLY TAXI SERVICE,101915
NORTH EAST LINCOLNSHIRE COUNCIL,http://statistics.data.gov.uk/id/local-authority/00FC,People,Childrens Services,School Access Governor Student,Contract Hire-Operating Leases,Vehicles - Contract Hire,JC101,5/13/2014,279462,REDACTED COMMERCIALLY SENSITIVE,REVENUE,MINICABS CLEETHORPES (LINCS) LTD,102124
NORTH EAST LINCOLNSHIRE COUNCIL,http://statistics.data.gov.uk/id/local-authority/00FC,People,Childrens Services,School Access Governor Student,Contract Hire-Operating Leases,Vehicles - Contract Hire,JC101,5/22/2014,281130,REDACTED COMMERCIALLY SENSITIVE,REVENUE,LINKS TAXIS,100546
NORTH EAST LINCOLNSHIRE COUNCIL,http://statistics.data.gov.uk/id/local-authority/00FC,People,Childrens Services,School Access Governor Student,Contract Hire-Operating Leases,Vehicles - Contract Hire,JC101,5/15/2014,278802,REDACTED COMMERCIALLY SENSITIVE,REVENUE,AMVALE LIMITED,101030
NORTH EAST LINCOLNSHIRE COUNCIL,http://statistics.data.gov.uk/id/local-authority/00FC,People,Childrens Services,School Access Governor Student,Contract Hire-Operating Leases,Vehicles - Contract Hire,JC101,5/15/2014,278801,REDACTED COMMERCIALLY SENSITIVE,REVENUE,AMVALE LIMITED,101030
NORTH EAST LINCOLNSHIRE COUNCIL,http://statistics.data.gov.uk/id/local-authority/00FC,People,Childrens Services,School Access Governor Student,Contract Hire-Operating Leases,Vehicles - Contract Hire,JC101,5/15/2014,278800,REDACTED COMMERCIALLY SENSITIVE,REVENUE,AMVALE LIMITED,101030
NORTH EAST LINCOLNSHIRE COUNCIL,http://statistics.data.gov.uk/id/local-authority/00FC,People,Childrens Services,School Access Governor Student,Contract Hire-Operating Leases,Vehicles - Contract Hire,JC101,5/15/2014,278798,REDACTED COMMERCIALLY SENSITIVE,REVENUE,AMVALE LIMITED,101030
NORTH EAST LINCOLNSHIRE COUNCIL,http://statistics.data.gov.uk/id/local-authority/00FC,People,Childrens Services,School Access Governor Student,Contract Hire-Operating Leases,Vehicles - Contract Hire,JC101,5/13/2014,279545,REDACTED COMMERCIALLY SENSITIVE,REVENUE,LINKS TAXIS,100546
NORTH EAST LINCOLNSHIRE COUNCIL,http://statistics.data.gov.uk/id/local-authority/00FC,People,Childrens Services,School Access Governor Student,Contract Hire-Operating Leases,Vehicles - Contract Hire,JC101,5/19/2014,280425,REDACTED COMMERCIALLY SENSITIVE,REVENUE,LINKS TAXIS,100546
NORTH EAST LINCOLNSHIRE COUNCIL,http://statistics.data.gov.uk/id/local-authority/00FC,People,Childrens Services,School Access Governor Student,Contract Hire-Operating Leases,Vehicles - Contract Hire,JC101,5/15/2014,279392,REDACTED COMMERCIALLY SENSITIVE,REVENUE,AA RADIO CARS LTD,101222
NORTH EAST LINCOLNSHIRE COUNCIL,http://statistics.data.gov.uk/id/local-authority/00FC,People,Childrens Services,School Access Governor Student,Contract Hire-Operating Leases,Vehicles - Contract Hire,JC101,5/15/2014,279453,REDACTED COMMERCIALLY SENSITIVE,REVENUE,AA RADIO CARS LTD,101222
NORTH EAST LINCOLNSHIRE COUNCIL,http://statistics.data.gov.uk/id/local-authority/00FC,People,Childrens Services,School Access Governor Student,Contract Hire-Operating Leases,Vehicles - Contract Hire,JC101,5/15/2014,279423,REDACTED COMMERCIALLY SENSITIVE,REVENUE,LINKS TAXIS,100546
NORTH EAST LINCOLNSHIRE COUNCIL,http://statistics.data.gov.uk/id/local-authority/00FC,People,Childrens Services,School Access Governor Student,Contract Hire-Operating Leases,Vehicles - Contract Hire,JC101,5/20/2014,280431,REDACTED COMMERCIALLY SENSITIVE,REVENUE,LINKS TAXIS,100546
NORTH EAST LINCOLNSHIRE COUNCIL,http://statistics.data.gov.uk/id/local-authority/00FC,People,Childrens Services,School Access Governor Student,Contract Hire-Operating Leases,Vehicles - Contract Hire,JC101,5/15/2014,279412,REDACTED COMMERCIALLY SENSITIVE,REVENUE,AA RADIO CARS LTD,101222
NORTH EAST LINCOLNSHIRE COUNCIL,http://statistics.data.gov.uk/id/local-authority/00FC,People,Childrens Services,School Access Governor Student,Contract Hire-Operating Leases,Vehicles - Contract Hire,JC101,5/29/2014,282414,REDACTED COMMERCIALLY SENSITIVE,REVENUE,LINKS TAXIS,100546
NORTH EAST LINCOLNSHIRE COUNCIL,http://statistics.data.gov.uk/id/local-authority/00FC,People,Childrens Services,School Access Governor Student,Contract Hire-Operating Leases,Vehicles - Contract Hire,JC101,5/13/2014,279431,REDACTED COMMERCIALLY SENSITIVE,REVENUE,LINKS TAXIS,100546
NORTH EAST LINCOLNSHIRE COUNCIL,http://statistics.data.gov.uk/id/local-authority/00FC,People,Childrens Services,Strategic Management,Indirect Employee Expenses,Allowances - Employees,EB110,05/08/2014,278736,472.5,REVENUE,GRIMSBY & DISTRICT TEACHERS ASSOCIATION,107358
NORTH EAST LINCOLNSHIRE COUNCIL,http://statistics.data.gov.uk/id/local-authority/00FC,People,Childrens Services,Strategic Management,Indirect Employee Expenses,Allowances - Employees,EB110,5/20/2014,281078,472.5,REVENUE,NASUWT G76 GRIMSBY & DISTRICT,107363
NORTH EAST LINCOLNSHIRE COUNCIL,http://statistics.data.gov.uk/id/local-authority/00FC,People,Childrens Services,Strategic Management,Indirect Employee Expenses,Staff Training,EB122,05/12/2014,279138,375,REVENUE,POLICY REVIEW PROJECTS LTD,125790
NORTH EAST LINCOLNSHIRE COUNCIL,http://statistics.data.gov.uk/id/local-authority/00FC,People,Childrens Services,Strategic Management,Grants And Subscriptions,Subscriptions,LJ101,5/13/2014,278756,250,REVENUE,LEEDS CITY COUNCIL,100545
NORTH EAST LINCOLNSHIRE COUNCIL,http://statistics.data.gov.uk/id/local-authority/00FC,People,Childrens Services,Strategic Management,Private Contractors,Third Party Prov - Private,PH101,05/06/2014,276779,1575,REVENUE,SIMUL LTD,122141
NORTH EAST LINCOLNSHIRE COUNCIL,http://statistics.data.gov.uk/id/local-authority/00FC,People,Childrens Services,Sen/Inclusion,Direct Employee Expenses,Agency Staff,EA105,5/19/2014,279262,2676.92,REVENUE,IDM CONSULTING,119926
NORTH EAST LINCOLNSHIRE COUNCIL,http://statistics.data.gov.uk/id/local-authority/00FC,People,Childrens Services,Sen/Inclusion,Direct Employee Expenses,Agency Staff,EA105,5/13/2014,275203,4800,REVENUE,KAREN CHESTER,122100
NORTH EAST LINCOLNSHIRE COUNCIL,http://statistics.data.gov.uk/id/local-authority/00FC,People,Childrens Services,Sen/Inclusion,Consultancy,Consultancy,PL101,5/15/2014,279878,254.48,REVENUE,GLENN ALLGOOD,109255
NORTH EAST LINCOLNSHIRE COUNCIL,http://statistics.data.gov.uk/id/local-authority/00FC,People,Childrens Services,Sen/Inclusion,Consultancy,Consultancy,PL101,5/15/2014,279883,2400,REVENUE,GLENN ALLGOOD,109255
NORTH EAST LINCOLNSHIRE COUNCIL,http://statistics.data.gov.uk/id/local-authority/00FC,People,Childrens Services,Sen/Inclusion,Other Local Authorities,Third Pp - Other Local Auth,PC101,5/30/2014,282859,7287.82,REVENUE,NEW OPTIONS LTD,105590
NORTH EAST LINCOLNSHIRE COUNCIL,http://statistics.data.gov.uk/id/local-authority/00FC,People,Childrens Services,Sen/Inclusion,Other Local Authorities,Third Pp - Other Local Auth,PC101,5/30/2014,282860,2947.36,REVENUE,NEW OPTIONS LTD,105590
NORTH EAST LINCOLNSHIRE COUNCIL,http://statistics.data.gov.uk/id/local-authority/00FC,People,Childrens Services,Sen/Inclusion,Other Local Authorities,Third Pp - Other Local Auth,PC101,5/30/2014,282937,56250,REVENUE,REDACTED PERSONAL INFORMATION,REDACTED PERSONAL INFORMATION
NORTH EAST LINCOLNSHIRE COUNCIL,http://statistics.data.gov.uk/id/local-authority/00FC,People,Childrens Services,Sen/Inclusion,Other Local Authorities,Third Pp - Other Local Auth,PC101,5/15/2014,279913,2978.57,REVENUE,REFLEXION CARE GROUP LIMITED,106975
NORTH EAST LINCOLNSHIRE COUNCIL,http://statistics.data.gov.uk/id/local-authority/00FC,People,Childrens Services,Sen/Inclusion,Other Local Authorities,Third Pp - Other Local Auth,PC101,5/13/2014,279198,41107.33,REVENUE,DONCASTER DEAF TRUST,101268
NORTH EAST LINCOLNSHIRE COUNCIL,http://statistics.data.gov.uk/id/local-authority/00FC,People,Childrens Services,Sen/Inclusion,Other Local Authorities,Third Pp - Other Local Auth,PC101,5/13/2014,279237,27068.61,REVENUE,DONCASTER METROPOLITAN BOROUGH COUNCIL,103098
NORTH EAST LINCOLNSHIRE COUNCIL,http://statistics.data.gov.uk/id/local-authority/00FC,People,Childrens Services,Sen/Inclusion,Other Local Authorities,Third Pp - Other Local Auth,PC101,5/15/2014,279879,13500,REVENUE,HORTON ESTABLISHMENTS LTD,101329
NORTH EAST LINCOLNSHIRE COUNCIL,http://statistics.data.gov.uk/id/local-authority/00FC,People,Childrens Services,Sen/Inclusion,Other Local Authorities,Third Pp - Other Local Auth,PC101,5/19/2014,279881,13500,REVENUE,HORTON ESTABLISHMENTS LTD,101329
NORTH EAST LINCOLNSHIRE COUNCIL,http://statistics.data.gov.uk/id/local-authority/00FC,People,Childrens Services,Sen/Inclusion,Other Local Authorities,Third Pp - Other Local Auth,PC101,5/15/2014,279884,7500,REVENUE,PHYSIS QUANTUM,118777
NORTH EAST LINCOLNSHIRE COUNCIL,http://statistics.data.gov.uk/id/local-authority/00FC,People,Childrens Services,Sen/Inclusion,Other Local Authorities,Third Pp - Other Local Auth,PC101,5/13/2014,279199,1160.52,REVENUE,DKM ASSESSMENT & VERIFICATION LTD,101643
NORTH EAST LINCOLNSHIRE COUNCIL,http://statistics.data.gov.uk/id/local-authority/00FC,People,Childrens Services,Sen/Inclusion,Other Local Authorities,Third Pp - Other Local Auth,PC101,5/30/2014,282926,8150,REVENUE,HUMBERSTON PARK SPECIAL SCHOOL,107911
NORTH EAST LINCOLNSHIRE COUNCIL,http://statistics.data.gov.uk/id/local-authority/00FC,People,Childrens Services,Sen/Inclusion,Other Local Authorities,Third Pp - Other Local Auth,PC101,5/15/2014,279897,2948.78,REVENUE,REFLEXION CARE GROUP LIMITED,106975
NORTH EAST LINCOLNSHIRE COUNCIL,http://statistics.data.gov.uk/id/local-authority/00FC,People,Childrens Services,Sen/Inclusion,Other Local Authorities,Third Pp - Other Local Auth,PC101,5/15/2014,279885,33337.32,REVENUE,BARNARDO SERVICES LTD,101050
NORTH EAST LINCOLNSHIRE COUNCIL,http://statistics.data.gov.uk/id/local-authority/00FC,People,Childrens Services,Sen/Inclusion,Other Local Authorities,Third Pp - Other Local Auth,PC101,5/15/2014,279892,22293.92,REVENUE,BARNARDO SERVICES LTD,101050
NORTH EAST LINCOLNSHIRE COUNCIL,http://statistics.data.gov.uk/id/local-authority/00FC,People,Childrens Services,Sen/Inclusion,Other Local Authorities,Third Pp - Other Local Auth,PC101,5/15/2014,279880,22293.92,REVENUE,BARNARDO SERVICES LTD,101050
NORTH EAST LINCOLNSHIRE COUNCIL,http://statistics.data.gov.uk/id/local-authority/00FC,People,Childrens Services,Sen/Inclusion,Private Contractors,Third Party Prov - Private,PH101,5/13/2014,279235,27604.14,REVENUE,ST HELENS COUNCIL,122955
NORTH EAST LINCOLNSHIRE COUNCIL,http://statistics.data.gov.uk/id/local-authority/00FC,People,Childrens Services,Sen/Inclusion,Private Contractors,Third Party Prov - Private,PH101,05/08/2014,277902,12428.7,REVENUE,ADVANCED CHILDCARE,119448
NORTH EAST LINCOLNSHIRE COUNCIL,http://statistics.data.gov.uk/id/local-authority/00FC,People,Childrens Services,Sen/Inclusion,Private Contractors,Third Party Prov - Private,PH101,5/15/2014,279913,3000,REVENUE,REFLEXION CARE GROUP LIMITED,106975
NORTH EAST LINCOLNSHIRE COUNCIL,http://statistics.data.gov.uk/id/local-authority/00FC,People,Childrens Services,Sen/Inclusion,Private Contractors,Third Party Prov - Private,PH101,5/15/2014,279913,12857.13,REVENUE,REFLEXION CARE GROUP LIMITED,106975
NORTH EAST LINCOLNSHIRE COUNCIL,http://statistics.data.gov.uk/id/local-authority/00FC,People,Childrens Services,Sen/Inclusion,Private Contractors,Third Party Prov - Private,PH101,05/08/2014,277917,600,REVENUE,LINKAGE COMMUNITY TRUST LTD,104471
NORTH EAST LINCOLNSHIRE COUNCIL,http://statistics.data.gov.uk/id/local-authority/00FC,People,Childrens Services,Sen/Inclusion,Private Contractors,Third Party Prov - Private,PH101,5/15/2014,279884,13285.8,REVENUE,PHYSIS QUANTUM,118777
NORTH EAST LINCOLNSHIRE COUNCIL,http://statistics.data.gov.uk/id/local-authority/00FC,People,Childrens Services,Sen/Inclusion,Private Contractors,Third Party Prov - Private,PH101,5/15/2014,279902,8414.33,REVENUE,KEYS CHILDCARE LTD,122934
NORTH EAST LINCOLNSHIRE COUNCIL,http://statistics.data.gov.uk/id/local-authority/00FC,People,Childrens Services,Sen/Inclusion,Private Contractors,Third Party Prov - Private,PH101,5/15/2014,279877,16607.1,REVENUE,MEADOWS CARE LTD,120773
NORTH EAST LINCOLNSHIRE COUNCIL,http://statistics.data.gov.uk/id/local-authority/00FC,People,Childrens Services,Sen/Inclusion,Private Contractors,Third Party Prov - Private,PH101,5/20/2014,280367,975,REVENUE,ROCK FOUNDATION UK LTD,100481
NORTH EAST LINCOLNSHIRE COUNCIL,http://statistics.data.gov.uk/id/local-authority/00FC,People,Childrens Services,Sen/Inclusion,Private Contractors,Third Party Prov - Private,PH101,5/15/2014,279897,18244.27,REVENUE,REFLEXION CARE GROUP LIMITED,106975
NORTH EAST LINCOLNSHIRE COUNCIL,http://statistics.data.gov.uk/id/local-authority/00FC,People,Childrens Services,Sen/Inclusion,Private Contractors,Third Party Prov - Private,PH101,5/19/2014,280368,19285.8,REVENUE,TIMEOUT HOMES LTD,110615
NORTH EAST LINCOLNSHIRE COUNCIL,http://statistics.data.gov.uk/id/local-authority/00FC,People,Childrens Services,Sen/Inclusion,Private Contractors,Third Party Prov - Private,PH101,5/27/2014,282388,8414.33,REVENUE,KEYS CHILDCARE LTD,122934
NORTH EAST LINCOLNSHIRE COUNCIL,http://statistics.data.gov.uk/id/local-authority/00FC,People,Childrens Services,Sen/Inclusion,Private Contractors,Third Party Prov - Private,PH101,5/29/2014,282426,8357,REVENUE,ASPIREONE CARE LTD,110181
NORTH EAST LINCOLNSHIRE COUNCIL,http://statistics.data.gov.uk/id/local-authority/00FC,People,Childrens Services,Sen/Inclusion,Contributions To Provisions,Contributions - Other,LK103,5/15/2014,279882,39000,REVENUE,BARNARDO SERVICES LTD,101050
NORTH EAST LINCOLNSHIRE COUNCIL,http://statistics.data.gov.uk/id/local-authority/00FC,People,Childrens Services,Sen/Inclusion,Direct Employee Expenses,Agency Staff,EA105,05/12/2014,278302,2432.5,REVENUE,CASH FRIDAY,124740
NORTH EAST LINCOLNSHIRE COUNCIL,http://statistics.data.gov.uk/id/local-authority/00FC,People,Childrens Services,Sen/Inclusion,Direct Employee Expenses,Agency Staff,EA105,05/08/2014,278307,868.75,REVENUE,CASH FRIDAY,124740
NORTH EAST LINCOLNSHIRE COUNCIL,http://statistics.data.gov.uk/id/local-authority/00FC,People,Childrens Services,Sen/Inclusion,Direct Employee Expenses,Agency Staff,EA105,05/08/2014,278308,1042.5,REVENUE,CASH FRIDAY,124740
NORTH EAST LINCOLNSHIRE COUNCIL,http://statistics.data.gov.uk/id/local-authority/00FC,People,Childrens Services,Sen/Inclusion,Direct Employee Expenses,Agency Staff,EA105,05/01/2014,276944,334.68,REVENUE,MATRIX SCM LTD,108117
NORTH EAST LINCOLNSHIRE COUNCIL,http://statistics.data.gov.uk/id/local-authority/00FC,People,Childrens Services,Sen/Inclusion,Private Contractors,Third Party Prov - Private,PH101,5/13/2014,278826,3800,REVENUE,A4E CONSULT LTD,101656
NORTH EAST LINCOLNSHIRE COUNCIL,http://statistics.data.gov.uk/id/local-authority/00FC,People,Childrens Services,Sen/Inclusion,Private Contractors,Third Party Prov - Private,PH101,5/19/2014,280405,-38,REVENUE,A4E CONSULT LTD,101656
NORTH EAST LINCOLNSHIRE COUNCIL,http://statistics.data.gov.uk/id/local-authority/00FC,People,Childrens Services,Sen/Inclusion,Private Contractors,Third Party Prov - Private,PH101,5/15/2014,279398,6549.6,REVENUE,CPO MEDIA,102186
NORTH EAST LINCOLNSHIRE COUNCIL,http://statistics.data.gov.uk/id/local-authority/00FC,People,Childrens Services,Sen/Inclusion,Private Contractors,Third Party Prov - Private,PH101,05/08/2014,278478,1540,REVENUE,DKM ASSESSMENT & VERIFICATION LTD,101643
NORTH EAST LINCOLNSHIRE COUNCIL,http://statistics.data.gov.uk/id/local-authority/00FC,People,Childrens Services,Sen/Inclusion,Private Contractors,Third Party Prov - Private,PH101,05/08/2014,278479,550,REVENUE,DKM ASSESSMENT & VERIFICATION LTD,101643
NORTH EAST LINCOLNSHIRE COUNCIL,http://statistics.data.gov.uk/id/local-authority/00FC,People,Childrens Services,Sen/Inclusion,Private Contractors,Third Party Prov - Private,PH101,05/08/2014,278480,1540,REVENUE,DKM ASSESSMENT & VERIFICATION LTD,101643
NORTH EAST LINCOLNSHIRE COUNCIL,http://statistics.data.gov.uk/id/local-authority/00FC,People,Childrens Services,Sen/Inclusion,Private Contractors,Third Party Prov - Private,PH101,05/08/2014,278483,550,REVENUE,DKM ASSESSMENT & VERIFICATION LTD,101643
NORTH EAST LINCOLNSHIRE COUNCIL,http://statistics.data.gov.uk/id/local-authority/00FC,People,Childrens Services,Sen/Inclusion,Private Contractors,Third Party Prov - Private,PH101,05/08/2014,278430,1540,REVENUE,DKM ASSESSMENT & VERIFICATION LTD,101643
NORTH EAST LINCOLNSHIRE COUNCIL,http://statistics.data.gov.uk/id/local-authority/00FC,People,Childrens Services,Sen/Inclusion,Private Contractors,Third Party Prov - Private,PH101,05/08/2014,278431,550,REVENUE,DKM ASSESSMENT & VERIFICATION LTD,101643
NORTH EAST LINCOLNSHIRE COUNCIL,http://statistics.data.gov.uk/id/local-authority/00FC,People,Childrens Services,Sen/Inclusion,Private Contractors,Third Party Prov - Private,PH101,05/08/2014,278432,550,REVENUE,DKM ASSESSMENT & VERIFICATION LTD,101643
NORTH EAST LINCOLNSHIRE COUNCIL,http://statistics.data.gov.uk/id/local-authority/00FC,People,Childrens Services,Sen/Inclusion,Private Contractors,Third Party Prov - Private,PH101,05/08/2014,278433,550,REVENUE,DKM ASSESSMENT & VERIFICATION LTD,101643
NORTH EAST LINCOLNSHIRE COUNCIL,http://statistics.data.gov.uk/id/local-authority/00FC,People,Childrens Services,Sen/Inclusion,Private Contractors,Third Party Prov - Private,PH101,05/08/2014,278434,550,REVENUE,DKM ASSESSMENT & VERIFICATION LTD,101643
NORTH EAST LINCOLNSHIRE COUNCIL,http://statistics.data.gov.uk/id/local-authority/00FC,People,Childrens Services,Sen/Inclusion,Private Contractors,Third Party Prov - Private,PH101,05/08/2014,278471,550,REVENUE,DKM ASSESSMENT & VERIFICATION LTD,101643
NORTH EAST LINCOLNSHIRE COUNCIL,http://statistics.data.gov.uk/id/local-authority/00FC,People,Childrens Services,Sen/Inclusion,Private Contractors,Third Party Prov - Private,PH101,05/08/2014,278473,1540,REVENUE,DKM ASSESSMENT & VERIFICATION LTD,101643
NORTH EAST LINCOLNSHIRE COUNCIL,http://statistics.data.gov.uk/id/local-authority/00FC,People,Childrens Services,Sen/Inclusion,Private Contractors,Third Party Prov - Private,PH101,05/08/2014,278474,550,REVENUE,DKM ASSESSMENT & VERIFICATION LTD,101643
NORTH EAST LINCOLNSHIRE COUNCIL,http://statistics.data.gov.uk/id/local-authority/00FC,People,Childrens Services,Sen/Inclusion,Private Contractors,Third Party Prov - Private,PH101,05/08/2014,278676,550,REVENUE,DKM ASSESSMENT & VERIFICATION LTD,101643
NORTH EAST LINCOLNSHIRE COUNCIL,http://statistics.data.gov.uk/id/local-authority/00FC,People,Childrens Services,Sen/Inclusion,Private Contractors,Third Party Prov - Private,PH101,05/12/2014,278475,1540,REVENUE,DKM ASSESSMENT & VERIFICATION LTD,101643
NORTH EAST LINCOLNSHIRE COUNCIL,http://statistics.data.gov.uk/id/local-authority/00FC,People,Childrens Services,Sen/Inclusion,Private Contractors,Third Party Prov - Private,PH101,5/15/2014,278477,550,REVENUE,DKM ASSESSMENT & VERIFICATION LTD,101643
NORTH EAST LINCOLNSHIRE COUNCIL,http://statistics.data.gov.uk/id/local-authority/00FC,People,Childrens Services,Sen/Inclusion,Private Contractors,Third Party Prov - Private,PH101,5/15/2014,278482,550,REVENUE,DKM ASSESSMENT & VERIFICATION LTD,101643
NORTH EAST LINCOLNSHIRE COUNCIL,http://statistics.data.gov.uk/id/local-authority/00FC,People,Childrens Services,Sen/Inclusion,Private Contractors,Third Party Prov - Private,PH101,5/30/2014,282906,800,REVENUE,DKM ASSESSMENT & VERIFICATION LTD,101643
NORTH EAST LINCOLNSHIRE COUNCIL,http://statistics.data.gov.uk/id/local-authority/00FC,People,Childrens Services,Sen/Inclusion,Private Contractors,Third Party Prov - Private,PH101,5/30/2014,282908,800,REVENUE,DKM ASSESSMENT & VERIFICATION LTD,101643
NORTH EAST LINCOLNSHIRE COUNCIL,http://statistics.data.gov.uk/id/local-authority/00FC,People,Childrens Services,Sen/Inclusion,Private Contractors,Third Party Prov - Private,PH101,5/30/2014,282915,800,REVENUE,DKM ASSESSMENT & VERIFICATION LTD,101643
NORTH EAST LINCOLNSHIRE COUNCIL,http://statistics.data.gov.uk/id/local-authority/00FC,People,Childrens Services,Sen/Inclusion,Private Contractors,Third Party Prov - Private,PH101,5/30/2014,282916,800,REVENUE,DKM ASSESSMENT & VERIFICATION LTD,101643
NORTH EAST LINCOLNSHIRE COUNCIL,http://statistics.data.gov.uk/id/local-authority/00FC,People,Childrens Services,Sen/Inclusion,Private Contractors,Third Party Prov - Private,PH101,5/30/2014,282925,750,REVENUE,DKM ASSESSMENT & VERIFICATION LTD,101643
NORTH EAST LINCOLNSHIRE COUNCIL,http://statistics.data.gov.uk/id/local-authority/00FC,People,Childrens Services,Sen/Inclusion,Private Contractors,Third Party Prov - Private,PH101,5/23/2014,280898,15843.6,REVENUE,PLAYSPORTS,107535
NORTH EAST LINCOLNSHIRE COUNCIL,http://statistics.data.gov.uk/id/local-authority/00FC,People,Childrens Services,Sen/Inclusion,Private Contractors,Third Party Prov - Private,PH101,5/13/2014,278825,1518,REVENUE,NORTH EAST LINCS MOTOR PROJECT,101121
NORTH EAST LINCOLNSHIRE COUNCIL,http://statistics.data.gov.uk/id/local-authority/00FC,People,Childrens Services,Sen/Inclusion,Direct Employee Expenses,Agency Staff,EA105,05/06/2014,276655,1067.6,REVENUE,IRWIN EDUCATION LTD,106910
NORTH EAST LINCOLNSHIRE COUNCIL,http://statistics.data.gov.uk/id/local-authority/00FC,People,Childrens Services,Sen/Inclusion,Direct Employee Expenses,Agency Staff,EA105,5/23/2014,280794,1601.4,REVENUE,IRWIN EDUCATION LTD,106910
NORTH EAST LINCOLNSHIRE COUNCIL,http://statistics.data.gov.uk/id/local-authority/00FC,People,Childrens Services,Sen/Inclusion,Direct Employee Expenses,Agency Staff,EA105,05/08/2014,278305,1601.4,REVENUE,IRWIN EDUCATION LTD,106910
NORTH EAST LINCOLNSHIRE COUNCIL,http://statistics.data.gov.uk/id/local-authority/00FC,People,Childrens Services,Sen/Inclusion,Direct Employee Expenses,Agency Staff,EA105,5/13/2014,279428,1067.6,REVENUE,IRWIN EDUCATION LTD,106910
NORTH EAST LINCOLNSHIRE COUNCIL,http://statistics.data.gov.uk/id/local-authority/00FC,People,Childrens Services,Sen/Inclusion,Direct Employee Expenses,Agency Staff,EA105,5/20/2014,281358,700,REVENUE,TEACHING PERSONNEL LTD,101305
NORTH EAST LINCOLNSHIRE COUNCIL,http://statistics.data.gov.uk/id/local-authority/00FC,People,Childrens Services,Sen/Inclusion,Direct Employee Expenses,Agency Staff,EA105,5/22/2014,281359,563.75,REVENUE,TEACHING PERSONNEL LTD,101305
NORTH EAST LINCOLNSHIRE COUNCIL,http://statistics.data.gov.uk/id/local-authority/00FC,People,Childrens Services,Sen/Inclusion,Direct Employee Expenses,Agency Staff,EA105,5/22/2014,281360,452,REVENUE,RANDSTAD EDUCATION LTD,102465
NORTH EAST LINCOLNSHIRE COUNCIL,http://statistics.data.gov.uk/id/local-authority/00FC,People,Childrens Services,Sen/Inclusion,Direct Employee Expenses,Agency Staff,EA105,5/19/2014,279886,563.75,REVENUE,TEACHING PERSONNEL LTD,101305
NORTH EAST LINCOLNSHIRE COUNCIL,http://statistics.data.gov.uk/id/local-authority/00FC,People,Childrens Services,Sen/Inclusion,Direct Employee Expenses,Agency Staff,EA105,5/13/2014,279250,563.75,REVENUE,TEACHING PERSONNEL LTD,101305
NORTH EAST LINCOLNSHIRE COUNCIL,http://statistics.data.gov.uk/id/local-authority/00FC,People,Childrens Services,Sen/Inclusion,Direct Employee Expenses,Agency Staff,EA105,5/15/2014,279251,563.75,REVENUE,TEACHING PERSONNEL LTD,101305
NORTH EAST LINCOLNSHIRE COUNCIL,http://statistics.data.gov.uk/id/local-authority/00FC,People,Childrens Services,Sen/Inclusion,Direct Employee Expenses,Pay Teachers Supply Cover,EA106,05/08/2014,278088,452,REVENUE,RANDSTAD EDUCATION LTD,102465
NORTH EAST LINCOLNSHIRE COUNCIL,http://statistics.data.gov.uk/id/local-authority/00FC,People,Childrens Services,Sen/Inclusion,Direct Employee Expenses,Pay Teachers Supply Cover,EA106,5/22/2014,281055,902,REVENUE,TEACHING PERSONNEL LTD,101305
NORTH EAST LINCOLNSHIRE COUNCIL,http://statistics.data.gov.uk/id/local-authority/00FC,People,Childrens Services,Sen/Inclusion,Equip / Furniture / Materials,Teaching Materials,LA117,5/15/2014,278821,-3.27,REVENUE,EAST RIDING OF YORKSHIRE COUNCIL,100654
NORTH EAST LINCOLNSHIRE COUNCIL,http://statistics.data.gov.uk/id/local-authority/00FC,People,Childrens Services,Sen/Inclusion,Private Contractors,Third Party Prov - Private,PH101,5/19/2014,234225,593.68,REVENUE,REDACTED PERSONAL INFORMATION,REDACTED PERSONAL INFORMATION
NORTH EAST LINCOLNSHIRE COUNCIL,http://statistics.data.gov.uk/id/local-authority/00FC,People,Childrens Services,Sen/Inclusion,Private Contractors,Third Party Prov - Private,PH101,5/20/2014,280787,9330,REVENUE,DONCASTER DEAF TRUST,101268
NORTH EAST LINCOLNSHIRE COUNCIL,http://statistics.data.gov.uk/id/local-authority/00FC,People,Childrens Services,Sen/Inclusion,Private Contractors,Third Party Prov - Private,PH101,5/19/2014,279474,17226.21,REVENUE,FRANKLIN COLLEGE,101073
NORTH EAST LINCOLNSHIRE COUNCIL,http://statistics.data.gov.uk/id/local-authority/00FC,People,Childrens Services,Sen/Inclusion,Private Contractors,Third Party Prov - Private,PH101,5/20/2014,281649,933.3,REVENUE,FRANKLIN COLLEGE,101073
NORTH EAST LINCOLNSHIRE COUNCIL,http://statistics.data.gov.uk/id/local-authority/00FC,People,Childrens Services,Sen/Inclusion,Private Contractors,Third Party Prov - Private,PH101,5/13/2014,279467,15654,REVENUE,LINKAGE COMMUNITY TRUST LTD,104471
NORTH EAST LINCOLNSHIRE COUNCIL,http://statistics.data.gov.uk/id/local-authority/00FC,People,Childrens Services,Sen/Inclusion,Private Contractors,Third Party Prov - Private,PH101,5/29/2014,279465,18685.67,REVENUE,PORTLAND COLLEGE,100384
NORTH EAST LINCOLNSHIRE COUNCIL,http://statistics.data.gov.uk/id/local-authority/00FC,People,Childrens Services,Sen/Inclusion,Contributions To Provisions,Contributions - Other,LK103,05/01/2014,277325,9603,REVENUE,HUMBERSTON CLOVERFIELDS ACADEMY,125655
NORTH EAST LINCOLNSHIRE COUNCIL,http://statistics.data.gov.uk/id/local-authority/00FC,People,Childrens Services,Sen/Inclusion,Miscellaneous Expenses,Contingency Reserve,LL123,5/20/2014,281337,86696.58,REVENUE,HUMBERSTON PARK SPECIAL SCHOOL,107911
NORTH EAST LINCOLNSHIRE COUNCIL,http://statistics.data.gov.uk/id/local-authority/00FC,People,Childrens Services,Sen/Inclusion,Miscellaneous Expenses,Contingency Reserve,LL123,5/20/2014,281336,121347.67,REVENUE,THE CAMBRIDGE PARK ACADEMY,107472
NORTH EAST LINCOLNSHIRE COUNCIL,http://statistics.data.gov.uk/id/local-authority/00FC,People,Childrens Services,Placement & Support,Direct Transport Costs,Vehicles - Running Costs,JA104,5/29/2014,281964,257.38,REVENUE,ALLSTAR BUSINESS SOLUTIONS LTD,108278
NORTH EAST LINCOLNSHIRE COUNCIL,http://statistics.data.gov.uk/id/local-authority/00FC,People,Childrens Services,Placement & Support,Miscellaneous Expenses,Activities - Service Users,LL114,5/15/2014,279890,332.8,REVENUE,PARKWAY ENTERTAINMENT CO LTD,101537
NORTH EAST LINCOLNSHIRE COUNCIL,http://statistics.data.gov.uk/id/local-authority/00FC,People,Childrens Services,Placement & Support,Miscellaneous Expenses,Activities - Service Users,LL114,5/13/2014,276847,291.67,REVENUE,PLEASURE ISLAND,104923
NORTH EAST LINCOLNSHIRE COUNCIL,http://statistics.data.gov.uk/id/local-authority/00FC,People,Childrens Services,Placement & Support,Miscellaneous Expenses,Activities - Service Users,LL114,5/22/2014,281545,331.24,REVENUE,REGENT MOTORCROSS LTD,101953
NORTH EAST LINCOLNSHIRE COUNCIL,http://statistics.data.gov.uk/id/local-authority/00FC,People,Childrens Services,Placement & Support,Miscellaneous Expenses,Activities - Service Users,LL114,5/22/2014,281523,800,REVENUE,REGENT MOTORCROSS LTD,101953
NORTH EAST LINCOLNSHIRE COUNCIL,http://statistics.data.gov.uk/id/local-authority/00FC,People,Childrens Services,Placement & Support,Miscellaneous Expenses,Activities - Service Users,LL114,5/29/2014,281594,800,REVENUE,REGENT MOTORCROSS LTD,101953
NORTH EAST LINCOLNSHIRE COUNCIL,http://statistics.data.gov.uk/id/local-authority/00FC,People,Childrens Services,Placement & Support,Indirect Employee Expenses,Staff Training,EB122,05/06/2014,277888,275,REVENUE,FOREFRONT TRAINING LTD,105501
NORTH EAST LINCOLNSHIRE COUNCIL,http://statistics.data.gov.uk/id/local-authority/00FC,People,Childrens Services,Placement & Support,Premises Insurance,Premises Insurance - Premiums,GK101,5/15/2014,279855,294,REVENUE,BOURNE LEISURE LTD,109336
NORTH EAST LINCOLNSHIRE COUNCIL,http://statistics.data.gov.uk/id/local-authority/00FC,People,Childrens Services,Placement & Support,Other Agencies,Additional Cost,PJ114,05/06/2014,231560,250,REVENUE,REDACTED PERSONAL INFORMATION,REDACTED PERSONAL INFORMATION
NORTH EAST LINCOLNSHIRE COUNCIL,http://statistics.data.gov.uk/id/local-authority/00FC,People,Childrens Services,Placement & Support,Other Agencies,Additional Cost,PJ114,5/15/2014,279865,450,REVENUE,READY RENT A CAR (GRIMSBY) LTD,100557
NORTH EAST LINCOLNSHIRE COUNCIL,http://statistics.data.gov.uk/id/local-authority/00FC,People,Childrens Services,Placement & Support,Other Agencies,Additional Cost,PJ114,5/15/2014,279869,450,REVENUE,READY RENT A CAR (GRIMSBY) LTD,100557
NORTH EAST LINCOLNSHIRE COUNCIL,http://statistics.data.gov.uk/id/local-authority/00FC,People,Childrens Services,Placement & Support,Other Agencies,Birthday,PJ110,5/13/2014,232978,333,REVENUE,REDACTED PERSONAL INFORMATION,REDACTED PERSONAL INFORMATION
NORTH EAST LINCOLNSHIRE COUNCIL,http://statistics.data.gov.uk/id/local-authority/00FC,People,Childrens Services,Placement & Support,Other Agencies,Child Care Payments,PJ104,05/06/2014,231714,316,REVENUE,REDACTED PERSONAL INFORMATION,REDACTED PERSONAL INFORMATION
NORTH EAST LINCOLNSHIRE COUNCIL,http://statistics.data.gov.uk/id/local-authority/00FC,People,Childrens Services,Placement & Support,Other Agencies,Child Care Payments,PJ104,05/06/2014,231722,270.86,REVENUE,REDACTED PERSONAL INFORMATION,REDACTED PERSONAL INFORMATION
NORTH EAST LINCOLNSHIRE COUNCIL,http://statistics.data.gov.uk/id/local-authority/00FC,People,Childrens Services,Placement & Support,Other Agencies,Child Care Payments,PJ104,05/06/2014,231539,316,REVENUE,REDACTED PERSONAL INFORMATION,REDACTED PERSONAL INFORMATION
NORTH EAST LINCOLNSHIRE COUNCIL,http://statistics.data.gov.uk/id/local-authority/00FC,People,Childrens Services,Placement & Support,Other Agencies,Child Care Payments,PJ104,05/06/2014,231750,640,REVENUE,REDACTED PERSONAL INFORMATION,REDACTED PERSONAL INFORMATION
NORTH EAST LINCOLNSHIRE COUNCIL,http://statistics.data.gov.uk/id/local-authority/00FC,People,Childrens Services,Placement & Support,Other Agencies,Child Care Payments,PJ104,05/06/2014,231755,652,REVENUE,REDACTED PERSONAL INFORMATION,REDACTED PERSONAL INFORMATION
NORTH EAST LINCOLNSHIRE COUNCIL,http://statistics.data.gov.uk/id/local-authority/00FC,People,Childrens Services,Placement & Support,Other Agencies,Child Care Payments,PJ104,05/06/2014,231756,336,REVENUE,REDACTED PERSONAL INFORMATION,REDACTED PERSONAL INFORMATION
NORTH EAST LINCOLNSHIRE COUNCIL,http://statistics.data.gov.uk/id/local-authority/00FC,People,Childrens Services,Placement & Support,Other Agencies,Child Care Payments,PJ104,05/06/2014,231766,608,REVENUE,REDACTED PERSONAL INFORMATION,REDACTED PERSONAL INFORMATION
NORTH EAST LINCOLNSHIRE COUNCIL,http://statistics.data.gov.uk/id/local-authority/00FC,People,Childrens Services,Placement & Support,Other Agencies,Child Care Payments,PJ104,05/06/2014,231773,936,REVENUE,REDACTED PERSONAL INFORMATION,REDACTED PERSONAL INFORMATION
NORTH EAST LINCOLNSHIRE COUNCIL,http://statistics.data.gov.uk/id/local-authority/00FC,People,Childrens Services,Placement & Support,Other Agencies,Child Care Payments,PJ104,05/06/2014,231782,608,REVENUE,REDACTED PERSONAL INFORMATION,REDACTED PERSONAL INFORMATION
NORTH EAST LINCOLNSHIRE COUNCIL,http://statistics.data.gov.uk/id/local-authority/00FC,People,Childrens Services,Placement & Support,Other Agencies,Child Care Payments,PJ104,05/06/2014,231543,336,REVENUE,REDACTED PERSONAL INFORMATION,REDACTED PERSONAL INFORMATION
NORTH EAST LINCOLNSHIRE COUNCIL,http://statistics.data.gov.uk/id/local-authority/00FC,People,Childrens Services,Placement & Support,Other Agencies,Child Care Payments,PJ104,05/06/2014,231546,620,REVENUE,REDACTED PERSONAL INFORMATION,REDACTED PERSONAL INFORMATION
NORTH EAST LINCOLNSHIRE COUNCIL,http://statistics.data.gov.uk/id/local-authority/00FC,People,Childrens Services,Placement & Support,Other Agencies,Child Care Payments,PJ104,05/06/2014,231547,378.29,REVENUE,REDACTED PERSONAL INFORMATION,REDACTED PERSONAL INFORMATION
NORTH EAST LINCOLNSHIRE COUNCIL,http://statistics.data.gov.uk/id/local-authority/00FC,People,Childrens Services,Placement & Support,Other Agencies,Child Care Payments,PJ104,05/06/2014,231548,1013,REVENUE,REDACTED PERSONAL INFORMATION,REDACTED PERSONAL INFORMATION
NORTH EAST LINCOLNSHIRE COUNCIL,http://statistics.data.gov.uk/id/local-authority/00FC,People,Childrens Services,Placement & Support,Other Agencies,Child Care Payments,PJ104,05/06/2014,231551,620,REVENUE,REDACTED PERSONAL INFORMATION,REDACTED PERSONAL INFORMATION
NORTH EAST LINCOLNSHIRE COUNCIL,http://statistics.data.gov.uk/id/local-authority/00FC,People,Childrens Services,Placement & Support,Other Agencies,Child Care Payments,PJ104,05/06/2014,231560,924,REVENUE,REDACTED PERSONAL INFORMATION,REDACTED PERSONAL INFORMATION
NORTH EAST LINCOLNSHIRE COUNCIL,http://statistics.data.gov.uk/id/local-authority/00FC,People,Childrens Services,Placement & Support,Other Agencies,Child Care Payments,PJ104,05/06/2014,231561,304,REVENUE,REDACTED PERSONAL INFORMATION,REDACTED PERSONAL INFORMATION
NORTH EAST LINCOLNSHIRE COUNCIL,http://statistics.data.gov.uk/id/local-authority/00FC,People,Childrens Services,Placement & Support,Other Agencies,Child Care Payments,PJ104,05/06/2014,231562,672,REVENUE,REDACTED PERSONAL INFORMATION,REDACTED PERSONAL INFORMATION
NORTH EAST LINCOLNSHIRE COUNCIL,http://statistics.data.gov.uk/id/local-authority/00FC,People,Childrens Services,Placement & Support,Other Agencies,Child Care Payments,PJ104,05/06/2014,231571,652,REVENUE,REDACTED PERSONAL INFORMATION,REDACTED PERSONAL INFORMATION
NORTH EAST LINCOLNSHIRE COUNCIL,http://statistics.data.gov.uk/id/local-authority/00FC,People,Childrens Services,Placement & Support,Other Agencies,Child Care Payments,PJ104,05/06/2014,231572,697,REVENUE,REDACTED PERSONAL INFORMATION,REDACTED PERSONAL INFORMATION
NORTH EAST LINCOLNSHIRE COUNCIL,http://statistics.data.gov.uk/id/local-authority/00FC,People,Childrens Services,Placement & Support,Other Agencies,Child Care Payments,PJ104,05/06/2014,231575,316,REVENUE,REDACTED PERSONAL INFORMATION,REDACTED PERSONAL INFORMATION
NORTH EAST LINCOLNSHIRE COUNCIL,http://statistics.data.gov.uk/id/local-authority/00FC,People,Childrens Services,Placement & Support,Other Agencies,Child Care Payments,PJ104,05/06/2014,231576,304,REVENUE,REDACTED PERSONAL INFORMATION,REDACTED PERSONAL INFORMATION
NORTH EAST LINCOLNSHIRE COUNCIL,http://statistics.data.gov.uk/id/local-authority/00FC,People,Childrens Services,Placement & Support,Other Agencies,Child Care Payments,PJ104,05/06/2014,231586,1013,REVENUE,REDACTED PERSONAL INFORMATION,REDACTED PERSONAL INFORMATION
NORTH EAST LINCOLNSHIRE COUNCIL,http://statistics.data.gov.uk/id/local-authority/00FC,People,Childrens Services,Placement & Support,Other Agencies,Child Care Payments,PJ104,05/06/2014,231590,632,REVENUE,REDACTED PERSONAL INFORMATION,REDACTED PERSONAL INFORMATION
NORTH EAST LINCOLNSHIRE COUNCIL,http://statistics.data.gov.uk/id/local-authority/00FC,People,Childrens Services,Placement & Support,Other Agencies,Child Care Payments,PJ104,05/06/2014,231593,632,REVENUE,REDACTED PERSONAL INFORMATION,REDACTED PERSONAL INFORMATION
NORTH EAST LINCOLNSHIRE COUNCIL,http://statistics.data.gov.uk/id/local-authority/00FC,People,Childrens Services,Placement & Support,Other Agencies,Child Care Payments,PJ104,05/06/2014,231594,912,REVENUE,REDACTED PERSONAL INFORMATION,REDACTED PERSONAL INFORMATION
NORTH EAST LINCOLNSHIRE COUNCIL,http://statistics.data.gov.uk/id/local-authority/00FC,People,Childrens Services,Placement & Support,Other Agencies,Child Care Payments,PJ104,05/06/2014,231596,1033,REVENUE,REDACTED PERSONAL INFORMATION,REDACTED PERSONAL INFORMATION
NORTH EAST LINCOLNSHIRE COUNCIL,http://statistics.data.gov.uk/id/local-authority/00FC,People,Childrens Services,Placement & Support,Other Agencies,Child Care Payments,PJ104,05/06/2014,231597,632,REVENUE,REDACTED PERSONAL INFORMATION,REDACTED PERSONAL INFORMATION
NORTH EAST LINCOLNSHIRE COUNCIL,http://statistics.data.gov.uk/id/local-authority/00FC,People,Childrens Services,Placement & Support,Other Agencies,Child Care Payments,PJ104,05/06/2014,231599,316,REVENUE,REDACTED PERSONAL INFORMATION,REDACTED PERSONAL INFORMATION
NORTH EAST LINCOLNSHIRE COUNCIL,http://statistics.data.gov.uk/id/local-authority/00FC,People,Childrens Services,Placement & Support,Other Agencies,Child Care Payments,PJ104,05/06/2014,231601,1033,REVENUE,REDACTED PERSONAL INFORMATION,REDACTED PERSONAL INFORMATION
NORTH EAST LINCOLNSHIRE COUNCIL,http://statistics.data.gov.uk/id/local-authority/00FC,People,Childrens Services,Placement & Support,Other Agencies,Child Care Payments,PJ104,05/06/2014,231606,936,REVENUE,REDACTED PERSONAL INFORMATION,REDACTED PERSONAL INFORMATION
NORTH EAST LINCOLNSHIRE COUNCIL,http://statistics.data.gov.uk/id/local-authority/00FC,People,Childrens Services,Placement & Support,Other Agencies,Child Care Payments,PJ104,05/06/2014,231609,361,REVENUE,REDACTED PERSONAL INFORMATION,REDACTED PERSONAL INFORMATION
NORTH EAST LINCOLNSHIRE COUNCIL,http://statistics.data.gov.uk/id/local-authority/00FC,People,Childrens Services,Placement & Support,Other Agencies,Child Care Payments,PJ104,05/06/2014,231624,620,REVENUE,REDACTED PERSONAL INFORMATION,REDACTED PERSONAL INFORMATION
NORTH EAST LINCOLNSHIRE COUNCIL,http://statistics.data.gov.uk/id/local-authority/00FC,People,Childrens Services,Placement & Support,Other Agencies,Child Care Payments,PJ104,05/06/2014,231632,672,REVENUE,REDACTED PERSONAL INFORMATION,REDACTED PERSONAL INFORMATION
NORTH EAST LINCOLNSHIRE COUNCIL,http://statistics.data.gov.uk/id/local-authority/00FC,People,Childrens Services,Placement & Support,Other Agencies,Child Care Payments,PJ104,05/06/2014,231635,652,REVENUE,REDACTED PERSONAL INFORMATION,REDACTED PERSONAL INFORMATION
NORTH EAST LINCOLNSHIRE COUNCIL,http://statistics.data.gov.uk/id/local-authority/00FC,People,Childrens Services,Placement & Support,Other Agencies,Child Care Payments,PJ104,05/06/2014,231638,632,REVENUE,REDACTED PERSONAL INFORMATION,REDACTED PERSONAL INFORMATION
NORTH EAST LINCOLNSHIRE COUNCIL,http://statistics.data.gov.uk/id/local-authority/00FC,People,Childrens Services,Placement & Support,Other Agencies,Child Care Payments,PJ104,05/06/2014,231641,620,REVENUE,REDACTED PERSONAL INFORMATION,REDACTED PERSONAL INFORMATION
NORTH EAST LINCOLNSHIRE COUNCIL,http://statistics.data.gov.uk/id/local-authority/00FC,People,Childrens Services,Placement & Support,Other Agencies,Child Care Payments,PJ104,05/06/2014,231642,620,REVENUE,REDACTED PERSONAL INFORMATION,REDACTED PERSONAL INFORMATION
NORTH EAST LINCOLNSHIRE COUNCIL,http://statistics.data.gov.uk/id/local-authority/00FC,People,Childrens Services,Placement & Support,Other Agencies,Child Care Payments,PJ104,05/06/2014,231646,640,REVENUE,REDACTED PERSONAL INFORMATION,REDACTED PERSONAL INFORMATION
NORTH EAST LINCOLNSHIRE COUNCIL,http://statistics.data.gov.uk/id/local-authority/00FC,People,Childrens Services,Placement & Support,Other Agencies,Child Care Payments,PJ104,05/06/2014,231649,576.57,REVENUE,REDACTED PERSONAL INFORMATION,REDACTED PERSONAL INFORMATION
NORTH EAST LINCOLNSHIRE COUNCIL,http://statistics.data.gov.uk/id/local-authority/00FC,People,Childrens Services,Placement & Support,Other Agencies,Child Care Payments,PJ104,05/06/2014,231655,608,REVENUE,REDACTED PERSONAL INFORMATION,REDACTED PERSONAL INFORMATION
NORTH EAST LINCOLNSHIRE COUNCIL,http://statistics.data.gov.uk/id/local-authority/00FC,People,Childrens Services,Placement & Support,Other Agencies,Child Care Payments,PJ104,05/06/2014,231660,672,REVENUE,REDACTED PERSONAL INFORMATION,REDACTED PERSONAL INFORMATION
NORTH EAST LINCOLNSHIRE COUNCIL,http://statistics.data.gov.uk/id/local-authority/00FC,People,Childrens Services,Placement & Support,Other Agencies,Child Care Payments,PJ104,05/06/2014,231665,632,REVENUE,REDACTED PERSONAL INFORMATION,REDACTED PERSONAL INFORMATION
NORTH EAST LINCOLNSHIRE COUNCIL,http://statistics.data.gov.uk/id/local-authority/00FC,People,Childrens Services,Placement & Support,Other Agencies,Child Care Payments,PJ104,05/06/2014,231676,924,REVENUE,REDACTED PERSONAL INFORMATION,REDACTED PERSONAL INFORMATION
NORTH EAST LINCOLNSHIRE COUNCIL,http://statistics.data.gov.uk/id/local-authority/00FC,People,Childrens Services,Placement & Support,Other Agencies,Child Care Payments,PJ104,05/06/2014,231687,620,REVENUE,REDACTED PERSONAL INFORMATION,REDACTED PERSONAL INFORMATION
NORTH EAST LINCOLNSHIRE COUNCIL,http://statistics.data.gov.uk/id/local-authority/00FC,People,Childrens Services,Placement & Support,Other Agencies,Child Care Payments,PJ104,05/06/2014,231692,936,REVENUE,REDACTED PERSONAL INFORMATION,REDACTED PERSONAL INFORMATION
NORTH EAST LINCOLNSHIRE COUNCIL,http://statistics.data.gov.uk/id/local-authority/00FC,People,Childrens Services,Placement & Support,Other Agencies,Child Care Payments,PJ104,05/06/2014,231698,620,REVENUE,REDACTED PERSONAL INFORMATION,REDACTED PERSONAL INFORMATION
NORTH EAST LINCOLNSHIRE COUNCIL,http://statistics.data.gov.uk/id/local-authority/00FC,People,Childrens Services,Placement & Support,Other Agencies,Child Care Payments,PJ104,5/13/2014,232996,672,REVENUE,REDACTED PERSONAL INFORMATION,REDACTED PERSONAL INFORMATION
NORTH EAST LINCOLNSHIRE COUNCIL,http://statistics.data.gov.uk/id/local-authority/00FC,People,Childrens Services,Placement & Support,Other Agencies,Child Care Payments,PJ104,5/13/2014,233005,652,REVENUE,REDACTED PERSONAL INFORMATION,REDACTED PERSONAL INFORMATION
NORTH EAST LINCOLNSHIRE COUNCIL,http://statistics.data.gov.uk/id/local-authority/00FC,People,Childrens Services,Placement & Support,Other Agencies,Child Care Payments,PJ104,5/13/2014,233006,697,REVENUE,REDACTED PERSONAL INFORMATION,REDACTED PERSONAL INFORMATION
NORTH EAST LINCOLNSHIRE COUNCIL,http://statistics.data.gov.uk/id/local-authority/00FC,People,Childrens Services,Placement & Support,Other Agencies,Child Care Payments,PJ104,5/13/2014,233009,316,REVENUE,REDACTED PERSONAL INFORMATION,REDACTED PERSONAL INFORMATION
NORTH EAST LINCOLNSHIRE COUNCIL,http://statistics.data.gov.uk/id/local-authority/00FC,People,Childrens Services,Placement & Support,Other Agencies,Child Care Payments,PJ104,5/13/2014,233010,304,REVENUE,REDACTED PERSONAL INFORMATION,REDACTED PERSONAL INFORMATION
NORTH EAST LINCOLNSHIRE COUNCIL,http://statistics.data.gov.uk/id/local-authority/00FC,People,Childrens Services,Placement & Support,Other Agencies,Child Care Payments,PJ104,5/13/2014,233020,1013,REVENUE,REDACTED PERSONAL INFORMATION,REDACTED PERSONAL INFORMATION
NORTH EAST LINCOLNSHIRE COUNCIL,http://statistics.data.gov.uk/id/local-authority/00FC,People,Childrens Services,Placement & Support,Other Agencies,Child Care Payments,PJ104,5/13/2014,233024,632,REVENUE,REDACTED PERSONAL INFORMATION,REDACTED PERSONAL INFORMATION
NORTH EAST LINCOLNSHIRE COUNCIL,http://statistics.data.gov.uk/id/local-authority/00FC,People,Childrens Services,Placement & Support,Other Agencies,Child Care Payments,PJ104,5/13/2014,233027,632,REVENUE,REDACTED PERSONAL INFORMATION,REDACTED PERSONAL INFORMATION
NORTH EAST LINCOLNSHIRE COUNCIL,http://statistics.data.gov.uk/id/local-authority/00FC,People,Childrens Services,Placement & Support,Other Agencies,Child Care Payments,PJ104,5/13/2014,233028,608,REVENUE,REDACTED PERSONAL INFORMATION,REDACTED PERSONAL INFORMATION
NORTH EAST LINCOLNSHIRE COUNCIL,http://statistics.data.gov.uk/id/local-authority/00FC,People,Childrens Services,Placement & Support,Other Agencies,Child Care Payments,PJ104,5/13/2014,233030,1033,REVENUE,REDACTED PERSONAL INFORMATION,REDACTED PERSONAL INFORMATION
NORTH EAST LINCOLNSHIRE COUNCIL,http://statistics.data.gov.uk/id/local-authority/00FC,People,Childrens Services,Placement & Support,Other Agencies,Child Care Payments,PJ104,5/13/2014,233031,632,REVENUE,REDACTED PERSONAL INFORMATION,REDACTED PERSONAL INFORMATION
NORTH EAST LINCOLNSHIRE COUNCIL,http://statistics.data.gov.uk/id/local-authority/00FC,People,Childrens Services,Placement & Support,Other Agencies,Child Care Payments,PJ104,5/13/2014,233033,316,REVENUE,REDACTED PERSONAL INFORMATION,REDACTED PERSONAL INFORMATION
NORTH EAST LINCOLNSHIRE COUNCIL,http://statistics.data.gov.uk/id/local-authority/00FC,People,Childrens Services,Placement & Support,Other Agencies,Child Care Payments,PJ104,5/13/2014,233035,1033,REVENUE,REDACTED PERSONAL INFORMATION,REDACTED PERSONAL INFORMATION
NORTH EAST LINCOLNSHIRE COUNCIL,http://statistics.data.gov.uk/id/local-authority/00FC,People,Childrens Services,Placement & Support,Other Agencies,Child Care Payments,PJ104,5/13/2014,233040,936,REVENUE,REDACTED PERSONAL INFORMATION,REDACTED PERSONAL INFORMATION
NORTH EAST LINCOLNSHIRE COUNCIL,http://statistics.data.gov.uk/id/local-authority/00FC,People,Childrens Services,Placement & Support,Other Agencies,Child Care Payments,PJ104,5/13/2014,233043,361,REVENUE,REDACTED PERSONAL INFORMATION,REDACTED PERSONAL INFORMATION
NORTH EAST LINCOLNSHIRE COUNCIL,http://statistics.data.gov.uk/id/local-authority/00FC,People,Childrens Services,Placement & Support,Other Agencies,Child Care Payments,PJ104,5/13/2014,233057,620,REVENUE,REDACTED PERSONAL INFORMATION,REDACTED PERSONAL INFORMATION
NORTH EAST LINCOLNSHIRE COUNCIL,http://statistics.data.gov.uk/id/local-authority/00FC,People,Childrens Services,Placement & Support,Other Agencies,Child Care Payments,PJ104,5/13/2014,233059,390.86,REVENUE,REDACTED PERSONAL INFORMATION,REDACTED PERSONAL INFORMATION
NORTH EAST LINCOLNSHIRE COUNCIL,http://statistics.data.gov.uk/id/local-authority/00FC,People,Childrens Services,Placement & Support,Other Agencies,Child Care Payments,PJ104,5/13/2014,233066,672,REVENUE,REDACTED PERSONAL INFORMATION,REDACTED PERSONAL INFORMATION
NORTH EAST LINCOLNSHIRE COUNCIL,http://statistics.data.gov.uk/id/local-authority/00FC,People,Childrens Services,Placement & Support,Other Agencies,Child Care Payments,PJ104,5/13/2014,233069,652,REVENUE,REDACTED PERSONAL INFORMATION,REDACTED PERSONAL INFORMATION
NORTH EAST LINCOLNSHIRE COUNCIL,http://statistics.data.gov.uk/id/local-authority/00FC,People,Childrens Services,Placement & Support,Other Agencies,Child Care Payments,PJ104,5/13/2014,233072,632,REVENUE,REDACTED PERSONAL INFORMATION,REDACTED PERSONAL INFORMATION
NORTH EAST LINCOLNSHIRE COUNCIL,http://statistics.data.gov.uk/id/local-authority/00FC,People,Childrens Services,Placement & Support,Other Agencies,Child Care Payments,PJ104,5/13/2014,233075,620,REVENUE,REDACTED PERSONAL INFORMATION,REDACTED PERSONAL INFORMATION
NORTH EAST LINCOLNSHIRE COUNCIL,http://statistics.data.gov.uk/id/local-authority/00FC,People,Childrens Services,Placement & Support,Other Agencies,Child Care Payments,PJ104,5/13/2014,233076,620,REVENUE,REDACTED PERSONAL INFORMATION,REDACTED PERSONAL INFORMATION
NORTH EAST LINCOLNSHIRE COUNCIL,http://statistics.data.gov.uk/id/local-authority/00FC,People,Childrens Services,Placement & Support,Other Agencies,Child Care Payments,PJ104,5/13/2014,233080,813.71,REVENUE,REDACTED PERSONAL INFORMATION,REDACTED PERSONAL INFORMATION
NORTH EAST LINCOLNSHIRE COUNCIL,http://statistics.data.gov.uk/id/local-authority/00FC,People,Childrens Services,Placement & Support,Other Agencies,Child Care Payments,PJ104,5/13/2014,233083,316,REVENUE,REDACTED PERSONAL INFORMATION,REDACTED PERSONAL INFORMATION
NORTH EAST LINCOLNSHIRE COUNCIL,http://statistics.data.gov.uk/id/local-authority/00FC,People,Childrens Services,Placement & Support,Other Agencies,Child Care Payments,PJ104,5/13/2014,233089,608,REVENUE,REDACTED PERSONAL INFORMATION,REDACTED PERSONAL INFORMATION
NORTH EAST LINCOLNSHIRE COUNCIL,http://statistics.data.gov.uk/id/local-authority/00FC,People,Childrens Services,Placement & Support,Other Agencies,Child Care Payments,PJ104,5/13/2014,233094,672,REVENUE,REDACTED PERSONAL INFORMATION,REDACTED PERSONAL INFORMATION
NORTH EAST LINCOLNSHIRE COUNCIL,http://statistics.data.gov.uk/id/local-authority/00FC,People,Childrens Services,Placement & Support,Other Agencies,Child Care Payments,PJ104,5/13/2014,233099,632,REVENUE,REDACTED PERSONAL INFORMATION,REDACTED PERSONAL INFORMATION
NORTH EAST LINCOLNSHIRE COUNCIL,http://statistics.data.gov.uk/id/local-authority/00FC,People,Childrens Services,Placement & Support,Other Agencies,Child Care Payments,PJ104,5/13/2014,233110,837.14,REVENUE,REDACTED PERSONAL INFORMATION,REDACTED PERSONAL INFORMATION
NORTH EAST LINCOLNSHIRE COUNCIL,http://statistics.data.gov.uk/id/local-authority/00FC,People,Childrens Services,Placement & Support,Other Agencies,Child Care Payments,PJ104,5/13/2014,233121,620,REVENUE,REDACTED PERSONAL INFORMATION,REDACTED PERSONAL INFORMATION
NORTH EAST LINCOLNSHIRE COUNCIL,http://statistics.data.gov.uk/id/local-authority/00FC,People,Childrens Services,Placement & Support,Other Agencies,Child Care Payments,PJ104,5/13/2014,233126,936,REVENUE,REDACTED PERSONAL INFORMATION,REDACTED PERSONAL INFORMATION
NORTH EAST LINCOLNSHIRE COUNCIL,http://statistics.data.gov.uk/id/local-authority/00FC,People,Childrens Services,Placement & Support,Other Agencies,Child Care Payments,PJ104,5/13/2014,233132,620,REVENUE,REDACTED PERSONAL INFORMATION,REDACTED PERSONAL INFORMATION
NORTH EAST LINCOLNSHIRE COUNCIL,http://statistics.data.gov.uk/id/local-authority/00FC,People,Childrens Services,Placement & Support,Other Agencies,Child Care Payments,PJ104,5/13/2014,233148,316,REVENUE,REDACTED PERSONAL INFORMATION,REDACTED PERSONAL INFORMATION
NORTH EAST LINCOLNSHIRE COUNCIL,http://statistics.data.gov.uk/id/local-authority/00FC,People,Childrens Services,Placement & Support,Other Agencies,Child Care Payments,PJ104,5/13/2014,233183,640,REVENUE,REDACTED PERSONAL INFORMATION,REDACTED PERSONAL INFORMATION
NORTH EAST LINCOLNSHIRE COUNCIL,http://statistics.data.gov.uk/id/local-authority/00FC,People,Childrens Services,Placement & Support,Other Agencies,Child Care Payments,PJ104,5/13/2014,233188,652,REVENUE,REDACTED PERSONAL INFORMATION,REDACTED PERSONAL INFORMATION
NORTH EAST LINCOLNSHIRE COUNCIL,http://statistics.data.gov.uk/id/local-authority/00FC,People,Childrens Services,Placement & Support,Other Agencies,Child Care Payments,PJ104,5/13/2014,233189,336,REVENUE,REDACTED PERSONAL INFORMATION,REDACTED PERSONAL INFORMATION
NORTH EAST LINCOLNSHIRE COUNCIL,http://statistics.data.gov.uk/id/local-authority/00FC,People,Childrens Services,Placement & Support,Other Agencies,Child Care Payments,PJ104,5/13/2014,232973,316,REVENUE,REDACTED PERSONAL INFORMATION,REDACTED PERSONAL INFORMATION
NORTH EAST LINCOLNSHIRE COUNCIL,http://statistics.data.gov.uk/id/local-authority/00FC,People,Childrens Services,Placement & Support,Other Agencies,Child Care Payments,PJ104,5/13/2014,232977,336,REVENUE,REDACTED PERSONAL INFORMATION,REDACTED PERSONAL INFORMATION
NORTH EAST LINCOLNSHIRE COUNCIL,http://statistics.data.gov.uk/id/local-authority/00FC,People,Childrens Services,Placement & Support,Other Agencies,Child Care Payments,PJ104,5/13/2014,232980,620,REVENUE,REDACTED PERSONAL INFORMATION,REDACTED PERSONAL INFORMATION
NORTH EAST LINCOLNSHIRE COUNCIL,http://statistics.data.gov.uk/id/local-authority/00FC,People,Childrens Services,Placement & Support,Other Agencies,Child Care Payments,PJ104,5/13/2014,232982,1013,REVENUE,REDACTED PERSONAL INFORMATION,REDACTED PERSONAL INFORMATION
NORTH EAST LINCOLNSHIRE COUNCIL,http://statistics.data.gov.uk/id/local-authority/00FC,People,Childrens Services,Placement & Support,Other Agencies,Child Care Payments,PJ104,5/13/2014,232985,620,REVENUE,REDACTED PERSONAL INFORMATION,REDACTED PERSONAL INFORMATION
NORTH EAST LINCOLNSHIRE COUNCIL,http://statistics.data.gov.uk/id/local-authority/00FC,People,Childrens Services,Placement & Support,Other Agencies,Child Care Payments,PJ104,5/13/2014,233199,608,REVENUE,REDACTED PERSONAL INFORMATION,REDACTED PERSONAL INFORMATION
NORTH EAST LINCOLNSHIRE COUNCIL,http://statistics.data.gov.uk/id/local-authority/00FC,People,Childrens Services,Placement & Support,Other Agencies,Child Care Payments,PJ104,5/13/2014,233206,936,REVENUE,REDACTED PERSONAL INFORMATION,REDACTED PERSONAL INFORMATION
NORTH EAST LINCOLNSHIRE COUNCIL,http://statistics.data.gov.uk/id/local-authority/00FC,People,Childrens Services,Placement & Support,Other Agencies,Child Care Payments,PJ104,5/13/2014,233214,608,REVENUE,REDACTED PERSONAL INFORMATION,REDACTED PERSONAL INFORMATION
NORTH EAST LINCOLNSHIRE COUNCIL,http://statistics.data.gov.uk/id/local-authority/00FC,People,Childrens Services,Placement & Support,Other Agencies,Child Care Payments,PJ104,5/13/2014,232992,528,REVENUE,REDACTED PERSONAL INFORMATION,REDACTED PERSONAL INFORMATION
NORTH EAST LINCOLNSHIRE COUNCIL,http://statistics.data.gov.uk/id/local-authority/00FC,People,Childrens Services,Placement & Support,Other Agencies,Child Care Payments,PJ104,5/13/2014,232994,924,REVENUE,REDACTED PERSONAL INFORMATION,REDACTED PERSONAL INFORMATION
NORTH EAST LINCOLNSHIRE COUNCIL,http://statistics.data.gov.uk/id/local-authority/00FC,People,Childrens Services,Placement & Support,Other Agencies,Child Care Payments,PJ104,5/13/2014,232995,304,REVENUE,REDACTED PERSONAL INFORMATION,REDACTED PERSONAL INFORMATION
NORTH EAST LINCOLNSHIRE COUNCIL,http://statistics.data.gov.uk/id/local-authority/00FC,People,Childrens Services,Placement & Support,Other Agencies,Child Care Payments,PJ104,5/20/2014,235263,620,REVENUE,REDACTED PERSONAL INFORMATION,REDACTED PERSONAL INFORMATION
NORTH EAST LINCOLNSHIRE COUNCIL,http://statistics.data.gov.uk/id/local-authority/00FC,People,Childrens Services,Placement & Support,Other Agencies,Child Care Payments,PJ104,5/20/2014,235274,620,REVENUE,REDACTED PERSONAL INFORMATION,REDACTED PERSONAL INFORMATION
NORTH EAST LINCOLNSHIRE COUNCIL,http://statistics.data.gov.uk/id/local-authority/00FC,People,Childrens Services,Placement & Support,Other Agencies,Child Care Payments,PJ104,5/20/2014,235279,936,REVENUE,REDACTED PERSONAL INFORMATION,REDACTED PERSONAL INFORMATION
NORTH EAST LINCOLNSHIRE COUNCIL,http://statistics.data.gov.uk/id/local-authority/00FC,People,Childrens Services,Placement & Support,Other Agencies,Child Care Payments,PJ104,5/20/2014,235285,304,REVENUE,REDACTED PERSONAL INFORMATION,REDACTED PERSONAL INFORMATION
NORTH EAST LINCOLNSHIRE COUNCIL,http://statistics.data.gov.uk/id/local-authority/00FC,People,Childrens Services,Placement & Support,Other Agencies,Child Care Payments,PJ104,5/20/2014,235285,316,REVENUE,REDACTED PERSONAL INFORMATION,REDACTED PERSONAL INFORMATION
NORTH EAST LINCOLNSHIRE COUNCIL,http://statistics.data.gov.uk/id/local-authority/00FC,People,Childrens Services,Placement & Support,Other Agencies,Child Care Payments,PJ104,5/20/2014,235301,316,REVENUE,REDACTED PERSONAL INFORMATION,REDACTED PERSONAL INFORMATION
NORTH EAST LINCOLNSHIRE COUNCIL,http://statistics.data.gov.uk/id/local-authority/00FC,People,Childrens Services,Placement & Support,Other Agencies,Child Care Payments,PJ104,5/20/2014,235127,316,REVENUE,REDACTED PERSONAL INFORMATION,REDACTED PERSONAL INFORMATION
NORTH EAST LINCOLNSHIRE COUNCIL,http://statistics.data.gov.uk/id/local-authority/00FC,People,Childrens Services,Placement & Support,Other Agencies,Child Care Payments,PJ104,5/20/2014,235336,640,REVENUE,REDACTED PERSONAL INFORMATION,REDACTED PERSONAL INFORMATION
NORTH EAST LINCOLNSHIRE COUNCIL,http://statistics.data.gov.uk/id/local-authority/00FC,People,Childrens Services,Placement & Support,Other Agencies,Child Care Payments,PJ104,5/20/2014,235341,652,REVENUE,REDACTED PERSONAL INFORMATION,REDACTED PERSONAL INFORMATION
NORTH EAST LINCOLNSHIRE COUNCIL,http://statistics.data.gov.uk/id/local-authority/00FC,People,Childrens Services,Placement & Support,Other Agencies,Child Care Payments,PJ104,5/20/2014,235342,336,REVENUE,REDACTED PERSONAL INFORMATION,REDACTED PERSONAL INFORMATION
NORTH EAST LINCOLNSHIRE COUNCIL,http://statistics.data.gov.uk/id/local-authority/00FC,People,Childrens Services,Placement & Support,Other Agencies,Child Care Payments,PJ104,5/20/2014,235352,608,REVENUE,REDACTED PERSONAL INFORMATION,REDACTED PERSONAL INFORMATION
NORTH EAST LINCOLNSHIRE COUNCIL,http://statistics.data.gov.uk/id/local-authority/00FC,People,Childrens Services,Placement & Support,Other Agencies,Child Care Payments,PJ104,5/20/2014,235359,936,REVENUE,REDACTED PERSONAL INFORMATION,REDACTED PERSONAL INFORMATION
NORTH EAST LINCOLNSHIRE COUNCIL,http://statistics.data.gov.uk/id/local-authority/00FC,People,Childrens Services,Placement & Support,Other Agencies,Child Care Payments,PJ104,5/20/2014,235368,608,REVENUE,REDACTED PERSONAL INFORMATION,REDACTED PERSONAL INFORMATION
NORTH EAST LINCOLNSHIRE COUNCIL,http://statistics.data.gov.uk/id/local-authority/00FC,People,Childrens Services,Placement & Support,Other Agencies,Child Care Payments,PJ104,5/20/2014,235131,336,REVENUE,REDACTED PERSONAL INFORMATION,REDACTED PERSONAL INFORMATION
NORTH EAST LINCOLNSHIRE COUNCIL,http://statistics.data.gov.uk/id/local-authority/00FC,People,Childrens Services,Placement & Support,Other Agencies,Child Care Payments,PJ104,5/20/2014,235134,620,REVENUE,REDACTED PERSONAL INFORMATION,REDACTED PERSONAL INFORMATION
NORTH EAST LINCOLNSHIRE COUNCIL,http://statistics.data.gov.uk/id/local-authority/00FC,People,Childrens Services,Placement & Support,Other Agencies,Child Care Payments,PJ104,5/20/2014,235136,1013,REVENUE,REDACTED PERSONAL INFORMATION,REDACTED PERSONAL INFORMATION
NORTH EAST LINCOLNSHIRE COUNCIL,http://statistics.data.gov.uk/id/local-authority/00FC,People,Childrens Services,Placement & Support,Other Agencies,Child Care Payments,PJ104,5/20/2014,235139,620,REVENUE,REDACTED PERSONAL INFORMATION,REDACTED PERSONAL INFORMATION
NORTH EAST LINCOLNSHIRE COUNCIL,http://statistics.data.gov.uk/id/local-authority/00FC,People,Childrens Services,Placement & Support,Other Agencies,Child Care Payments,PJ104,5/20/2014,235145,336,REVENUE,REDACTED PERSONAL INFORMATION,REDACTED PERSONAL INFORMATION
NORTH EAST LINCOLNSHIRE COUNCIL,http://statistics.data.gov.uk/id/local-authority/00FC,People,Childrens Services,Placement & Support,Other Agencies,Child Care Payments,PJ104,5/20/2014,235147,924,REVENUE,REDACTED PERSONAL INFORMATION,REDACTED PERSONAL INFORMATION
NORTH EAST LINCOLNSHIRE COUNCIL,http://statistics.data.gov.uk/id/local-authority/00FC,People,Childrens Services,Placement & Support,Other Agencies,Child Care Payments,PJ104,5/20/2014,235148,304,REVENUE,REDACTED PERSONAL INFORMATION,REDACTED PERSONAL INFORMATION
NORTH EAST LINCOLNSHIRE COUNCIL,http://statistics.data.gov.uk/id/local-authority/00FC,People,Childrens Services,Placement & Support,Other Agencies,Child Care Payments,PJ104,5/20/2014,235149,672,REVENUE,REDACTED PERSONAL INFORMATION,REDACTED PERSONAL INFORMATION
NORTH EAST LINCOLNSHIRE COUNCIL,http://statistics.data.gov.uk/id/local-authority/00FC,People,Childrens Services,Placement & Support,Other Agencies,Child Care Payments,PJ104,5/20/2014,235158,652,REVENUE,REDACTED PERSONAL INFORMATION,REDACTED PERSONAL INFORMATION
NORTH EAST LINCOLNSHIRE COUNCIL,http://statistics.data.gov.uk/id/local-authority/00FC,People,Childrens Services,Placement & Support,Other Agencies,Child Care Payments,PJ104,5/20/2014,235159,542.29,REVENUE,REDACTED PERSONAL INFORMATION,REDACTED PERSONAL INFORMATION
NORTH EAST LINCOLNSHIRE COUNCIL,http://statistics.data.gov.uk/id/local-authority/00FC,People,Childrens Services,Placement & Support,Other Agencies,Child Care Payments,PJ104,5/20/2014,235162,316,REVENUE,REDACTED PERSONAL INFORMATION,REDACTED PERSONAL INFORMATION
NORTH EAST LINCOLNSHIRE COUNCIL,http://statistics.data.gov.uk/id/local-authority/00FC,People,Childrens Services,Placement & Support,Other Agencies,Child Care Payments,PJ104,5/20/2014,235163,304,REVENUE,REDACTED PERSONAL INFORMATION,REDACTED PERSONAL INFORMATION
NORTH EAST LINCOLNSHIRE COUNCIL,http://statistics.data.gov.uk/id/local-authority/00FC,People,Childrens Services,Placement & Support,Other Agencies,Child Care Payments,PJ104,5/20/2014,235173,1013,REVENUE,REDACTED PERSONAL INFORMATION,REDACTED PERSONAL INFORMATION
NORTH EAST LINCOLNSHIRE COUNCIL,http://statistics.data.gov.uk/id/local-authority/00FC,People,Childrens Services,Placement & Support,Other Agencies,Child Care Payments,PJ104,5/20/2014,235178,632,REVENUE,REDACTED PERSONAL INFORMATION,REDACTED PERSONAL INFORMATION
NORTH EAST LINCOLNSHIRE COUNCIL,http://statistics.data.gov.uk/id/local-authority/00FC,People,Childrens Services,Placement & Support,Other Agencies,Child Care Payments,PJ104,5/20/2014,235181,632,REVENUE,REDACTED PERSONAL INFORMATION,REDACTED PERSONAL INFORMATION
NORTH EAST LINCOLNSHIRE COUNCIL,http://statistics.data.gov.uk/id/local-authority/00FC,People,Childrens Services,Placement & Support,Other Agencies,Child Care Payments,PJ104,5/20/2014,235182,868.57,REVENUE,REDACTED PERSONAL INFORMATION,REDACTED PERSONAL INFORMATION
NORTH EAST LINCOLNSHIRE COUNCIL,http://statistics.data.gov.uk/id/local-authority/00FC,People,Childrens Services,Placement & Support,Other Agencies,Child Care Payments,PJ104,5/20/2014,235184,1033,REVENUE,REDACTED PERSONAL INFORMATION,REDACTED PERSONAL INFORMATION
NORTH EAST LINCOLNSHIRE COUNCIL,http://statistics.data.gov.uk/id/local-authority/00FC,People,Childrens Services,Placement & Support,Other Agencies,Child Care Payments,PJ104,5/20/2014,235185,632,REVENUE,REDACTED PERSONAL INFORMATION,REDACTED PERSONAL INFORMATION
NORTH EAST LINCOLNSHIRE COUNCIL,http://statistics.data.gov.uk/id/local-authority/00FC,People,Childrens Services,Placement & Support,Other Agencies,Child Care Payments,PJ104,5/20/2014,235187,316,REVENUE,REDACTED PERSONAL INFORMATION,REDACTED PERSONAL INFORMATION
NORTH EAST LINCOLNSHIRE COUNCIL,http://statistics.data.gov.uk/id/local-authority/00FC,People,Childrens Services,Placement & Support,Other Agencies,Child Care Payments,PJ104,5/20/2014,235189,1033,REVENUE,REDACTED PERSONAL INFORMATION,REDACTED PERSONAL INFORMATION
NORTH EAST LINCOLNSHIRE COUNCIL,http://statistics.data.gov.uk/id/local-authority/00FC,People,Childrens Services,Placement & Support,Other Agencies,Child Care Payments,PJ104,5/20/2014,235194,936,REVENUE,REDACTED PERSONAL INFORMATION,REDACTED PERSONAL INFORMATION
NORTH EAST LINCOLNSHIRE COUNCIL,http://statistics.data.gov.uk/id/local-authority/00FC,People,Childrens Services,Placement & Support,Other Agencies,Child Care Payments,PJ104,5/20/2014,235197,361,REVENUE,REDACTED PERSONAL INFORMATION,REDACTED PERSONAL INFORMATION
NORTH EAST LINCOLNSHIRE COUNCIL,http://statistics.data.gov.uk/id/local-authority/00FC,People,Childrens Services,Placement & Support,Other Agencies,Child Care Payments,PJ104,5/20/2014,235211,620,REVENUE,REDACTED PERSONAL INFORMATION,REDACTED PERSONAL INFORMATION
NORTH EAST LINCOLNSHIRE COUNCIL,http://statistics.data.gov.uk/id/local-authority/00FC,People,Childrens Services,Placement & Support,Other Agencies,Child Care Payments,PJ104,5/20/2014,235220,672,REVENUE,REDACTED PERSONAL INFORMATION,REDACTED PERSONAL INFORMATION
NORTH EAST LINCOLNSHIRE COUNCIL,http://statistics.data.gov.uk/id/local-authority/00FC,People,Childrens Services,Placement & Support,Other Agencies,Child Care Payments,PJ104,5/20/2014,235223,796,REVENUE,REDACTED PERSONAL INFORMATION,REDACTED PERSONAL INFORMATION
NORTH EAST LINCOLNSHIRE COUNCIL,http://statistics.data.gov.uk/id/local-authority/00FC,People,Childrens Services,Placement & Support,Other Agencies,Child Care Payments,PJ104,5/20/2014,235226,1405.57,REVENUE,REDACTED PERSONAL INFORMATION,REDACTED PERSONAL INFORMATION
NORTH EAST LINCOLNSHIRE COUNCIL,http://statistics.data.gov.uk/id/local-authority/00FC,People,Childrens Services,Placement & Support,Other Agencies,Child Care Payments,PJ104,5/20/2014,235229,1135.71,REVENUE,REDACTED PERSONAL INFORMATION,REDACTED PERSONAL INFORMATION
NORTH EAST LINCOLNSHIRE COUNCIL,http://statistics.data.gov.uk/id/local-authority/00FC,People,Childrens Services,Placement & Support,Other Agencies,Child Care Payments,PJ104,5/20/2014,235230,620,REVENUE,REDACTED PERSONAL INFORMATION,REDACTED PERSONAL INFORMATION
NORTH EAST LINCOLNSHIRE COUNCIL,http://statistics.data.gov.uk/id/local-authority/00FC,People,Childrens Services,Placement & Support,Other Agencies,Child Care Payments,PJ104,5/20/2014,235234,944,REVENUE,REDACTED PERSONAL INFORMATION,REDACTED PERSONAL INFORMATION
NORTH EAST LINCOLNSHIRE COUNCIL,http://statistics.data.gov.uk/id/local-authority/00FC,People,Childrens Services,Placement & Support,Other Agencies,Child Care Payments,PJ104,5/20/2014,235237,446.29,REVENUE,REDACTED PERSONAL INFORMATION,REDACTED PERSONAL INFORMATION
NORTH EAST LINCOLNSHIRE COUNCIL,http://statistics.data.gov.uk/id/local-authority/00FC,People,Childrens Services,Placement & Support,Other Agencies,Child Care Payments,PJ104,5/20/2014,235243,651.43,REVENUE,REDACTED PERSONAL INFORMATION,REDACTED PERSONAL INFORMATION
NORTH EAST LINCOLNSHIRE COUNCIL,http://statistics.data.gov.uk/id/local-authority/00FC,People,Childrens Services,Placement & Support,Other Agencies,Child Care Payments,PJ104,5/20/2014,235248,672,REVENUE,REDACTED PERSONAL INFORMATION,REDACTED PERSONAL INFORMATION
NORTH EAST LINCOLNSHIRE COUNCIL,http://statistics.data.gov.uk/id/local-authority/00FC,People,Childrens Services,Placement & Support,Other Agencies,Child Care Payments,PJ104,5/20/2014,235253,632,REVENUE,REDACTED PERSONAL INFORMATION,REDACTED PERSONAL INFORMATION
NORTH EAST LINCOLNSHIRE COUNCIL,http://statistics.data.gov.uk/id/local-authority/00FC,People,Childrens Services,Placement & Support,Other Agencies,Child Care Payments,PJ104,5/27/2014,236418,620,REVENUE,REDACTED PERSONAL INFORMATION,REDACTED PERSONAL INFORMATION
NORTH EAST LINCOLNSHIRE COUNCIL,http://statistics.data.gov.uk/id/local-authority/00FC,People,Childrens Services,Placement & Support,Other Agencies,Child Care Payments,PJ104,5/27/2014,236427,672,REVENUE,REDACTED PERSONAL INFORMATION,REDACTED PERSONAL INFORMATION
NORTH EAST LINCOLNSHIRE COUNCIL,http://statistics.data.gov.uk/id/local-authority/00FC,People,Childrens Services,Placement & Support,Other Agencies,Child Care Payments,PJ104,5/27/2014,236430,844,REVENUE,REDACTED PERSONAL INFORMATION,REDACTED PERSONAL INFORMATION
NORTH EAST LINCOLNSHIRE COUNCIL,http://statistics.data.gov.uk/id/local-authority/00FC,People,Childrens Services,Placement & Support,Other Agencies,Child Care Payments,PJ104,5/27/2014,236433,993,REVENUE,REDACTED PERSONAL INFORMATION,REDACTED PERSONAL INFORMATION
NORTH EAST LINCOLNSHIRE COUNCIL,http://statistics.data.gov.uk/id/local-authority/00FC,People,Childrens Services,Placement & Support,Other Agencies,Child Care Payments,PJ104,5/27/2014,236436,620,REVENUE,REDACTED PERSONAL INFORMATION,REDACTED PERSONAL INFORMATION
NORTH EAST LINCOLNSHIRE COUNCIL,http://statistics.data.gov.uk/id/local-authority/00FC,People,Childrens Services,Placement & Support,Other Agencies,Child Care Payments,PJ104,5/27/2014,236437,620,REVENUE,REDACTED PERSONAL INFORMATION,REDACTED PERSONAL INFORMATION
NORTH EAST LINCOLNSHIRE COUNCIL,http://statistics.data.gov.uk/id/local-authority/00FC,People,Childrens Services,Placement & Support,Other Agencies,Child Care Payments,PJ104,5/27/2014,236441,944,REVENUE,REDACTED PERSONAL INFORMATION,REDACTED PERSONAL INFORMATION
NORTH EAST LINCOLNSHIRE COUNCIL,http://statistics.data.gov.uk/id/local-authority/00FC,People,Childrens Services,Placement & Support,Other Agencies,Child Care Payments,PJ104,5/27/2014,236444,489.71,REVENUE,REDACTED PERSONAL INFORMATION,REDACTED PERSONAL INFORMATION
NORTH EAST LINCOLNSHIRE COUNCIL,http://statistics.data.gov.uk/id/local-authority/00FC,People,Childrens Services,Placement & Support,Other Agencies,Child Care Payments,PJ104,5/27/2014,236450,608,REVENUE,REDACTED PERSONAL INFORMATION,REDACTED PERSONAL INFORMATION
NORTH EAST LINCOLNSHIRE COUNCIL,http://statistics.data.gov.uk/id/local-authority/00FC,People,Childrens Services,Placement & Support,Other Agencies,Child Care Payments,PJ104,5/27/2014,236456,672,REVENUE,REDACTED PERSONAL INFORMATION,REDACTED PERSONAL INFORMATION
NORTH EAST LINCOLNSHIRE COUNCIL,http://statistics.data.gov.uk/id/local-authority/00FC,People,Childrens Services,Placement & Support,Other Agencies,Child Care Payments,PJ104,5/27/2014,236461,632,REVENUE,REDACTED PERSONAL INFORMATION,REDACTED PERSONAL INFORMATION
NORTH EAST LINCOLNSHIRE COUNCIL,http://statistics.data.gov.uk/id/local-authority/00FC,People,Childrens Services,Placement & Support,Other Agencies,Child Care Payments,PJ104,5/27/2014,236471,620,REVENUE,REDACTED PERSONAL INFORMATION,REDACTED PERSONAL INFORMATION
NORTH EAST LINCOLNSHIRE COUNCIL,http://statistics.data.gov.uk/id/local-authority/00FC,People,Childrens Services,Placement & Support,Other Agencies,Child Care Payments,PJ104,5/27/2014,236483,620,REVENUE,REDACTED PERSONAL INFORMATION,REDACTED PERSONAL INFORMATION
NORTH EAST LINCOLNSHIRE COUNCIL,http://statistics.data.gov.uk/id/local-authority/00FC,People,Childrens Services,Placement & Support,Other Agencies,Child Care Payments,PJ104,5/27/2014,236488,936,REVENUE,REDACTED PERSONAL INFORMATION,REDACTED PERSONAL INFORMATION
NORTH EAST LINCOLNSHIRE COUNCIL,http://statistics.data.gov.uk/id/local-authority/00FC,People,Childrens Services,Placement & Support,Other Agencies,Child Care Payments,PJ104,5/27/2014,236494,620,REVENUE,REDACTED PERSONAL INFORMATION,REDACTED PERSONAL INFORMATION
NORTH EAST LINCOLNSHIRE COUNCIL,http://statistics.data.gov.uk/id/local-authority/00FC,People,Childrens Services,Placement & Support,Other Agencies,Child Care Payments,PJ104,5/27/2014,236510,316,REVENUE,REDACTED PERSONAL INFORMATION,REDACTED PERSONAL INFORMATION
NORTH EAST LINCOLNSHIRE COUNCIL,http://statistics.data.gov.uk/id/local-authority/00FC,People,Childrens Services,Placement & Support,Other Agencies,Child Care Payments,PJ104,5/27/2014,236544,640,REVENUE,REDACTED PERSONAL INFORMATION,REDACTED PERSONAL INFORMATION
NORTH EAST LINCOLNSHIRE COUNCIL,http://statistics.data.gov.uk/id/local-authority/00FC,People,Childrens Services,Placement & Support,Other Agencies,Child Care Payments,PJ104,5/27/2014,236549,652,REVENUE,REDACTED PERSONAL INFORMATION,REDACTED PERSONAL INFORMATION
NORTH EAST LINCOLNSHIRE COUNCIL,http://statistics.data.gov.uk/id/local-authority/00FC,People,Childrens Services,Placement & Support,Other Agencies,Child Care Payments,PJ104,5/27/2014,236550,336,REVENUE,REDACTED PERSONAL INFORMATION,REDACTED PERSONAL INFORMATION
NORTH EAST LINCOLNSHIRE COUNCIL,http://statistics.data.gov.uk/id/local-authority/00FC,People,Childrens Services,Placement & Support,Other Agencies,Child Care Payments,PJ104,5/27/2014,236560,608,REVENUE,REDACTED PERSONAL INFORMATION,REDACTED PERSONAL INFORMATION
NORTH EAST LINCOLNSHIRE COUNCIL,http://statistics.data.gov.uk/id/local-authority/00FC,People,Childrens Services,Placement & Support,Other Agencies,Child Care Payments,PJ104,5/27/2014,236567,936,REVENUE,REDACTED PERSONAL INFORMATION,REDACTED PERSONAL INFORMATION
NORTH EAST LINCOLNSHIRE COUNCIL,http://statistics.data.gov.uk/id/local-authority/00FC,People,Childrens Services,Placement & Support,Other Agencies,Child Care Payments,PJ104,5/27/2014,236333,316,REVENUE,REDACTED PERSONAL INFORMATION,REDACTED PERSONAL INFORMATION
NORTH EAST LINCOLNSHIRE COUNCIL,http://statistics.data.gov.uk/id/local-authority/00FC,People,Childrens Services,Placement & Support,Other Agencies,Child Care Payments,PJ104,5/27/2014,236337,336,REVENUE,REDACTED PERSONAL INFORMATION,REDACTED PERSONAL INFORMATION
NORTH EAST LINCOLNSHIRE COUNCIL,http://statistics.data.gov.uk/id/local-authority/00FC,People,Childrens Services,Placement & Support,Other Agencies,Child Care Payments,PJ104,5/27/2014,236340,620,REVENUE,REDACTED PERSONAL INFORMATION,REDACTED PERSONAL INFORMATION
NORTH EAST LINCOLNSHIRE COUNCIL,http://statistics.data.gov.uk/id/local-authority/00FC,People,Childrens Services,Placement & Support,Other Agencies,Child Care Payments,PJ104,5/27/2014,236341,621.14,REVENUE,REDACTED PERSONAL INFORMATION,REDACTED PERSONAL INFORMATION
NORTH EAST LINCOLNSHIRE COUNCIL,http://statistics.data.gov.uk/id/local-authority/00FC,People,Childrens Services,Placement & Support,Other Agencies,Child Care Payments,PJ104,5/27/2014,236342,1013,REVENUE,REDACTED PERSONAL INFORMATION,REDACTED PERSONAL INFORMATION
NORTH EAST LINCOLNSHIRE COUNCIL,http://statistics.data.gov.uk/id/local-authority/00FC,People,Childrens Services,Placement & Support,Other Agencies,Child Care Payments,PJ104,5/27/2014,236345,620,REVENUE,REDACTED PERSONAL INFORMATION,REDACTED PERSONAL INFORMATION
NORTH EAST LINCOLNSHIRE COUNCIL,http://statistics.data.gov.uk/id/local-authority/00FC,People,Childrens Services,Placement & Support,Other Agencies,Child Care Payments,PJ104,5/27/2014,236351,336,REVENUE,REDACTED PERSONAL INFORMATION,REDACTED PERSONAL INFORMATION
NORTH EAST LINCOLNSHIRE COUNCIL,http://statistics.data.gov.uk/id/local-authority/00FC,People,Childrens Services,Placement & Support,Other Agencies,Child Care Payments,PJ104,5/27/2014,236353,924,REVENUE,REDACTED PERSONAL INFORMATION,REDACTED PERSONAL INFORMATION
NORTH EAST LINCOLNSHIRE COUNCIL,http://statistics.data.gov.uk/id/local-authority/00FC,People,Childrens Services,Placement & Support,Other Agencies,Child Care Payments,PJ104,5/27/2014,236354,304,REVENUE,REDACTED PERSONAL INFORMATION,REDACTED PERSONAL INFORMATION
NORTH EAST LINCOLNSHIRE COUNCIL,http://statistics.data.gov.uk/id/local-authority/00FC,People,Childrens Services,Placement & Support,Other Agencies,Child Care Payments,PJ104,5/27/2014,236355,672,REVENUE,REDACTED PERSONAL INFORMATION,REDACTED PERSONAL INFORMATION
NORTH EAST LINCOLNSHIRE COUNCIL,http://statistics.data.gov.uk/id/local-authority/00FC,People,Childrens Services,Placement & Support,Other Agencies,Child Care Payments,PJ104,5/27/2014,236364,652,REVENUE,REDACTED PERSONAL INFORMATION,REDACTED PERSONAL INFORMATION
NORTH EAST LINCOLNSHIRE COUNCIL,http://statistics.data.gov.uk/id/local-authority/00FC,People,Childrens Services,Placement & Support,Other Agencies,Child Care Payments,PJ104,5/27/2014,236575,608,REVENUE,REDACTED PERSONAL INFORMATION,REDACTED PERSONAL INFORMATION
NORTH EAST LINCOLNSHIRE COUNCIL,http://statistics.data.gov.uk/id/local-authority/00FC,People,Childrens Services,Placement & Support,Other Agencies,Child Care Payments,PJ104,5/27/2014,236365,336,REVENUE,REDACTED PERSONAL INFORMATION,REDACTED PERSONAL INFORMATION
NORTH EAST LINCOLNSHIRE COUNCIL,http://statistics.data.gov.uk/id/local-authority/00FC,People,Childrens Services,Placement & Support,Other Agencies,Child Care Payments,PJ104,5/27/2014,236368,316,REVENUE,REDACTED PERSONAL INFORMATION,REDACTED PERSONAL INFORMATION
NORTH EAST LINCOLNSHIRE COUNCIL,http://statistics.data.gov.uk/id/local-authority/00FC,People,Childrens Services,Placement & Support,Other Agencies,Child Care Payments,PJ104,5/27/2014,236369,304,REVENUE,REDACTED PERSONAL INFORMATION,REDACTED PERSONAL INFORMATION
NORTH EAST LINCOLNSHIRE COUNCIL,http://statistics.data.gov.uk/id/local-authority/00FC,People,Childrens Services,Placement & Support,Other Agencies,Child Care Payments,PJ104,5/27/2014,236379,1013,REVENUE,REDACTED PERSONAL INFORMATION,REDACTED PERSONAL INFORMATION
NORTH EAST LINCOLNSHIRE COUNCIL,http://statistics.data.gov.uk/id/local-authority/00FC,People,Childrens Services,Placement & Support,Other Agencies,Child Care Payments,PJ104,5/27/2014,236384,632,REVENUE,REDACTED PERSONAL INFORMATION,REDACTED PERSONAL INFORMATION
NORTH EAST LINCOLNSHIRE COUNCIL,http://statistics.data.gov.uk/id/local-authority/00FC,People,Childrens Services,Placement & Support,Other Agencies,Child Care Payments,PJ104,5/27/2014,236387,632,REVENUE,REDACTED PERSONAL INFORMATION,REDACTED PERSONAL INFORMATION
NORTH EAST LINCOLNSHIRE COUNCIL,http://statistics.data.gov.uk/id/local-authority/00FC,People,Childrens Services,Placement & Support,Other Agencies,Child Care Payments,PJ104,5/27/2014,236388,738.29,REVENUE,REDACTED PERSONAL INFORMATION,REDACTED PERSONAL INFORMATION
NORTH EAST LINCOLNSHIRE COUNCIL,http://statistics.data.gov.uk/id/local-authority/00FC,People,Childrens Services,Placement & Support,Other Agencies,Child Care Payments,PJ104,5/27/2014,236390,1033,REVENUE,REDACTED PERSONAL INFORMATION,REDACTED PERSONAL INFORMATION
NORTH EAST LINCOLNSHIRE COUNCIL,http://statistics.data.gov.uk/id/local-authority/00FC,People,Childrens Services,Placement & Support,Other Agencies,Child Care Payments,PJ104,5/27/2014,236391,632,REVENUE,REDACTED PERSONAL INFORMATION,REDACTED PERSONAL INFORMATION
NORTH EAST LINCOLNSHIRE COUNCIL,http://statistics.data.gov.uk/id/local-authority/00FC,People,Childrens Services,Placement & Support,Other Agencies,Child Care Payments,PJ104,5/27/2014,236393,316,REVENUE,REDACTED PERSONAL INFORMATION,REDACTED PERSONAL INFORMATION
NORTH EAST LINCOLNSHIRE COUNCIL,http://statistics.data.gov.uk/id/local-authority/00FC,People,Childrens Services,Placement & Support,Other Agencies,Child Care Payments,PJ104,5/27/2014,236395,1033,REVENUE,REDACTED PERSONAL INFORMATION,REDACTED PERSONAL INFORMATION
NORTH EAST LINCOLNSHIRE COUNCIL,http://statistics.data.gov.uk/id/local-authority/00FC,People,Childrens Services,Placement & Support,Other Agencies,Child Care Payments,PJ104,5/27/2014,236400,936,REVENUE,REDACTED PERSONAL INFORMATION,REDACTED PERSONAL INFORMATION
NORTH EAST LINCOLNSHIRE COUNCIL,http://statistics.data.gov.uk/id/local-authority/00FC,People,Childrens Services,Placement & Support,Other Agencies,Child Care Payments,PJ104,5/27/2014,236403,361,REVENUE,REDACTED PERSONAL INFORMATION,REDACTED PERSONAL INFORMATION
NORTH EAST LINCOLNSHIRE COUNCIL,http://statistics.data.gov.uk/id/local-authority/00FC,People,Childrens Services,Placement & Support,Other Agencies,Child Care Payments,PJ104,05/06/2014,231540,366,REVENUE,REDACTED PERSONAL INFORMATION,REDACTED PERSONAL INFORMATION
NORTH EAST LINCOLNSHIRE COUNCIL,http://statistics.data.gov.uk/id/local-authority/00FC,People,Childrens Services,Placement & Support,Other Agencies,Child Care Payments,PJ104,05/06/2014,231768,828,REVENUE,REDACTED PERSONAL INFORMATION,REDACTED PERSONAL INFORMATION
NORTH EAST LINCOLNSHIRE COUNCIL,http://statistics.data.gov.uk/id/local-authority/00FC,People,Childrens Services,Placement & Support,Other Agencies,Child Care Payments,PJ104,05/06/2014,231778,611.43,REVENUE,REDACTED PERSONAL INFORMATION,REDACTED PERSONAL INFORMATION
NORTH EAST LINCOLNSHIRE COUNCIL,http://statistics.data.gov.uk/id/local-authority/00FC,People,Childrens Services,Placement & Support,Other Agencies,Child Care Payments,PJ104,05/06/2014,231544,333,REVENUE,REDACTED PERSONAL INFORMATION,REDACTED PERSONAL INFORMATION
NORTH EAST LINCOLNSHIRE COUNCIL,http://statistics.data.gov.uk/id/local-authority/00FC,People,Childrens Services,Placement & Support,Other Agencies,Child Care Payments,PJ104,05/06/2014,231550,267,REVENUE,REDACTED PERSONAL INFORMATION,REDACTED PERSONAL INFORMATION
NORTH EAST LINCOLNSHIRE COUNCIL,http://statistics.data.gov.uk/id/local-authority/00FC,People,Childrens Services,Placement & Support,Other Agencies,Child Care Payments,PJ104,05/06/2014,231554,576,REVENUE,REDACTED PERSONAL INFORMATION,REDACTED PERSONAL INFORMATION
NORTH EAST LINCOLNSHIRE COUNCIL,http://statistics.data.gov.uk/id/local-authority/00FC,People,Childrens Services,Placement & Support,Other Agencies,Child Care Payments,PJ104,05/06/2014,231565,308,REVENUE,REDACTED PERSONAL INFORMATION,REDACTED PERSONAL INFORMATION
NORTH EAST LINCOLNSHIRE COUNCIL,http://statistics.data.gov.uk/id/local-authority/00FC,People,Childrens Services,Placement & Support,Other Agencies,Child Care Payments,PJ104,05/06/2014,231582,268,REVENUE,REDACTED PERSONAL INFORMATION,REDACTED PERSONAL INFORMATION
NORTH EAST LINCOLNSHIRE COUNCIL,http://statistics.data.gov.uk/id/local-authority/00FC,People,Childrens Services,Placement & Support,Other Agencies,Child Care Payments,PJ104,05/06/2014,231591,358,REVENUE,REDACTED PERSONAL INFORMATION,REDACTED PERSONAL INFORMATION
NORTH EAST LINCOLNSHIRE COUNCIL,http://statistics.data.gov.uk/id/local-authority/00FC,People,Childrens Services,Placement & Support,Other Agencies,Child Care Payments,PJ104,05/06/2014,231592,358,REVENUE,REDACTED PERSONAL INFORMATION,REDACTED PERSONAL INFORMATION
NORTH EAST LINCOLNSHIRE COUNCIL,http://statistics.data.gov.uk/id/local-authority/00FC,People,Childrens Services,Placement & Support,Other Agencies,Child Care Payments,PJ104,05/06/2014,231595,268,REVENUE,REDACTED PERSONAL INFORMATION,REDACTED PERSONAL INFORMATION
NORTH EAST LINCOLNSHIRE COUNCIL,http://statistics.data.gov.uk/id/local-authority/00FC,People,Childrens Services,Placement & Support,Other Agencies,Child Care Payments,PJ104,05/06/2014,231604,366,REVENUE,REDACTED PERSONAL INFORMATION,REDACTED PERSONAL INFORMATION
NORTH EAST LINCOLNSHIRE COUNCIL,http://statistics.data.gov.uk/id/local-authority/00FC,People,Childrens Services,Placement & Support,Other Agencies,Child Care Payments,PJ104,05/06/2014,231627,366,REVENUE,REDACTED PERSONAL INFORMATION,REDACTED PERSONAL INFORMATION
NORTH EAST LINCOLNSHIRE COUNCIL,http://statistics.data.gov.uk/id/local-authority/00FC,People,Childrens Services,Placement & Support,Other Agencies,Child Care Payments,PJ104,05/06/2014,231637,268,REVENUE,REDACTED PERSONAL INFORMATION,REDACTED PERSONAL INFORMATION
NORTH EAST LINCOLNSHIRE COUNCIL,http://statistics.data.gov.uk/id/local-authority/00FC,People,Childrens Services,Placement & Support,Other Agencies,Child Care Payments,PJ104,05/06/2014,231685,408.57,REVENUE,REDACTED PERSONAL INFORMATION,REDACTED PERSONAL INFORMATION
NORTH EAST LINCOLNSHIRE COUNCIL,http://statistics.data.gov.uk/id/local-authority/00FC,People,Childrens Services,Placement & Support,Other Agencies,Child Care Payments,PJ104,05/06/2014,231696,268,REVENUE,REDACTED PERSONAL INFORMATION,REDACTED PERSONAL INFORMATION
NORTH EAST LINCOLNSHIRE COUNCIL,http://statistics.data.gov.uk/id/local-authority/00FC,People,Childrens Services,Placement & Support,Other Agencies,Child Care Payments,PJ104,5/13/2014,232999,308,REVENUE,REDACTED PERSONAL INFORMATION,REDACTED PERSONAL INFORMATION
NORTH EAST LINCOLNSHIRE COUNCIL,http://statistics.data.gov.uk/id/local-authority/00FC,People,Childrens Services,Placement & Support,Other Agencies,Child Care Payments,PJ104,5/13/2014,233016,268,REVENUE,REDACTED PERSONAL INFORMATION,REDACTED PERSONAL INFORMATION
NORTH EAST LINCOLNSHIRE COUNCIL,http://statistics.data.gov.uk/id/local-authority/00FC,People,Childrens Services,Placement & Support,Other Agencies,Child Care Payments,PJ104,5/13/2014,233019,575.14,REVENUE,REDACTED PERSONAL INFORMATION,REDACTED PERSONAL INFORMATION
NORTH EAST LINCOLNSHIRE COUNCIL,http://statistics.data.gov.uk/id/local-authority/00FC,People,Childrens Services,Placement & Support,Other Agencies,Child Care Payments,PJ104,5/13/2014,233025,358,REVENUE,REDACTED PERSONAL INFORMATION,REDACTED PERSONAL INFORMATION
NORTH EAST LINCOLNSHIRE COUNCIL,http://statistics.data.gov.uk/id/local-authority/00FC,People,Childrens Services,Placement & Support,Other Agencies,Child Care Payments,PJ104,5/13/2014,233026,358,REVENUE,REDACTED PERSONAL INFORMATION,REDACTED PERSONAL INFORMATION
NORTH EAST LINCOLNSHIRE COUNCIL,http://statistics.data.gov.uk/id/local-authority/00FC,People,Childrens Services,Placement & Support,Other Agencies,Child Care Payments,PJ104,5/13/2014,233029,268,REVENUE,REDACTED PERSONAL INFORMATION,REDACTED PERSONAL INFORMATION
NORTH EAST LINCOLNSHIRE COUNCIL,http://statistics.data.gov.uk/id/local-authority/00FC,People,Childrens Services,Placement & Support,Other Agencies,Child Care Payments,PJ104,5/13/2014,233038,366,REVENUE,REDACTED PERSONAL INFORMATION,REDACTED PERSONAL INFORMATION
NORTH EAST LINCOLNSHIRE COUNCIL,http://statistics.data.gov.uk/id/local-authority/00FC,People,Childrens Services,Placement & Support,Other Agencies,Child Care Payments,PJ104,5/13/2014,233061,366,REVENUE,REDACTED PERSONAL INFORMATION,REDACTED PERSONAL INFORMATION
NORTH EAST LINCOLNSHIRE COUNCIL,http://statistics.data.gov.uk/id/local-authority/00FC,People,Childrens Services,Placement & Support,Other Agencies,Child Care Payments,PJ104,5/13/2014,233071,268,REVENUE,REDACTED PERSONAL INFORMATION,REDACTED PERSONAL INFORMATION
NORTH EAST LINCOLNSHIRE COUNCIL,http://statistics.data.gov.uk/id/local-authority/00FC,People,Childrens Services,Placement & Support,Other Agencies,Child Care Payments,PJ104,5/13/2014,233130,268,REVENUE,REDACTED PERSONAL INFORMATION,REDACTED PERSONAL INFORMATION
NORTH EAST LINCOLNSHIRE COUNCIL,http://statistics.data.gov.uk/id/local-authority/00FC,People,Childrens Services,Placement & Support,Other Agencies,Child Care Payments,PJ104,5/13/2014,233159,332,REVENUE,REDACTED PERSONAL INFORMATION,REDACTED PERSONAL INFORMATION
NORTH EAST LINCOLNSHIRE COUNCIL,http://statistics.data.gov.uk/id/local-authority/00FC,People,Childrens Services,Placement & Support,Other Agencies,Child Care Payments,PJ104,5/13/2014,232974,366,REVENUE,REDACTED PERSONAL INFORMATION,REDACTED PERSONAL INFORMATION
NORTH EAST LINCOLNSHIRE COUNCIL,http://statistics.data.gov.uk/id/local-authority/00FC,People,Childrens Services,Placement & Support,Other Agencies,Child Care Payments,PJ104,5/13/2014,232978,333,REVENUE,REDACTED PERSONAL INFORMATION,REDACTED PERSONAL INFORMATION
NORTH EAST LINCOLNSHIRE COUNCIL,http://statistics.data.gov.uk/id/local-authority/00FC,People,Childrens Services,Placement & Support,Other Agencies,Child Care Payments,PJ104,5/13/2014,232988,576,REVENUE,REDACTED PERSONAL INFORMATION,REDACTED PERSONAL INFORMATION
NORTH EAST LINCOLNSHIRE COUNCIL,http://statistics.data.gov.uk/id/local-authority/00FC,People,Childrens Services,Placement & Support,Other Agencies,Child Care Payments,PJ104,5/20/2014,235283,268,REVENUE,REDACTED PERSONAL INFORMATION,REDACTED PERSONAL INFORMATION
NORTH EAST LINCOLNSHIRE COUNCIL,http://statistics.data.gov.uk/id/local-authority/00FC,People,Childrens Services,Placement & Support,Other Agencies,Child Care Payments,PJ104,5/20/2014,235313,594.29,REVENUE,REDACTED PERSONAL INFORMATION,REDACTED PERSONAL INFORMATION
NORTH EAST LINCOLNSHIRE COUNCIL,http://statistics.data.gov.uk/id/local-authority/00FC,People,Childrens Services,Placement & Support,Other Agencies,Child Care Payments,PJ104,5/20/2014,235128,366,REVENUE,REDACTED PERSONAL INFORMATION,REDACTED PERSONAL INFORMATION
NORTH EAST LINCOLNSHIRE COUNCIL,http://statistics.data.gov.uk/id/local-authority/00FC,People,Childrens Services,Placement & Support,Other Agencies,Child Care Payments,PJ104,5/20/2014,235374,306.29,REVENUE,REDACTED PERSONAL INFORMATION,REDACTED PERSONAL INFORMATION
NORTH EAST LINCOLNSHIRE COUNCIL,http://statistics.data.gov.uk/id/local-authority/00FC,People,Childrens Services,Placement & Support,Other Agencies,Child Care Payments,PJ104,5/20/2014,235376,296.29,REVENUE,REDACTED PERSONAL INFORMATION,REDACTED PERSONAL INFORMATION
NORTH EAST LINCOLNSHIRE COUNCIL,http://statistics.data.gov.uk/id/local-authority/00FC,People,Childrens Services,Placement & Support,Other Agencies,Child Care Payments,PJ104,5/20/2014,235132,333,REVENUE,REDACTED PERSONAL INFORMATION,REDACTED PERSONAL INFORMATION
NORTH EAST LINCOLNSHIRE COUNCIL,http://statistics.data.gov.uk/id/local-authority/00FC,People,Childrens Services,Placement & Support,Other Agencies,Child Care Payments,PJ104,5/20/2014,235142,576,REVENUE,REDACTED PERSONAL INFORMATION,REDACTED PERSONAL INFORMATION
NORTH EAST LINCOLNSHIRE COUNCIL,http://statistics.data.gov.uk/id/local-authority/00FC,People,Childrens Services,Placement & Support,Other Agencies,Child Care Payments,PJ104,5/20/2014,235152,308,REVENUE,REDACTED PERSONAL INFORMATION,REDACTED PERSONAL INFORMATION
